Workbook

Sheet Welcome
AA1: 6 | AB1: =INDEX(AB$4:AB$45,MATCH(MyVoteNo,$AA$4:$AA$45,0)) -> International Relations and Cooperation | AC1: =INDEX(AC$4:AC$45,MATCH(MyVoteNo,$AA$4:$AA$45,0)) -> George Tembo | AE1: =INDEX(AE$4:AE$45,MATCH(MyVoteNo,$AA$4:$AA$45,0)) -> George.Tembo@treasury.gov.za | AF1: =INDEX(AF$4:AF$45,MATCH(MyVoteNo,$AA$4:$AA$45,0)) -> Mercy Mhlophe | AH1: =INDEX(AH$4:AH$45,MATCH(MyVoteNo,$AA$4:$AA$45,0)) -> mercy.mhlope@treasury.gov.za
E2: MTEC Submission Workbook - 2021/22 | AI2: Dept Ceilings | AL2: CoE Ceilings | AS2: Departmental | AT2: =SUM(AT4:AT45) -> 1724950365 | AU2: 1779048023 | AV2: 1807879862 | AY2: Compensation | AZ2: =SUM(AZ4:AZ45) -> 174066007 | BA2: 173531816 | BB2: 170160998
Z3: Dept Index No. | AA3: Vote No. | AB3: Department | AC3: Contact Person | AD3: Tel | AE3: email | AF3: Contact Person | AG3: Tel | AH3: email | AI3: 2021/22 | AJ3: 2022/23 | AK3: 2023/24 | AL3: 2021/22 | AM3: 2022/23 | AN3: 2023/24 | AS3: Department | AT3: 2021/22 Ceiling | AU3: 2022/23 Ceiling | AV3: 2023/24 Ceiling | AY3: Department | AZ3: 2021/22 Ceiling | BA3: 2022/23 Ceiling | BB3: 2023/24 Ceiling | BF3: Month | BG3: MonthNo. | BH3: Month Selection
Z4: 1 | AA4: 29 | AB4: Agriculture, Land Reform and Rural Development | AC4: Bothwell Deka | AD4: (012) 395 6784 | AE4: Bothwell.Deka@treasury.gov.za | AF4: Humbelani Ramuedzisi | AG4: (012) 315 5585 | AH4: Humbelani.Ramuedzisi@treasury.gov.za | AI4: =IFERROR(INDEX((AT$4:AT$45),MATCH($AB4,$AS$4:$AS$45,0)),0) -> 16488238 | AJ4: =IFERROR(INDEX((AU$4:AU$45),MATCH($AB4,$AS$4:$AS$45,0)),0) -> 16398897 | AK4: =IFERROR(INDEX((AV$4:AV$45),MATCH($AB4,$AS$4:$AS$45,0)),0) -> 16403341 | AL4: =IFERROR(INDEX((AZ$4:AZ$45),MATCH($AB4,$AY$4:$AY$45,0)),0) -> 4125542 | AM4: =IFERROR(INDEX((BA$4:BA$45),MATCH($AB4,$AY$4:$AY$45,0)),0) -> 4100208 | AN4: =IFERROR(INDEX((BB$4:BB$45),MATCH($AB4,$AY$4:$AY$45,0)),0) -> 4020368 | AS4: Agriculture, Land Reform and Rural Development | AT4: 16488238 | AU4: 16398897 | AV4: 16403341 | AY4: Agriculture, Land Reform and Rural Development | AZ4: 4125542 | BA4: 4100208 | BB4: 4020368 | BF4: April | BG4: 1 | BH4: =+INDEX(($BG$4:$BG$15),MATCH(Welcome!$B$7,Welcome!BF4:BF15,0)) -> 
Z5: 2 | AA5: 16 | AB5: Basic Education | AC5: Spencer Janari | AD5: (012) 315 5436 | AE5: Spencer.Janari@treasury.gov.za | AF5: Pindi Masiso | AG5: (012) 315 5722 | AH5: Pindi.Masiso@treasury.gov.za | AI5: 25725854 | AJ5: 26090658 | AK5: 26097727 | AL5: 542698 | AM5: 541386 | AN5: 530853 | AS5: Basic Education | AT5: 25725854 | AU5: 26090658 | AV5: 26097727 | AY5: Basic Education | AZ5: 542698 | BA5: 541386 | BB5: 530853 | BF5: May | BG5: 2
Z6: 3 | AA6: 42 | AB6: Centre for Public Service Innovation | AC6: George Tembo | AD6: (012) 315 5514 | AE6: George.Tembo@treasury.gov.za | AF6: Uvadhya Singh | AG6: (012) 315 9030 | AH6: Uvadhya.Singh@treasury.gov.za | AI6: 0 | AJ6: 0 | AK6: 0 | AL6: 0 | AM6: 0 | AN6: 0 | AS6: Civilian Secretariat for the Police Service | AT6: 148497 | AU6: 148486 | AV6: 148526 | AY6: Civilian Secretariat for the Police Service | AZ6: 104161 | BA6: 103829 | BB6: 101809 | BF6: June | BG6: 3
B7: ="VOTE " &$AA$1&": " -> VOTE 6: | C7: =MyDeptName -> International Relations and Cooperation | Z7: 4 | AA7: 21 | AB7: Civilian Secretariat for the Police Service | AC7: Nompumelelo Radebe | AD7: (012) 315 5957 | AE7: Nompumelelo.Radebe@treasury.gov.za | AF7: Velisubuhle Buti | AG7: (012) 395 6709 | AH7: Velisubuhle.Buti@treasury.gov.za | AI7: 148497 | AJ7: 148486 | AK7: 148526 | AL7: 104161 | AM7: 103829 | AN7: 101809 | AS7: Communications and Digital Technologies | AT7: 3594529 | AU7: 2318493 | AV7: 2319121 | AY7: Communications and Digital Technologies | AZ7: 323579 | BA7: 322564 | BB7: 316307 | BF7: July | BG7: 4
Z8: 5 | AA8: 30 | AB8: Communications and Digital Technologies | AC8: Rezah Atcha | AD8: (012) 315 5287 | AE8: Rezah.Atcha@treasury.gov.za | AF8: Keitumetse Motshegwe | AG8: (012) 395 6750 | AH8: keitumetse.motshegwe@treasury.gov.za | AI8: 3594529 | AJ8: 2318493 | AK8: 2319121 | AL8: 323579 | AM8: 322564 | AN8: 316307 | AS8: Cooperative Governance | AT8: 98283946 | AU8: 102074704 | AV8: 102102361 | AY8: Cooperative Governance | AZ8: 367021 | BA8: 365953 | BB8: 358848 | BF8: August | BG8: 5
Z9: 6 | AA9: 3 | AB9: Cooperative Governance | AC9: Misaveni Ngobeni | AD9: (012) 315 5305 | AE9: Misaveni.Ngobeni@treasury.gov.za | AF9: Millicent Mulaudzi | AG9: (012) 395 6576 | AH9: Millicent.Mulaudzi@treasury.gov.za | AI9: 98283946 | AJ9: 102074704 | AK9: 102102361 | AL9: 367021 | AM9: 365953 | AN9: 358848 | AS9: Correctional Services | AT9: 25540903 | AU9: 25552292 | AV9: 25559215 | AY9: Correctional Services | AZ9: 17487333 | BA9: 17412677 | BB9: 17075121 | BF9: September | BG9: 6
B10: Enquiries | F10: Department Contact Details | I10: PLEASE CLICK THE BUTTON BELOW TO SUBMIT AN INPUT… (Note: Input can not be submitted if ceilings on the 'Data' sheet are exceeded.) | Z10: 7 | AA10: 22 | AB10: Correctional Services | AC10: Elvis Ramafamba | AD10: (012) 315 5204 | AE10: Elvis.Ramafamba@treasury.gov.za | AF10: Keabetswe Matlwa | AG10: (012) 395 6678 | AH10: Keabetswe.Matlwa@treasury.gov.za | AI10: 25540903 | AJ10: 25552292 | AK10: 25559215 | AL10: 17487333 | AM10: 17412677 | AN10: 17075121 | AS10: Defence | AT10: 45424249 | AU10: 45502702 | AV10: 45515031 | AY10: Defence | AZ10: 28920012 | BA10: 28893457 | BB10: 28331302 | BF10: October | BG10: 7
B11: =AC1 -> George Tembo | D11: =AE1 -> George.Tembo@treasury.gov.za | F11: Name: | Z11: 8 | AA11: 23 | AB11: Defence | AC11: Mashudu Bidzha | AD11: (012) 315 5344 | AE11: Mashudu.Bidzha@treasury.gov.za | AF11: Lesiba Ledwaba | AG11: (012) 315 6660 | AH11: Lesiba.Ledwaba@treasury.gov.za | AI11: 45424249 | AJ11: 45502702 | AK11: 45515031 | AL11: 28920012 | AM11: 28893457 | AN11: 28331302 | AS11: Employment and Labour | AT11: 3449994 | AU11: 3438896 | AV11: 3439828 | AY11: Employment and Labour | AZ11: 1391536 | BA11: 1382634 | BB11: 1355733 | BF11: November | BG11: 8
B12: =AF1 -> Mercy Mhlophe | D12: =AH1 -> mercy.mhlope@treasury.gov.za | F12: Email: | Z12: 9 | AA12: 31 | AB12: Employment and Labour | AC12: Judy Naidoo | AD12: (012) 315 5269 | AE12: Judy.Naidoo@treasury.gov.za | AI12: 3449994 | AJ12: 3438896 | AK12: 3439828 | AL12: 1391536 | AM12: 1382634 | AN12: 1355733 | AS12: Environment, Forestry and Fisheries | AT12: 8466845 | AU12: 8465616 | AV12: 8467910 | AY12: Environment, Forestry and Fisheries | AZ12: 1913715 | BA12: 1908535 | BB12: 1871449 | BF12: December | BG12: 9
F13: Telephone number: | Z13: 10 | AA13: 32 | AB13: Environment, Forestry and Fisheries | AC13: Gcobisa Magazi | AD13: (012) 315 5320 | AE13: Gcobisa.Magazi@treasury.gov.za | AF13: Ashley Ramasimu | AG13: (012) 315 5166 | AH13: Ashley.Ramasimu@treasury.gov.za | AI13: 8466845 | AJ13: 8465616 | AK13: 8467910 | AL13: 1913715 | AM13: 1908535 | AN13: 1871449 | AS13: Government Communication and Information System | AT13: 684970 | AU13: 684271 | AV13: 684457 | AY13: Government Communication and Information System | AZ13: 274381 | BA13: 273959 | BB13: 268609 | BF13: January | BG13: 10
F14: Mobile (optional): | Z14: 11 | AA14: 4 | AB14: Government Communication and Information System | AC14: Mokgatla Tema | AD14: (012) 315 5948 | AE14: Mokgatla.Tema@treasury.gov.za | AF14: Viwe Sobudula | AG14: (0)12 315 5015 | AH14: Viwe.Sobudula@treasury.gov.za | AI14: 684970 | AJ14: 684271 | AK14: 684457 | AL14: 274381 | AM14: 273959 | AN14: 268609 | AS14: Health | AT14: 56958002 | AU14: 57803100 | AV14: 57818761 | AY14: Health | AZ14: 831596 | BA14: 825829 | BB14: 810446 | BF14: February | BG14: 11
Z15: 12 | AA15: 18 | AB15: Health | AC15: Refiloe Thokoa | AD15: (012) 395 6559 | AE15: Refiloe.thokoa@treasury.gov.za | AF15: Jonatan Daven | AG15: (012) 315 6711 | AH15: Jonatan.Daven@treasury.gov.za | AI15: 56958002 | AJ15: 57803100 | AK15: 57818761 | AL15: 831596 | AM15: 825829 | AN15: 810446 | AS15: Higher Education and Training | AT15: 113801127 | AU15: 115288613 | AV15: 115319850 | AY15: Higher Education and Training | AZ15: 9559638 | BA15: 9527409 | BB15: 9342066 | BF15: March | BG15: 12
Z16: 13 | AA16: 17 | AB16: Higher Education and Training | AC16: Letsepa Pakkies | AD16: (012) 315 6656 | AE16: Letsepa.Pakkies@treasury.gov.za | AF16: Barileng Sape | AG16: (012) 406 9069 | AH16: barileng.sape@treasury.gov.za | AI16: 113801127 | AJ16: 115288613 | AK16: 115319850 | AL16: 9559638 | AM16: 9527409 | AN16: 9342066 | AS16: Home Affairs | AT16: 8700029 | AU16: 8707870 | AV16: 8710229 | AY16: Home Affairs | AZ16: 3606281 | BA16: 3553472 | BB16: 3487482
Z17: 14 | AA17: 5 | AB17: Home Affairs | AC17: Timothy Murwa | AD17: (012) 315 5002 | AE17: Timothy.Murwa@treasury.gov.za | AF17: Isaac Mabena | AG17: (012) 315 5582 | AH17: Isaac.Mabena@treasury.gov.za | AI17: 8700029 | AJ17: 8707870 | AK17: 8710229 | AL17: 3606281 | AM17: 3553472 | AN17: 3487482 | AS17: Human Settlements | AT17: 29918137 | AU17: 29918485 | AV17: 29926591 | AY17: Human Settlements | AZ17: 402702 | BA17: 401725 | BB17: 393910
Z18: 15 | AA18: 33 | AB18: Human Settlements | AC18: Ulrike Britton | AD18: (012) 315 5578 | AE18: Ulrike.Britton@treasury.gov.za | AF18: Lindiwe Ngcongwane | AG18: (012) 315 5357 | AH18: Lindiwe.Ngcongwane@treasury.gov.za | AI18: 29918137 | AJ18: 29918485 | AK18: 29926591 | AL18: 402702 | AM18: 401725 | AN18: 393910 | AS18: Independent Police Investigative Directorate | AT18: 337647 | AU18: 337814 | AV18: 337906 | AY18: Independent Police Investigative Directorate | AZ18: 225355 | BA18: 224789 | BB18: 220417
Z19: 16 | AA19: 24 | AB19: Independent Police Investigative Directorate | AC19: Nompumelelo Radebe | AD19: (012) 315 5957 | AE19: Nompumelelo.Radebe@treasury.gov.za | AF19: Velisubuhle Buti | AG19: (012) 395 6709 | AH19: Velisubuhle.Buti@treasury.gov.za | AI19: 337647 | AJ19: 337814 | AK19: 337906 | AL19: 225355 | AM19: 224789 | AN19: 220417 | AS19: International Relations and Cooperation | AT19: 6402455 | AU19: 6424213 | AV19: 6425954 | AY19: International Relations and Cooperation | AZ19: 2848739 | BA19: 2842004 | BB19: 2786701
Z20: 17 | AA20: 6 | AB20: International Relations and Cooperation | AC20: George Tembo | AD20: (012) 315 5514 | AE20: George.Tembo@treasury.gov.za | AF20: Mercy Mhlophe | AG20: (012) 315 5598 | AH20: mercy.mhlope@treasury.gov.za | AI20: 6402455 | AJ20: 6424213 | AK20: 6425954 | AL20: 2848739 | AM20: 2842004 | AN20: 2786701 | AS20: Justice and Constitutional Development | AT20: 21240759 | AU20: 21220225 | AV20: 21225974 | AY20: Justice and Constitutional Development | AZ20: 12035456 | BA20: 11991097 | BB20: 11757725
Z21: 18 | AA21: 25 | AB21: Justice and Constitutional Development | AC21: Werner Krause | AD21: (012) 315 5211 | AE21: Werner.Krause@treasury.gov.za | AF21: Maggy Mokoka | AG21: (012) 315 5468 | AH21: Maggy.Mokoka@treasury.gov.za | AI21: 21240759 | AJ21: 21220225 | AK21: 21225974 | AL21: 12035456 | AM21: 11991097 | AN21: 11757725 | AS21: Military Veterans | AT21: 656375 | AU21: 656076 | AV21: 656254 | AY21: Military Veterans | AZ21: 126953 | BA21: 126589 | BB21: 124134
Z22: 19 | AA22: 26 | AB22: Military Veterans | AC22: Mashudu Bidzha | AD22: (012) 315 5344 | AE22: Mashudu.Bidzha@treasury.gov.za | AF22: Lesiba Ledwaba | AG22: (012) 315 6660 | AH22: Lesiba.Ledwaba@treasury.gov.za | AI22: 656375 | AJ22: 656076 | AK22: 656254 | AL22: 126953 | AM22: 126589 | AN22: 124134 | AS22: Mineral Resources and Energy | AT22: 8736798 | AU22: 9334176 | AV22: 9336705 | AY22: Mineral Resources and Energy | AZ22: 1038691 | BA22: 1036179 | BB22: 1016019
Z23: 20 | AA23: 34 | AB23: Mineral Resources and Energy | AC23: Rezah Atcha | AD23: (012) 315 5287 | AE23: Rezah.Atcha@treasury.gov.za | AF23: Nomagugu Madikane | AG23: (012) 315 5312 | AH23: Nomagugu.Madikane@treasury.gov.za | AI23: 8736798 | AJ23: 9334176 | AK23: 9336705 | AL23: 1038691 | AM23: 1036179 | AN23: 1016019 | AS23: National School of Government | AT23: 197656 | AU23: 196065 | AV23: 196118 | AY23: National School of Government | AZ23: 57987 | BA23: 57848 | BB23: 56722
Z24: 21 | AA24: 7 | AB24: National School of Government | AC24: George Tembo | AD24: (012) 315 5514 | AE24: George.Tembo@treasury.gov.za | AF24: Uvadhya Singh | AG24: (012) 315 9030 | AH24: Uvadhya.Singh@treasury.gov.za | AI24: 197656 | AJ24: 196065 | AK24: 196118 | AL24: 57987 | AM24: 57848 | AN24: 56722 | AS24: National Treasury | AT24: 818909528 | AU24: 861678814 | AV24: 890262091 | AY24: National Treasury | AZ24: 862955 | BA24: 860874 | BB24: 844125
Z25: 22 | AA25: 8 | AB25: National Treasury | AC25: Mokgatla Tema | AD25: (012) 315 5948 | AE25: Mokgatla.Tema@treasury.gov.za | AF25: Rhoda Marais | AG25: (012) 315 5906 | AH25: Rhoda.Marais@treasury.gov.za | AI25: 818909528 | AJ25: 861678814 | AK25: 890262091 | AL25: 862955 | AM25: 860874 | AN25: 844125 | AS25: Not defined | AT25: 3773184 | AU25: 5489386 | AV25: 5490874 | AY25: Not defined | AZ25: 0 | BA25: 0 | BB25: 0
Z26: 23 | AA26: 27 | AB26: Office of the Chief Justice | AC26: Elvis Ramafamba | AD26: (012) 315 5204 | AE26: Elvis.Ramafamba@treasury.gov.za | AF26: Keabetswe Matlwa | AG26: (012) 395 6678 | AH26: Keabetswe.Matlwa@treasury.gov.za | AI26: 2313640 | AJ26: 2315662 | AK26: 2316290 | AL26: 1737282 | AM26: 1734392 | AN26: 1700541 | AS26: Office of the Chief Justice | AT26: 2313640 | AU26: 2315662 | AV26: 2316290 | AY26: Office of the Chief Justice | AZ26: 1737282 | BA26: 1734392 | BB26: 1700541
Z27: 24 | AA27: 2 | AB27: Parliament | AC27: Timothy Murwa | AD27: (012) 315 5002 | AE27: Timothy.Murwa@treasury.gov.za | AF27: Isaac Mabena | AG27: (012) 315 5582 | AH27: Isaac.Mabena@treasury.gov.za | AI27: 2595889 | AJ27: 2600609 | AK27: 2601314 | AL27: 1398315 | AM27: 1394884 | AN27: 1367746 | AS27: Parliament | AT27: 2595889 | AU27: 2600609 | AV27: 2601314 | AY27: Parliament | AZ27: 1398315 | BA27: 1394884 | BB27: 1367746
Z28: 25 | AA28: 9 | AB28: Planning, Monitoring and Evaluation | AC28: Mokgatla Tema | AD28: (012) 315 5948 | AE28: Mokgatla.Tema@treasury.gov.za | AF28: Viwe Sobudula | AG28: (0)12 315 5015 | AH28: Viwe.Sobudula@treasury.gov.za | AI28: 471341 | AJ28: 470992 | AK28: 471120 | AL28: 314999 | AM28: 311708 | AN28: 305667 | AS28: Planning, Monitoring and Evaluation | AT28: 471341 | AU28: 470992 | AV28: 471120 | AY28: Planning, Monitoring and Evaluation | AZ28: 314999 | BA28: 311708 | BB28: 305667
Z29: 26 | AA29: 28 | AB29: Police | AC29: Nompumelelo Radebe | AD29: (012) 315 5957 | AE29: Nompumelelo.Radebe@treasury.gov.za | AF29: Velisubuhle Buti | AG29: (012) 395 6709 | AH29: Velisubuhle.Buti@treasury.gov.za | AI29: 95469689 | AJ29: 95324513 | AK29: 95350341 | AL29: 75007194 | AM29: 74823053 | AN29: 73366432 | AS29: Police | AT29: 95469689 | AU29: 95324513 | AV29: 95350341 | AY29: Police | AZ29: 75007194 | BA29: 74823053 | BB29: 73366432
Z30: 27 | AA30: 10 | AB30: Public Enterprises | AC30: Isaac Kurasha | AD30: (012) 315 5213 | AE30: Isaac.Kurasha@treasury.gov.za | AF30: Ntandokazi Makaula | AG30: (012) 395 6667 | AH30: Ntandokazi.Makaula@treasury.gov.za | AI30: 4361231 | AJ30: 1921025 | AK30: 1921546 | AL30: 184824 | AM30: 182679 | AN30: 179125 | AS30: Public Enterprises | AT30: 4361231 | AU30: 1921025 | AV30: 1921546 | AY30: Public Enterprises | AZ30: 184824 | BA30: 182679 | BB30: 179125
Z31: 28 | AA31: 11 | AB31: Public Service and Administration | AC31: George Tembo | AD31: (012) 315 5514 | AE31: George.Tembo@treasury.gov.za | AF31: Uvadhya Singh | AG31: (012) 315 9030 | AH31: Uvadhya.Singh@treasury.gov.za | AI31: 546634 | AJ31: 542790 | AK31: 542938 | AL31: 314645 | AM31: 313091 | AN31: 306909 | AS31: Public Service and Administration | AT31: 546634 | AU31: 542790 | AV31: 542938 | AY31: Public Service and Administration | AZ31: 314645 | BA31: 313091 | BB31: 306909
Z32: 29 | AA32: 12 | AB32: Public Service Commission | AC32: George Tembo | AD32: (012) 315 5514 | AE32: George.Tembo@treasury.gov.za | AF32: Uvadhya Singh | AG32: (012) 315 9030 | AH32: Uvadhya.Singh@treasury.gov.za | AI32: 281082 | AJ32: 279683 | AK32: 279759 | AL32: 212616 | AM32: 210723 | AN32: 206736 | AS32: Public Service Commission | AT32: 281082 | AU32: 279683 | AV32: 279759 | AY32: Public Service Commission | AZ32: 212616 | BA32: 210723 | BB32: 206736
Z33: 30 | AA33: 13 | AB33: Public Works and Infrastructure | AC33: George Tembo | AD33: (012) 315 5514 | AE33: George.Tembo@treasury.gov.za | AF33: Mercy Mhlophe | AG33: (012) 315 5598 | AH33: mercy.mhlope@treasury.gov.za | AI33: 7950067 | AJ33: 7938000 | AK33: 7940151 | AL33: 552454 | AM33: 552539 | AN33: 541673 | AS33: Public Works and Infrastructure | AT33: 7950067 | AU33: 7938000 | AV33: 7940151 | AY33: Public Works and Infrastructure | AZ33: 552454 | BA33: 552539 | BB33: 541673
Z34: 31 | AA34: 35 | AB34: Science and Innovation | AC34: Gcobisa Magazi | AD34: (012) 315 5320 | AE34: Gcobisa.Magazi@treasury.gov.za | AF34: Thabiso Molewa | AG34: (012) 395 6780 | AH34: Thabiso.Molewa@treasury.gov.za | AI34: 8489418 | AJ34: 8425038 | AK34: 8427321 | AL34: 394253 | AM34: 391048 | AN34: 383439 | AS34: Science and Innovation | AT34: 8489418 | AU34: 8425038 | AV34: 8427321 | AY34: Science and Innovation | AZ34: 394253 | BA34: 391048 | BB34: 383439
Z35: 32 | AA35: 36 | AB35: Small Business Development | AC35: Isaac Kurasha | AD35: (012) 315 5213 | AE35: Isaac.Kurasha@treasury.gov.za | AF35: Rudzani Sikhwari | AG35: (012) 315 5823 | AH35: rudzani.sikhwari@treasury.gov.za | AI35: 2482236 | AJ35: 2450739 | AK35: 2451403 | AL35: 150789 | AM35: 150435 | AN35: 147507 | AS35: Small Business Development | AT35: 2482236 | AU35: 2450739 | AV35: 2451403 | AY35: Small Business Development | AZ35: 150789 | BA35: 150435 | BB35: 147507
Z36: 33 | AA36: 19 | AB36: Social Development | AC36: Pebetse Maleka | AD36: (012) 315 5566 | AE36: Pebetse.Maleka@treasury.gov.za | AF36: Yusuf Mayet | AG36: (012) 315 5189 | AH36: Yusuf.Mayet@treasury.gov.za | AI36: 199306961 | AJ36: 206984656 | AK36: 207040738 | AL36: 497757 | AM36: 498651 | AN36: 488931 | AS36: Social Development | AT36: 199306961 | AU36: 206984656 | AV36: 207040738 | AY36: Social Development | AZ36: 497757 | BA36: 498651 | BB36: 488931
Z37: 34 | AA37: 37 | AB37: Sports, Arts and Culture | AC37: Judy Naidoo | AD37: (012) 315 5269 | AE37: Judy.Naidoo@treasury.gov.za | AF37: Spencer Janari | AG37: (012) 315 5436 | AH37: Spencer.Janari@treasury.gov.za | AI37: 5542002 | AJ37: 5551914 | AK37: 5553418 | AL37: 374227 | AM37: 369542 | AN37: 362624 | AS37: Sports, Arts and Culture | AT37: 5542002 | AU37: 5551914 | AV37: 5553418 | AY37: Sports, Arts and Culture | AZ37: 374227 | BA37: 369542 | BB37: 362624
Z38: 35 | AA38: 14 | AB38: Statistics South Africa | AC38: Mokgatla Tema | AD38: (012) 315 5948 | AE38: Mokgatla.Tema@treasury.gov.za | AF38: Viwe Sobudula | AG38: (0)12 315 5015 | AH38: Viwe.Sobudula@treasury.gov.za | AI38: 4446840 | AJ38: 2472028 | AK38: 2472697 | AL38: 1518638 | AM38: 1498900 | AN38: 1470947 | AS38: Statistics South Africa | AT38: 4446840 | AU38: 2472028 | AV38: 2472697 | AY38: Statistics South Africa | AZ38: 1518638 | BA38: 1498900 | BB38: 1470947
Z39: 36 | AA39: 1 | AB39: The Presidency | AC39: Timothy Murwa | AD39: (012) 315 5002 | AE39: Timothy.Murwa@treasury.gov.za | AF39: Yamkela Ngewu | AG39: (012) 406 9078 | AH39: Yamkela.Ngewu@treasury.gov.za | AI39: 591091 | AJ39: 590684 | AK39: 590844 | AL39: 369412 | AM39: 367439 | AN39: 360278 | AS39: The Presidency | AT39: 591091 | AU39: 590684 | AV39: 590844 | AY39: The Presidency | AZ39: 369412 | BA39: 367439 | BB39: 360278
Z40: 37 | AA40: 38 | AB40: Tourism | AC40: Gcobisa Magazi | AD40: (012) 315 5320 | AE40: Gcobisa.Magazi@treasury.gov.za | AF40: Ashley Ramasimu | AG40: (012) 315 5166 | AH40: Ashley.Ramasimu@treasury.gov.za | AI40: 2369341 | AJ40: 2374742 | AK40: 2375385 | AL40: 332682 | AM40: 331864 | AN40: 325409 | AS40: Tourism | AT40: 2369341 | AU40: 2374742 | AV40: 2375385 | AY40: Tourism | AZ40: 332682 | BA40: 331864 | BB40: 325409
Z41: 38 | AA41: 39 | AB41: Trade, Industry and Competition | AC41: Isaac Kurasha | AD41: (012) 315 5213 | AE41: Isaac.Kurasha@treasury.gov.za | AF41: Rudzani Sikhwari | AG41: (012) 315 5823 | AH41: rudzani.sikhwari@treasury.gov.za | AI41: 9287504 | AJ41: 9308700 | AK41: 9311222 | AL41: 1088218 | AM41: 1085604 | AN41: 1064481 | AS41: Trade, Industry and Competition | AT41: 9287504 | AU41: 9308700 | AV41: 9311222 | AY41: Trade, Industry and Competition | AZ41: 1088218 | BA41: 1085604 | BB41: 1064481
Z42: 39 | AA42: 15 | AB42: Traditional Affairs | AC42: Misaveni Ngobeni | AD42: (012) 315 5305 | AE42: misaveni.ngobeni@treasury.gov.za | AF42: Millicent Mulaudzi | AG42: (012) 395 6576 | AH42: Millicent.Mulaudzi@treasury.gov.za | AI42: 164604 | AJ42: 164356 | AK42: 164400 | AL42: 78883 | AM42: 78694 | AN42: 77163 | AS42: Traditional Affairs | AT42: 164604 | AU42: 164356 | AV42: 164400 | AY42: Traditional Affairs | AZ42: 78883 | BA42: 78694 | BB42: 77163
Z43: 40 | AA43: 40 | AB43: Transport | AC43: Dumebi Ubogu | AD43: (012) 315 5077 | AE43: Dumebi.Ubogu@treasury.gov.za | AF43: Luyolo Ntlangula | AG43: (012) 315-5571 | AH43: luyolo.ntangula@treasury.gov.za | AI43: 64203859 | AJ43: 64949019 | AK43: 64966617 | AL43: 530815 | AM43: 529531 | AN43: 519229 | AS43: Transport | AT43: 64203859 | AU43: 64949019 | AV43: 64966617 | AY43: Transport | AZ43: 530815 | BA43: 529531 | BB43: 519229
Z44: 41 | AA44: 41 | AB44: Water and Sanitation | AC44: Misaveni Ngobeni | AD44: (012) 315 5305 | AE44: Misaveni.Ngobeni@treasury.gov.za | AF44: Iqbal Mahomed Alli | AG44: (012) 315 5809 | AH44: Iqbal.Mahomed-Alli@treasury.gov.za | AI44: 15892768 | AJ44: 15909361 | AK44: 15913672 | AL44: 1849275 | AM44: 1841602 | AN44: 1805805 | AS44: Water and Sanitation | AT44: 15892768 | AU44: 15909361 | AV44: 15913672 | AY44: Water and Sanitation | AZ44: 1849275 | BA44: 1841602 | BB44: 1805805
Z45: 42 | AA45: 20 | AB45: Women, Youth and Persons with Disabilities | AC45: Pebetse Maleka | AD45: (012) 315 5566 | AE45: Pebetse.Maleka@treasury.gov.za | AF45: Lindi Mzankomo | AG45: (012) 315 5256 | AH45: Lindi.Mzankomo@treasury.gov.za | AI45: 744446 | AJ45: 743660 | AK45: 743862 | AL45: 112398 | AM45: 112420 | AN45: 110210 | AS45: Women, Youth and Persons with Disabilities | AT45: 744446 | AU45: 743660 | AV45: 743862 | AY45: Women, Youth and Persons with Disabilities | AZ45: 112398 | BA45: 112420 | BB45: 110210
AI48: =SUM(AI4:AI45) -> 1721177181 | AJ48: 1773558637 | AK48: 1802388988 | AL48: 174066007 | AM48: 173531816 | AN48: 170160998
AI49: 1751895269 | AJ49: 1789735540 | AL49: 174140115.3 | AM49: 173620506.6

Sheet Notes
B42: Link to 2021 MTEF Guidelines
B43: http://www.treasury.gov.za/publications/guidelines/2021%20MTEF%20guidelines.pdf

Sheet Pivot % growth
B13: Econ2 | C13: (All)
B14: Econ3 | C14: (All)
B16: Row Labels | C16: 2021/22 Baseline | D16: 2021/22 Revised baseline | E16: 2022/23 Revised baseline | F16: 2023/24 Revised baseline | G16: % YoY 2021/22 | H16: % YoY 2022/23 | I16: % YoY 2023/24 | J16: Ave Ann growth History | K16: Ave Ann growth MTEF | L16: % adjust 2021/22 | M16: % adjust 2022/23 | N16: % adjust 2023/24
B17: (blank) | C17: 6785025 | D17: 6785025 | E17: 7018703 | F17: 7328048 | G17: 0 | H17: 0.0344402563 | I17: 0.0440743824 | J17: 0.03641507536 | K17: 0.03154419681 | L17: 0 | M17: 0 | N17: 0
B18: Administration | C18: 1804186 | D18: 1804186 | E18: 1897654 | F18: 1981293 | G18: 0 | H18: 0.0518061885 | I18: 0.04407494728 | J18: 0.1212290374 | K18: 0.04567384579 | L18: 0 | M18: 0 | N18: 0
B19: International Relations | C19: 3376875 | D19: 3376875 | E19: 3469424 | F19: 3622336 | G19: 0 | H19: 0.02740669998 | I19: 0.04407417485 | J19: -0.02702763365 | K19: 0.04258303228 | L19: 0 | M19: 0 | N19: 0
B20: International Cooperation | C20: 518130 | D20: 518130 | E20: 521926 | F20: 544930 | G20: 0 | H20: 0.00732634667 | I20: 0.04407521373 | J20: 0.0499968269 | K20: 0.01868228432 | L20: 0 | M20: 0 | N20: 0
B21: Public Diplomacy and Protocol Services | C21: 356898 | D21: 356898 | E21: 373130 | F21: 389577 | G21: 0 | H21: 0.04548078162 | I21: 0.04407847131 | J21: 0.06580948624 | K21: 0.05964308082 | L21: 0 | M21: 0 | N21: 0
B22: International Transfers | C22: 728936 | D22: 728936 | E22: 756569 | F22: 789912 | G22: 0 | H22: 0.03790867785 | I22: 0.04407132727 | J22: 0.1584058462 | K22: -0.04397102593 | L22: 0 | M22: 0 | N22: 0
B23: Grand Total | C23: 6785025 | D23: 6785025 | E23: 7018703 | F23: 7328048 | G23: 0 | H23: 0.0344402563 | I23: 0.0440743824 | J23: 0.03641507536 | K23: 0.03154419681 | L23: 0 | M23: 0 | N23: 0

Sheet Pivot_T
B13: DOR | C13: (All)
B14: Econ4 | C14: (All)
B16: Value | C16: Column Labels
C17: Baseline
B18: Row Labels | C18: 2021/22 | D18: 2022/23 | E18: 2023/24
B19: Current payments | C19: 5673320 | D19: 5850727 | E19: 6108599
B20: Compensation of employees | C20: 3017685 | D20: 3103283 | E20: 3240057
B21: Goods and services | C21: 2544224 | D21: 2632690 | E21: 2748730
B22: Interest and rent on land | C22: 111411 | D22: 114754 | E22: 119812
B23: Transfers and subsidies | C23: 740420 | D23: 768600 | E23: 802472
B24: Departmental agencies and accounts | C24: 61675 | D24: 63968 | E24: 66787
B25: Foreign governments and international organisations | C25: 667261 | D25: 692601 | E25: 723125
B26: Households | C26: 11484 | D26: 12031 | E26: 12560
B27: Payments for capital assets | C27: 371285 | D27: 399376 | E27: 416977
B28: Buildings and other fixed structures | C28: 292358 | D28: 308755 | E28: 322363
B29: Machinery and equipment | C29: 78927 | D29: 90621 | E29: 94614
B30: Grand Total | C30: 6785025 | D30: 7018703 | E30: 7328048

Sheet Service delivery impact
B15: Note: Data in the table below is sourced from the individual IP sheets. Any adjustments should be made on the IP sheets. Ajustments made directly on this table will be over-written when the data is refreshed!
B17: Impact area | C17: IP no | D17: IP name | E17: Comment

Sheet Performance impact
B15: Note: Data in the table below is sourced from the individual IP sheets. Any adjustments should be made on the IP sheets. Ajustments made directly on this table will be over-written when the data is refreshed!
B17: Impact area | C17: IP no | D17: IP name | E17: Performance indicator | F17: 2021/22|Original target | G17: 2021/22 Revised target | H17: 2021/22 Change | I17: 2022/23 Original target | J17: 2022/23 Revised target | K17: 2022/23 Change | L17: 2023/24 Original target | M17: 2023/24 Revised target | N17: 2023/24 Change | O17: Comment | P17: Gov Priority

Sheet Pivot Infra impact
B14: Impact area | C14: (All)
B16: Row Labels

Sheet Pivot Personnel impact
B14: IP name | C14: (All)
B16: Row Labels | C16: 2021/22 Change | D16: 2022/23 Change | E16: 2023/24 Change
B17: Level 1 - 6 | C17: 0 | D17: 0 | E17: 0
B18: 1 | C18: 0 | D18: 0 | E18: 0
B19: 2 | C19: 0 | D19: 0 | E19: 0
B20: 3 | C20: 0 | D20: 0 | E20: 0
B21: 4 | C21: 0 | D21: 0 | E21: 0
B22: 5 | C22: 0 | D22: 0 | E22: 0
B23: 6 | C23: 0 | D23: 0 | E23: 0
B24: Levels 7 - 12 | C24: 0 | D24: 0 | E24: 0
B25: 7 | C25: 0 | D25: 0 | E25: 0
B26: 8 | C26: 0 | D26: 0 | E26: 0
B27: 9 | C27: 0 | D27: 0 | E27: 0
B28: 10 | C28: 0 | D28: 0 | E28: 0
B29: 11 | C29: 0 | D29: 0 | E29: 0
B30: 12 | C30: 0 | D30: 0 | E30: 0
B31: Levels 13 - 16 | C31: 0 | D31: 0 | E31: 0
B32: 13 | C32: 0 | D32: 0 | E32: 0
B33: 14 | C33: 0 | D33: 0 | E33: 0
B34: 15 | C34: 0 | D34: 0 | E34: 0
B35: 16 | C35: 0 | D35: 0 | E35: 0
B36: Other | C36: 0 | D36: 0 | E36: 0
B37: Other | C37: 0 | D37: 0 | E37: 0
B38: Grand Total | C38: 0 | D38: 0 | E38: 0

Sheet Data
AW1: Steps to complete…
BS6: 2021/22 | BT6: 2022/23 | BU6: 2023/24
BR8: Baseline ceiling: | BS8: =INDEX(DeptCeiling,MATCH(MyVoteNo,VoteNoList,0),1) -> 6402455 | BT8: =INDEX(DeptCeiling,MATCH(MyVoteNo,VoteNoList,0),2) -> 6424213 | BU8: =INDEX(DeptCeiling,MATCH(MyVoteNo,VoteNoList,0),3) -> 6425954
BR9: (Over)/Under | BS9: =BS8-SUM(T_DataComboFile[2021/22 Revised baseline]) -> -382570 | BT9: =BT8-SUM(T_DataComboFile[2022/23 Revised baseline]) -> -594490 | BU9: =BU8-SUM(T_DataComboFile[2023/24 Revised baseline]) -> -902094
BR11: CoE ceiling: | BS11: =INDEX(CoECeiling,MATCH(MyVoteNo,VoteNoList,0),1) -> 2848739 | BT11: =INDEX(CoECeiling,MATCH(MyVoteNo,VoteNoList,0),2) -> 2842004 | BU11: =INDEX(CoECeiling,MATCH(MyVoteNo,VoteNoList,0),3) -> 2786701
BR12: (Over)/Under | BS12: =BS11-SUMIF(T_DataComboFile[Econ3],"Compensation of employees",T_DataComboFile[2021/22 Revised baseline]) -> -168946 | BT12: =BT11-SUMIF(T_DataComboFile[Econ3],"Compensation of employees",T_DataComboFile[2022/23 Revised baseline]) -> -261279 | BU12: =BU11-SUMIF(T_DataComboFile[Econ3],"Compensation of employees",T_DataComboFile[2023/24 Revised baseline]) -> -453356
AX15: G&S reporting level | AZ15: 2016/17 | BA15: 2017/18 | BB15: 2018/19 | BC15: 2019/20 Main appropriation | BD15: 2019/20 Adjusted appropriation | BE15: 2019/20 Revised estimate | BF15: 2019/20 Preliminary outcome | BG15: 2020/21 Original | BH15: 2020/21 SAB | BI15: 2020/21 Baseline | BJ15: 2021/22 Baseline | BK15: 2022/23 Baseline | BL15: 2023/24 Baseline | BM15: 2021/22 Reduction | BN15: 2022/23 Reduction | BO15: 2023/24 Reduction | BP15: 2021/22 Increase | BQ15: 2022/23 Increase | BR15: 2023/24 Increase | BS15: 2021/22 Revised baseline | BT15: 2022/23 Revised baseline | BU15: 2023/24 Revised baseline
AX16: Level 3 | AY16: Subtotal: | AZ16: =SUBTOTAL(9,T_DataComboFile[2016/17]) -> 6844930 | BA16: =SUBTOTAL(9,T_DataComboFile[2017/18]) -> 5996856 | BB16: =SUBTOTAL(9,T_DataComboFile[2018/19]) -> 6370239 | BC16: =SUBTOTAL(9,T_DataComboFile[2019/20 Main appropriation]) -> 6508515 | BD16: =SUBTOTAL(9,T_DataComboFile[2019/20 Adjusted appropriation]) -> 6508515 | BE16: =SUBTOTAL(9,T_DataComboFile[2019/20 Revised estimate]) -> 6508515 | BF16: =SUBTOTAL(9,T_DataComboFile[2019/20 Preliminary outcome]) -> 6508515 | BG16: =SUBTOTAL(9,T_DataComboFile[2020/21 Original]) -> 6850179 | BH16: =SUBTOTAL(9,T_DataComboFile[2020/21 SAB]) -> 6533604 | BI16: =SUBTOTAL(9,T_DataComboFile[2020/21 Revised]) -> 6676130 | BJ16: =SUBTOTAL(9,T_DataComboFile[2021/22 Baseline]) -> 6785025 | BK16: =SUBTOTAL(9,T_DataComboFile[2022/23 Baseline]) -> 7018703 | BL16: =SUBTOTAL(9,T_DataComboFile[2023/24 Baseline]) -> 7328048 | BM16: =SUBTOTAL(9,T_DataComboFile[2021/22 Reduction]) -> 0 | BN16: =SUBTOTAL(9,T_DataComboFile[2022/23 Reduction]) -> 0 | BO16: =SUBTOTAL(9,T_DataComboFile[2023/24 Reduction]) -> 0 | BP16: =SUBTOTAL(9,T_DataComboFile[2021/22 Increase]) -> 0 | BQ16: =SUBTOTAL(9,T_DataComboFile[2022/23 Increase]) -> 0 | BR16: =SUBTOTAL(9,T_DataComboFile[2023/24 Increase]) -> 0 | BS16: =SUBTOTAL(9,T_DataComboFile[2021/22 Revised baseline]) -> 6785025 | BT16: =SUBTOTAL(9,T_DataComboFile[2022/23 Revised baseline]) -> 7018703 | BU16: =SUBTOTAL(9,T_DataComboFile[2023/24 Revised baseline]) -> 7328048
BS17: …red shaded cells below indicate negative budgets. | BV17: Budget Tagging
A18: Combo_DoR | B18: Combo_Econ | C18: Budget Year | D18: Process | E18: Vote No. - N | F18: Programme No. - N | G18: Subprogramme No. - N | H18: Index - N | I18: Index - N2 | J18: Vote No. | K18: Programme No. | L18: Subprogramme No. | M18: Index | N18: Index2 | O18: UID | P18: Econ1_IDn | Q18: Econ2_IDn | R18: Econ3_IDn | S18: Econ4_IDn | T18: Econ5_IDn | U18: Econ_UID | V18: Province | W18: Department | X18: Programme | Y18: Subprogramme | Z18: Transfers and subsidies / Payments for financial assets detail | AA18: Econ1 | AB18: Econ2 | AC18: Econ3 | AD18: Econ4 | AE18: Econ5 | AF18: Function group | AG18: Technical group | AH18: DOR | AI18: 2016/17_Source | AJ18: 2017/18_Source | AK18: 2018/19_Source | AL18: 2019/20 Main appropriation_Source | AM18: 2019/20 Adjusted appropriation_Source | AN18: 2019/20 Revised estimate_Source | AO18: 2019/20 Preliminary outcome_Source | AP18: 2020/21 Original_Source | AQ18: 2020/21 SAB_Source | AR18: 2020/21 Baseline_Source | AS18: 2021/22 Baseline_Source | AT18: 2022/23 Baseline_Source | AU18: 2023/24 Baseline_Source | AV18: New item Indi | AW18: Implementation programme | AX18: G&S Reporting level | AY18: G&S reporting level indicator | AZ18: 2016/17 | BA18: 2017/18 | BB18: 2018/19 | BC18: 2019/20 Main appropriation | BD18: 2019/20 Adjusted appropriation | BE18: 2019/20 Revised estimate | BF18: 2019/20 Preliminary outcome | BG18: 2020/21 Original | BH18: 2020/21 SAB | BI18: 2020/21 Revised | BJ18: 2021/22 Baseline | BK18: 2022/23 Baseline | BL18: 2023/24 Baseline | BM18: 2021/22 Reduction | BN18: 2022/23 Reduction | BO18: 2023/24 Reduction | BP18: 2021/22 Increase | BQ18: 2022/23 Increase | BR18: 2023/24 Increase | BS18: 2021/22 Revised baseline | BT18: 2022/23 Revised baseline | BU18: 2023/24 Revised baseline | BV18: Gender - Women | BW18: Gender - Men | BX18: Children and Youth - Women | BY18: Children and Youth - Men | BZ18: Persons with disabilities - Women | CA18: Persons with disabilities - Men
A19: NAT|Non-transfer item | B19: 6|Salaries and wages | C19: 2021_22 | D19: ENE2020 | E19: 6 | F19: 1 | G19: 1 | H19: 1778 | I19: 9120 | J19: 6 | K19: 1 | L19: 1 | M19: 1778 | N19: 009120 | O19: 06|01|01 | P19: 1 | Q19: 1 | R19: 1 | S19: 1 | T19: 1 | U19: 01|01|01|01|01 | V19: National | W19: International Relations and Cooperation | X19: Administration | Y19: Ministry | Z19: Non-transfer item | AA19: Current | AB19: Current payments | AC19: Compensation of employees | AD19: Salaries and wages | AE19: Salaries and wages | AF19: General public services | AG19: External affairs | AH19: NAT | AI19: 5215 | AJ19: 5073 | AK19: 5922 | AL19: 6844 | AM19: 5994 | AN19: 5994 | AO19: 5994 | AP19: 5547 | AQ19: 5547 | AR19: 5233 | AS19: 5351 | AT19: 5517 | AU19: 5760 | AV19: 1 | AX19: =IF(T_DataComboFile[[#This Row],[G&S reporting level indicator]]=1,$AX$16,"Not applicable") -> Level 3 | AY19: =IF(AND($AX$16="Level 3",T_DataComboFile[[#This Row],[Econ3]] = "Goods and services"),IF(T_DataComboFile[[#This Row],[Econ4]] = T_DataComboFile[[#This Row],[Econ3]],1,0),IF(AND($AX$16="Level 4",T_DataComboFile[[#This Row],[Econ4]] = "Goods and services"),0,1)) -> 1 | AZ19: =T_DataComboFile[[#This Row],[2016/17_Source]]*T_DataComboFile[[#This Row],[G&S reporting level indicator]] -> 5215 | BA19: =T_DataComboFile[[#This Row],[2017/18_Source]]*T_DataComboFile[[#This Row],[G&S reporting level indicator]] -> 5073 | BB19: =T_DataComboFile[[#This Row],[2018/19_Source]]*T_DataComboFile[[#This Row],[G&S reporting level indicator]] -> 5922 | BC19: =T_DataComboFile[[#This Row],[2019/20 Main appropriation_Source]]*T_DataComboFile[[#This Row],[G&S reporting level indicator]] -> 6844 | BD19: =T_DataComboFile[[#This Row],[2019/20 Adjusted appropriation_Source]]*T_DataComboFile[[#This Row],[G&S reporting level indicator]] -> 5994 | BE19: =T_DataComboFile[[#This Row],[2019/20 Revised estimate_Source]]*T_DataComboFile[[#This Row],[G&S reporting level indicator]] -> 5994 | BF19: =T_DataComboFile[[#This Row],[2019/20 Preliminary outcome_Source]]*T_DataComboFile[[#This Row],[G&S reporting level indicator]] -> 5994 | BG19: =T_DataComboFile[[#This Row],[2020/21 Original_Source]]*T_DataComboFile[[#This Row],[G&S reporting level indicator]] -> 5547 | BH19: =T_DataComboFile[[#This Row],[2020/21 SAB_Source]]*T_DataComboFile[[#This Row],[G&S reporting level indicator]] -> 5547 | BI19: =T_DataComboFile[[#This Row],[2020/21 Baseline_Source]]*T_DataComboFile[[#This Row],[G&S reporting level indicator]] -> 5233 | BJ19: =T_DataComboFile[[#This Row],[2021/22 Baseline_Source]]*T_DataComboFile[[#This Row],[G&S reporting level indicator]] -> 5351 | BK19: =T_DataComboFile[[#This Row],[2022/23 Baseline_Source]]*T_DataComboFile[[#This Row],[G&S reporting level indicator]] -> 5517 | BL19: =T_DataComboFile[[#This Row],[2023/24 Baseline_Source]]*T_DataComboFile[[#This Row],[G&S reporting level indicator]] -> 5760 | BS19: =T_DataComboFile[[#This Row],[2021/22 Baseline]]+T_DataComboFile[[#This Row],[2021/22 Reduction]]+T_DataComboFile[[#This Row],[2021/22 Increase]] -> 5351 | BT19: =T_DataComboFile[[#This Row],[2022/23 Baseline]]+T_DataComboFile[[#This Row],[2022/23 Reduction]]+T_DataComboFile[[#This Row],[2022/23 Increase]] -> 5517 | BU19: =T_DataComboFile[[#This Row],[2023/24 Baseline]]+T_DataComboFile[[#This Row],[2023/24 Reduction]]+T_DataComboFile[[#This Row],[2023/24 Increase]] -> 5760
A20: NAT|Non-transfer item | B20: 6|Social contributions | C20: 2021_22 | D20: ENE2020 | E20: 6 | F20: 1 | G20: 1 | H20: 1779 | I20: 9121 | J20: 6 | K20: 1 | L20: 1 | M20: 1779 | N20: 009121 | O20: 06|01|01 | P20: 1 | Q20: 1 | R20: 1 | S20: 2 | T20: 2 | U20: 01|01|01|02|02 | V20: National | W20: International Relations and Cooperation | X20: Administration | Y20: Ministry | Z20: Non-transfer item | AA20: Current | AB20: Current payments | AC20: Compensation of employees | AD20: Social contributions | AE20: Social contributions | AF20: General public services | AG20: External affairs | AH20: NAT | AI20: 898 | AJ20: 931 | AK20: 961 | AL20: 1450 | AM20: 1100 | AN20: 1100 | AO20: 1100 | AP20: 1559 | AQ20: 1559 | AR20: 1471 | AS20: 1531 | AT20: 1566 | AU20: 1635 | AV20: 1 | AX20: =IF(T_DataComboFile[[#This Row],[G&S reporting level indicator]]=1,$AX$16,"Not applicable") -> Level 3 | AY20: =IF(AND($AX$16="Level 3",T_DataComboFile[[#This Row],[Econ3]] = "Goods and services"),IF(T_DataComboFile[[#This Row],[Econ4]] = T_DataComboFile[[#This Row],[Econ3]],1,0),IF(AND($AX$16="Level 4",T_DataComboFile[[#This Row],[Econ4]] = "Goods and services"),0,1)) -> 1 | AZ20: =T_DataComboFile[[#This Row],[2016/17_Source]]*T_DataComboFile[[#This Row],[G&S reporting level indicator]] -> 898 | BA20: =T_DataComboFile[[#This Row],[2017/18_Source]]*T_DataComboFile[[#This Row],[G&S reporting level indicator]] -> 931 | BB20: =T_DataComboFile[[#This Row],[2018/19_Source]]*T_DataComboFile[[#This Row],[G&S reporting level indicator]] -> 961 | BC20: =T_DataComboFile[[#This Row],[2019/20 Main appropriation_Source]]*T_DataComboFile[[#This Row],[G&S reporting level indicator]] -> 1450 | BD20: =T_DataComboFile[[#This Row],[2019/20 Adjusted appropriation_Source]]*T_DataComboFile[[#This Row],[G&S reporting level indicator]] -> 1100 | BE20: =T_DataComboFile[[#This Row],[2019/20 Revised estimate_Source]]*T_DataComboFile[[#This Row],[G&S reporting level indicator]] -> 1100 | BF20: =T_DataComboFile[[#This Row],[2019/20 Preliminary outcome_Source]]*T_DataComboFile[[#This Row],[G&S reporting level indicator]] -> 1100 | BG20: =T_DataComboFile[[#This Row],[2020/21 Original_Source]]*T_DataComboFile[[#This Row],[G&S reporting level indicator]] -> 1559 | BH20: =T_DataComboFile[[#This Row],[2020/21 SAB_Source]]*T_DataComboFile[[#This Row],[G&S reporting level indicator]] -> 1559 | BI20: =T_DataComboFile[[#This Row],[2020/21 Baseline_Source]]*T_DataComboFile[[#This Row],[G&S reporting level indicator]] -> 1471 | BJ20: =T_DataComboFile[[#This Row],[2021/22 Baseline_Source]]*T_DataComboFile[[#This Row],[G&S reporting level indicator]] -> 1531 | BK20: =T_DataComboFile[[#This Row],[2022/23 Baseline_Source]]*T_DataComboFile[[#This Row],[G&S reporting level indicator]] -> 1566 | BL20: =T_DataComboFile[[#This Row],[2023/24 Baseline_Source]]*T_DataComboFile[[#This Row],[G&S reporting level indicator]] -> 1635 | BS20: =T_DataComboFile[[#This Row],[2021/22 Baseline]]+T_DataComboFile[[#This Row],[2021/22 Reduction]]+T_DataComboFile[[#This Row],[2021/22 Increase]] -> 1531 | BT20: =T_DataComboFile[[#This Row],[2022/23 Baseline]]+T_DataComboFile[[#This Row],[2022/23 Reduction]]+T_DataComboFile[[#This Row],[2022/23 Increase]] -> 1566 | BU20: =T_DataComboFile[[#This Row],[2023/24 Baseline]]+T_DataComboFile[[#This Row],[2023/24 Reduction]]+T_DataComboFile[[#This Row],[2023/24 Increase]] -> 1635
C21: 2021_22 | D21: ENE2020 | E21: 6 | F21: 1 | G21: 1 | I21: 9122 | J21: 6 | K21: 1 | L21: 1 | N21: 009122 | O21: 06|01|01 | P21: 1 | Q21: 1 | R21: 2 | S21: 3 | T21: 3 | U21: 01|01|02|03|03 | V21: National | W21: International Relations and Cooperation | X21: Administration | Y21: Ministry | AA21: Current | AB21: Current payments | AC21: Goods and services | AD21: Administrative fees | AE21: Administrative fees | AI21: 0 | AJ21: 0 | AK21: 0 | AL21: 0 | AM21: 0 | AN21: 0 | AO21: 0 | AP21: 0 | AQ21: 0 | AR21: 0 | AS21: 0 | AT21: 0 | AU21: 0 | AV21: 0 | AX21: =IF(T_DataComboFile[[#This Row],[G&S reporting level indicator]]=1,$AX$16,"Not applicable") -> Not applicable | AY21: =IF(AND($AX$16="Level 3",T_DataComboFile[[#This Row],[Econ3]] = "Goods and services"),IF(T_DataComboFile[[#This Row],[Econ4]] = T_DataComboFile[[#This Row],[Econ3]],1,0),IF(AND($AX$16="Level 4",T_DataComboFile[[#This Row],[Econ4]] = "Goods and services"),0,1)) -> 0 | AZ21: =T_DataComboFile[[#This Row],[2016/17_Source]]*T_DataComboFile[[#This Row],[G&S reporting level indicator]] -> 0 | BA21: =T_DataComboFile[[#This Row],[2017/18_Source]]*T_DataComboFile[[#This Row],[G&S reporting level indicator]] -> 0 | BB21: =T_DataComboFile[[#This Row],[2018/19_Source]]*T_DataComboFile[[#This Row],[G&S reporting level indicator]] -> 0 | BC21: =T_DataComboFile[[#This Row],[2019/20 Main appropriation_Source]]*T_DataComboFile[[#This Row],[G&S reporting level indicator]] -> 0 | BD21: =T_DataComboFile[[#This Row],[2019/20 Adjusted appropriation_Source]]*T_DataComboFile[[#This Row],[G&S reporting level indicator]] -> 0 | BE21: =T_DataComboFile[[#This Row],[2019/20 Revised estimate_Source]]*T_DataComboFile[[#This Row],[G&S reporting level indicator]] -> 0 | BF21: =T_DataComboFile[[#This Row],[2019/20 Preliminary outcome_Source]]*T_DataComboFile[[#This Row],[G&S reporting level indicator]] -> 0 | BG21: =T_DataComboFile[[#This Row],[2020/21 Original_Source]]*T_DataComboFile[[#This Row],[G&S reporting level indicator]] -> 0 | BH21: =T_DataComboFile[[#This Row],[2020/21 SAB_Source]]*T_DataComboFile[[#This Row],[G&S reporting level indicator]] -> 0 | BI21: =T_DataComboFile[[#This Row],[2020/21 Baseline_Source]]*T_DataComboFile[[#This Row],[G&S reporting level indicator]] -> 0 | BJ21: =T_DataComboFile[[#This Row],[2021/22 Baseline_Source]]*T_DataComboFile[[#This Row],[G&S reporting level indicator]] -> 0 | BK21: =T_DataComboFile[[#This Row],[2022/23 Baseline_Source]]*T_DataComboFile[[#This Row],[G&S reporting level indicator]] -> 0 | BL21: =T_DataComboFile[[#This Row],[2023/24 Baseline_Source]]*T_DataComboFile[[#This Row],[G&S reporting level indicator]] -> 0 | BS21: =T_DataComboFile[[#This Row],[2021/22 Baseline]]+T_DataComboFile[[#This Row],[2021/22 Reduction]]+T_DataComboFile[[#This Row],[2021/22 Increase]] -> 0 | BT21: =T_DataComboFile[[#This Row],[2022/23 Baseline]]+T_DataComboFile[[#This Row],[2022/23 Reduction]]+T_DataComboFile[[#This Row],[2022/23 Increase]] -> 0 | BU21: =T_DataComboFile[[#This Row],[2023/24 Baseline]]+T_DataComboFile[[#This Row],[2023/24 Reduction]]+T_DataComboFile[[#This Row],[2023/24 Increase]] -> 0
C22: 2021_22 | D22: ENE2020 | E22: 6 | F22: 1 | G22: 1 | I22: 9123 | J22: 6 | K22: 1 | L22: 1 | N22: 009123 | O22: 06|01|01 | P22: 1 | Q22: 1 | R22: 2 | S22: 4 | T22: 4 | U22: 01|01|02|04|04 | V22: National | W22: International Relations and Cooperation | X22: Administration | Y22: Ministry | AA22: Current | AB22: Current payments | AC22: Goods and services | AD22: Advertising | AE22: Advertising | AI22: 0 | AJ22: 0 | AK22: 0 | AL22: 0 | AM22: 0 | AN22: 0 | AO22: 0 | AP22: 0 | AQ22: 0 | AR22: 0 | AS22: 0 | AT22: 0 | AU22: 0 | AV22: 0 | AX22: =IF(T_DataComboFile[[#This Row],[G&S reporting level indicator]]=1,$AX$16,"Not applicable") -> Not applicable | AY22: =IF(AND($AX$16="Level 3",T_DataComboFile[[#This Row],[Econ3]] = "Goods and services"),IF(T_DataComboFile[[#This Row],[Econ4]] = T_DataComboFile[[#This Row],[Econ3]],1,0),IF(AND($AX$16="Level 4",T_DataComboFile[[#This Row],[Econ4]] = "Goods and services"),0,1)) -> 0 | AZ22: =T_DataComboFile[[#This Row],[2016/17_Source]]*T_DataComboFile[[#This Row],[G&S reporting level indicator]] -> 0 | BA22: =T_DataComboFile[[#This Row],[2017/18_Source]]*T_DataComboFile[[#This Row],[G&S reporting level indicator]] -> 0 | BB22: =T_DataComboFile[[#This Row],[2018/19_Source]]*T_DataComboFile[[#This Row],[G&S reporting level indicator]] -> 0 | BC22: =T_DataComboFile[[#This Row],[2019/20 Main appropriation_Source]]*T_DataComboFile[[#This Row],[G&S reporting level indicator]] -> 0 | BD22: =T_DataComboFile[[#This Row],[2019/20 Adjusted appropriation_Source]]*T_DataComboFile[[#This Row],[G&S reporting level indicator]] -> 0 | BE22: =T_DataComboFile[[#This Row],[2019/20 Revised estimate_Source]]*T_DataComboFile[[#This Row],[G&S reporting level indicator]] -> 0 | BF22: =T_DataComboFile[[#This Row],[2019/20 Preliminary outcome_Source]]*T_DataComboFile[[#This Row],[G&S reporting level indicator]] -> 0 | BG22: =T_DataComboFile[[#This Row],[2020/21 Original_Source]]*T_DataComboFile[[#This Row],[G&S reporting level indicator]] -> 0 | BH22: =T_DataComboFile[[#This Row],[2020/21 SAB_Source]]*T_DataComboFile[[#This Row],[G&S reporting level indicator]] -> 0 | BI22: =T_DataComboFile[[#This Row],[2020/21 Baseline_Source]]*T_DataComboFile[[#This Row],[G&S reporting level indicator]] -> 0 | BJ22: =T_DataComboFile[[#This Row],[2021/22 Baseline_Source]]*T_DataComboFile[[#This Row],[G&S reporting level indicator]] -> 0 | BK22: =T_DataComboFile[[#This Row],[2022/23 Baseline_Source]]*T_DataComboFile[[#This Row],[G&S reporting level indicator]] -> 0 | BL22: =T_DataComboFile[[#This Row],[2023/24 Baseline_Source]]*T_DataComboFile[[#This Row],[G&S reporting level indicator]] -> 0 | BS22: =T_DataComboFile[[#This Row],[2021/22 Baseline]]+T_DataComboFile[[#This Row],[2021/22 Reduction]]+T_DataComboFile[[#This Row],[2021/22 Increase]] -> 0 | BT22: =T_DataComboFile[[#This Row],[2022/23 Baseline]]+T_DataComboFile[[#This Row],[2022/23 Reduction]]+T_DataComboFile[[#This Row],[2022/23 Increase]] -> 0 | BU22: =T_DataComboFile[[#This Row],[2023/24 Baseline]]+T_DataComboFile[[#This Row],[2023/24 Reduction]]+T_DataComboFile[[#This Row],[2023/24 Increase]] -> 0
C23: 2021_22 | D23: ENE2020 | E23: 6 | F23: 1 | G23: 1 | I23: 9124 | J23: 6 | K23: 1 | L23: 1 | N23: 009124 | O23: 06|01|01 | P23: 1 | Q23: 1 | R23: 2 | S23: 5 | T23: 5 | U23: 01|01|02|05|05 | V23: National | W23: International Relations and Cooperation | X23: Administration | Y23: Ministry | AA23: Current | AB23: Current payments | AC23: Goods and services | AD23: Minor assets | AE23: Minor assets | AI23: 0 | AJ23: 0 | AK23: 0 | AL23: 0 | AM23: 0 | AN23: 0 | AO23: 0 | AP23: 0 | AQ23: 0 | AR23: 0 | AS23: 0 | AT23: 0 | AU23: 0 | AV23: 0 | AX23: =IF(T_DataComboFile[[#This Row],[G&S reporting level indicator]]=1,$AX$16,"Not applicable") -> Not applicable | AY23: =IF(AND($AX$16="Level 3",T_DataComboFile[[#This Row],[Econ3]] = "Goods and services"),IF(T_DataComboFile[[#This Row],[Econ4]] = T_DataComboFile[[#This Row],[Econ3]],1,0),IF(AND($AX$16="Level 4",T_DataComboFile[[#This Row],[Econ4]] = "Goods and services"),0,1)) -> 0 | AZ23: =T_DataComboFile[[#This Row],[2016/17_Source]]*T_DataComboFile[[#This Row],[G&S reporting level indicator]] -> 0 | BA23: =T_DataComboFile[[#This Row],[2017/18_Source]]*T_DataComboFile[[#This Row],[G&S reporting level indicator]] -> 0 | BB23: =T_DataComboFile[[#This Row],[2018/19_Source]]*T_DataComboFile[[#This Row],[G&S reporting level indicator]] -> 0 | BC23: =T_DataComboFile[[#This Row],[2019/20 Main appropriation_Source]]*T_DataComboFile[[#This Row],[G&S reporting level indicator]] -> 0 | BD23: =T_DataComboFile[[#This Row],[2019/20 Adjusted appropriation_Source]]*T_DataComboFile[[#This Row],[G&S reporting level indicator]] -> 0 | BE23: =T_DataComboFile[[#This Row],[2019/20 Revised estimate_Source]]*T_DataComboFile[[#This Row],[G&S reporting level indicator]] -> 0 | BF23: =T_DataComboFile[[#This Row],[2019/20 Preliminary outcome_Source]]*T_DataComboFile[[#This Row],[G&S reporting level indicator]] -> 0 | BG23: =T_DataComboFile[[#This Row],[2020/21 Original_Source]]*T_DataComboFile[[#This Row],[G&S reporting level indicator]] -> 0 | BH23: =T_DataComboFile[[#This Row],[2020/21 SAB_Source]]*T_DataComboFile[[#This Row],[G&S reporting level indicator]] -> 0 | BI23: =T_DataComboFile[[#This Row],[2020/21 Baseline_Source]]*T_DataComboFile[[#This Row],[G&S reporting level indicator]] -> 0 | BJ23: =T_DataComboFile[[#This Row],[2021/22 Baseline_Source]]*T_DataComboFile[[#This Row],[G&S reporting level indicator]] -> 0 | BK23: =T_DataComboFile[[#This Row],[2022/23 Baseline_Source]]*T_DataComboFile[[#This Row],[G&S reporting level indicator]] -> 0 | BL23: =T_DataComboFile[[#This Row],[2023/24 Baseline_Source]]*T_DataComboFile[[#This Row],[G&S reporting level indicator]] -> 0 | BS23: =T_DataComboFile[[#This Row],[2021/22 Baseline]]+T_DataComboFile[[#This Row],[2021/22 Reduction]]+T_DataComboFile[[#This Row],[2021/22 Increase]] -> 0 | BT23: =T_DataComboFile[[#This Row],[2022/23 Baseline]]+T_DataComboFile[[#This Row],[2022/23 Reduction]]+T_DataComboFile[[#This Row],[2022/23 Increase]] -> 0 | BU23: =T_DataComboFile[[#This Row],[2023/24 Baseline]]+T_DataComboFile[[#This Row],[2023/24 Reduction]]+T_DataComboFile[[#This Row],[2023/24 Increase]] -> 0
C24: 2021_22 | D24: ENE2020 | E24: 6 | F24: 1 | G24: 1 | I24: 9125 | J24: 6 | K24: 1 | L24: 1 | N24: 009125 | O24: 06|01|01 | P24: 1 | Q24: 1 | R24: 2 | S24: 6 | T24: 6 | U24: 01|01|02|06|06 | V24: National | W24: International Relations and Cooperation | X24: Administration | Y24: Ministry | AA24: Current | AB24: Current payments | AC24: Goods and services | AD24: Audit costs: External | AE24: Audit costs: External | AI24: 0 | AJ24: 0 | AK24: 0 | AL24: 0 | AM24: 0 | AN24: 0 | AO24: 0 | AP24: 0 | AQ24: 0 | AR24: 0 | AS24: 0 | AT24: 0 | AU24: 0 | AV24: 0 | AX24: =IF(T_DataComboFile[[#This Row],[G&S reporting level indicator]]=1,$AX$16,"Not applicable") -> Not applicable | AY24: =IF(AND($AX$16="Level 3",T_DataComboFile[[#This Row],[Econ3]] = "Goods and services"),IF(T_DataComboFile[[#This Row],[Econ4]] = T_DataComboFile[[#This Row],[Econ3]],1,0),IF(AND($AX$16="Level 4",T_DataComboFile[[#This Row],[Econ4]] = "Goods and services"),0,1)) -> 0 | AZ24: =T_DataComboFile[[#This Row],[2016/17_Source]]*T_DataComboFile[[#This Row],[G&S reporting level indicator]] -> 0 | BA24: =T_DataComboFile[[#This Row],[2017/18_Source]]*T_DataComboFile[[#This Row],[G&S reporting level indicator]] -> 0 | BB24: =T_DataComboFile[[#This Row],[2018/19_Source]]*T_DataComboFile[[#This Row],[G&S reporting level indicator]] -> 0 | BC24: =T_DataComboFile[[#This Row],[2019/20 Main appropriation_Source]]*T_DataComboFile[[#This Row],[G&S reporting level indicator]] -> 0 | BD24: =T_DataComboFile[[#This Row],[2019/20 Adjusted appropriation_Source]]*T_DataComboFile[[#This Row],[G&S reporting level indicator]] -> 0 | BE24: =T_DataComboFile[[#This Row],[2019/20 Revised estimate_Source]]*T_DataComboFile[[#This Row],[G&S reporting level indicator]] -> 0 | BF24: =T_DataComboFile[[#This Row],[2019/20 Preliminary outcome_Source]]*T_DataComboFile[[#This Row],[G&S reporting level indicator]] -> 0 | BG24: =T_DataComboFile[[#This Row],[2020/21 Original_Source]]*T_DataComboFile[[#This Row],[G&S reporting level indicator]] -> 0 | BH24: =T_DataComboFile[[#This Row],[2020/21 SAB_Source]]*T_DataComboFile[[#This Row],[G&S reporting level indicator]] -> 0 | BI24: =T_DataComboFile[[#This Row],[2020/21 Baseline_Source]]*T_DataComboFile[[#This Row],[G&S reporting level indicator]] -> 0 | BJ24: =T_DataComboFile[[#This Row],[2021/22 Baseline_Source]]*T_DataComboFile[[#This Row],[G&S reporting level indicator]] -> 0 | BK24: =T_DataComboFile[[#This Row],[2022/23 Baseline_Source]]*T_DataComboFile[[#This Row],[G&S reporting level indicator]] -> 0 | BL24: =T_DataComboFile[[#This Row],[2023/24 Baseline_Source]]*T_DataComboFile[[#This Row],[G&S reporting level indicator]] -> 0 | BS24: =T_DataComboFile[[#This Row],[2021/22 Baseline]]+T_DataComboFile[[#This Row],[2021/22 Reduction]]+T_DataComboFile[[#This Row],[2021/22 Increase]] -> 0 | BT24: =T_DataComboFile[[#This Row],[2022/23 Baseline]]+T_DataComboFile[[#This Row],[2022/23 Reduction]]+T_DataComboFile[[#This Row],[2022/23 Increase]] -> 0 | BU24: =T_DataComboFile[[#This Row],[2023/24 Baseline]]+T_DataComboFile[[#This Row],[2023/24 Reduction]]+T_DataComboFile[[#This Row],[2023/24 Increase]] -> 0
C25: 2021_22 | D25: ENE2020 | E25: 6 | F25: 1 | G25: 1 | I25: 9126 | J25: 6 | K25: 1 | L25: 1 | N25: 009126 | O25: 06|01|01 | P25: 1 | Q25: 1 | R25: 2 | S25: 7 | T25: 7 | U25: 01|01|02|07|07 | V25: National | W25: International Relations and Cooperation | X25: Administration | Y25: Ministry | AA25: Current | AB25: Current payments | AC25: Goods and services | AD25: Bursaries: Employees | AE25: Bursaries: Employees | AI25: 0 | AJ25: 0 | AK25: 0 | AL25: 0 | AM25: 0 | AN25: 0 | AO25: 0 | AP25: 0 | AQ25: 0 | AR25: 0 | AS25: 0 | AT25: 0 | AU25: 0 | AV25: 0 | AX25: =IF(T_DataComboFile[[#This Row],[G&S reporting level indicator]]=1,$AX$16,"Not applicable") -> Not applicable | AY25: =IF(AND($AX$16="Level 3",T_DataComboFile[[#This Row],[Econ3]] = "Goods and services"),IF(T_DataComboFile[[#This Row],[Econ4]] = T_DataComboFile[[#This Row],[Econ3]],1,0),IF(AND($AX$16="Level 4",T_DataComboFile[[#This Row],[Econ4]] = "Goods and services"),0,1)) -> 0 | AZ25: =T_DataComboFile[[#This Row],[2016/17_Source]]*T_DataComboFile[[#This Row],[G&S reporting level indicator]] -> 0 | BA25: =T_DataComboFile[[#This Row],[2017/18_Source]]*T_DataComboFile[[#This Row],[G&S reporting level indicator]] -> 0 | BB25: =T_DataComboFile[[#This Row],[2018/19_Source]]*T_DataComboFile[[#This Row],[G&S reporting level indicator]] -> 0 | BC25: =T_DataComboFile[[#This Row],[2019/20 Main appropriation_Source]]*T_DataComboFile[[#This Row],[G&S reporting level indicator]] -> 0 | BD25: =T_DataComboFile[[#This Row],[2019/20 Adjusted appropriation_Source]]*T_DataComboFile[[#This Row],[G&S reporting level indicator]] -> 0 | BE25: =T_DataComboFile[[#This Row],[2019/20 Revised estimate_Source]]*T_DataComboFile[[#This Row],[G&S reporting level indicator]] -> 0 | BF25: =T_DataComboFile[[#This Row],[2019/20 Preliminary outcome_Source]]*T_DataComboFile[[#This Row],[G&S reporting level indicator]] -> 0 | BG25: =T_DataComboFile[[#This Row],[2020/21 Original_Source]]*T_DataComboFile[[#This Row],[G&S reporting level indicator]] -> 0 | BH25: =T_DataComboFile[[#This Row],[2020/21 SAB_Source]]*T_DataComboFile[[#This Row],[G&S reporting level indicator]] -> 0 | BI25: =T_DataComboFile[[#This Row],[2020/21 Baseline_Source]]*T_DataComboFile[[#This Row],[G&S reporting level indicator]] -> 0 | BJ25: =T_DataComboFile[[#This Row],[2021/22 Baseline_Source]]*T_DataComboFile[[#This Row],[G&S reporting level indicator]] -> 0 | BK25: =T_DataComboFile[[#This Row],[2022/23 Baseline_Source]]*T_DataComboFile[[#This Row],[G&S reporting level indicator]] -> 0 | BL25: =T_DataComboFile[[#This Row],[2023/24 Baseline_Source]]*T_DataComboFile[[#This Row],[G&S reporting level indicator]] -> 0 | BS25: =T_DataComboFile[[#This Row],[2021/22 Baseline]]+T_DataComboFile[[#This Row],[2021/22 Reduction]]+T_DataComboFile[[#This Row],[2021/22 Increase]] -> 0 | BT25: =T_DataComboFile[[#This Row],[2022/23 Baseline]]+T_DataComboFile[[#This Row],[2022/23 Reduction]]+T_DataComboFile[[#This Row],[2022/23 Increase]] -> 0 | BU25: =T_DataComboFile[[#This Row],[2023/24 Baseline]]+T_DataComboFile[[#This Row],[2023/24 Reduction]]+T_DataComboFile[[#This Row],[2023/24 Increase]] -> 0
C26: 2021_22 | D26: ENE2020 | E26: 6 | F26: 1 | G26: 1 | I26: 9127 | J26: 6 | K26: 1 | L26: 1 | N26: 009127 | O26: 06|01|01 | P26: 1 | Q26: 1 | R26: 2 | S26: 8 | T26: 8 | U26: 01|01|02|08|08 | V26: National | W26: International Relations and Cooperation | X26: Administration | Y26: Ministry | AA26: Current | AB26: Current payments | AC26: Goods and services | AD26: Catering: Departmental activities | AE26: Catering: Departmental activities | AI26: 0 | AJ26: 0 | AK26: 0 | AL26: 0 | AM26: 0 | AN26: 0 | AO26: 0 | AP26: 0 | AQ26: 0 | AR26: 0 | AS26: 0 | AT26: 0 | AU26: 0 | AV26: 0 | AX26: =IF(T_DataComboFile[[#This Row],[G&S reporting level indicator]]=1,$AX$16,"Not applicable") -> Not applicable | AY26: =IF(AND($AX$16="Level 3",T_DataComboFile[[#This Row],[Econ3]] = "Goods and services"),IF(T_DataComboFile[[#This Row],[Econ4]] = T_DataComboFile[[#This Row],[Econ3]],1,0),IF(AND($AX$16="Level 4",T_DataComboFile[[#This Row],[Econ4]] = "Goods and services"),0,1)) -> 0 | AZ26: =T_DataComboFile[[#This Row],[2016/17_Source]]*T_DataComboFile[[#This Row],[G&S reporting level indicator]] -> 0 | BA26: =T_DataComboFile[[#This Row],[2017/18_Source]]*T_DataComboFile[[#This Row],[G&S reporting level indicator]] -> 0 | BB26: =T_DataComboFile[[#This Row],[2018/19_Source]]*T_DataComboFile[[#This Row],[G&S reporting level indicator]] -> 0 | BC26: =T_DataComboFile[[#This Row],[2019/20 Main appropriation_Source]]*T_DataComboFile[[#This Row],[G&S reporting level indicator]] -> 0 | BD26: =T_DataComboFile[[#This Row],[2019/20 Adjusted appropriation_Source]]*T_DataComboFile[[#This Row],[G&S reporting level indicator]] -> 0 | BE26: =T_DataComboFile[[#This Row],[2019/20 Revised estimate_Source]]*T_DataComboFile[[#This Row],[G&S reporting level indicator]] -> 0 | BF26: =T_DataComboFile[[#This Row],[2019/20 Preliminary outcome_Source]]*T_DataComboFile[[#This Row],[G&S reporting level indicator]] -> 0 | BG26: =T_DataComboFile[[#This Row],[2020/21 Original_Source]]*T_DataComboFile[[#This Row],[G&S reporting level indicator]] -> 0 | BH26: =T_DataComboFile[[#This Row],[2020/21 SAB_Source]]*T_DataComboFile[[#This Row],[G&S reporting level indicator]] -> 0 | BI26: =T_DataComboFile[[#This Row],[2020/21 Baseline_Source]]*T_DataComboFile[[#This Row],[G&S reporting level indicator]] -> 0 | BJ26: =T_DataComboFile[[#This Row],[2021/22 Baseline_Source]]*T_DataComboFile[[#This Row],[G&S reporting level indicator]] -> 0 | BK26: =T_DataComboFile[[#This Row],[2022/23 Baseline_Source]]*T_DataComboFile[[#This Row],[G&S reporting level indicator]] -> 0 | BL26: =T_DataComboFile[[#This Row],[2023/24 Baseline_Source]]*T_DataComboFile[[#This Row],[G&S reporting level indicator]] -> 0 | BS26: =T_DataComboFile[[#This Row],[2021/22 Baseline]]+T_DataComboFile[[#This Row],[2021/22 Reduction]]+T_DataComboFile[[#This Row],[2021/22 Increase]] -> 0 | BT26: =T_DataComboFile[[#This Row],[2022/23 Baseline]]+T_DataComboFile[[#This Row],[2022/23 Reduction]]+T_DataComboFile[[#This Row],[2022/23 Increase]] -> 0 | BU26: =T_DataComboFile[[#This Row],[2023/24 Baseline]]+T_DataComboFile[[#This Row],[2023/24 Reduction]]+T_DataComboFile[[#This Row],[2023/24 Increase]] -> 0
C27: 2021_22 | D27: ENE2020 | E27: 6 | F27: 1 | G27: 1 | I27: 9128 | J27: 6 | K27: 1 | L27: 1 | N27: 009128 | O27: 06|01|01 | P27: 1 | Q27: 1 | R27: 2 | S27: 9 | T27: 9 | U27: 01|01|02|09|09 | V27: National | W27: International Relations and Cooperation | X27: Administration | Y27: Ministry | AA27: Current | AB27: Current payments | AC27: Goods and services | AD27: Communication (G&S) | AE27: Communication (G&S) | AI27: 0 | AJ27: 0 | AK27: 0 | AL27: 0 | AM27: 0 | AN27: 0 | AO27: 0 | AP27: 0 | AQ27: 0 | AR27: 0 | AS27: 0 | AT27: 0 | AU27: 0 | AV27: 0 | AX27: =IF(T_DataComboFile[[#This Row],[G&S reporting level indicator]]=1,$AX$16,"Not applicable") -> Not applicable | AY27: =IF(AND($AX$16="Level 3",T_DataComboFile[[#This Row],[Econ3]] = "Goods and services"),IF(T_DataComboFile[[#This Row],[Econ4]] = T_DataComboFile[[#This Row],[Econ3]],1,0),IF(AND($AX$16="Level 4",T_DataComboFile[[#This Row],[Econ4]] = "Goods and services"),0,1)) -> 0 | AZ27: =T_DataComboFile[[#This Row],[2016/17_Source]]*T_DataComboFile[[#This Row],[G&S reporting level indicator]] -> 0 | BA27: =T_DataComboFile[[#This Row],[2017/18_Source]]*T_DataComboFile[[#This Row],[G&S reporting level indicator]] -> 0 | BB27: =T_DataComboFile[[#This Row],[2018/19_Source]]*T_DataComboFile[[#This Row],[G&S reporting level indicator]] -> 0 | BC27: =T_DataComboFile[[#This Row],[2019/20 Main appropriation_Source]]*T_DataComboFile[[#This Row],[G&S reporting level indicator]] -> 0 | BD27: =T_DataComboFile[[#This Row],[2019/20 Adjusted appropriation_Source]]*T_DataComboFile[[#This Row],[G&S reporting level indicator]] -> 0 | BE27: =T_DataComboFile[[#This Row],[2019/20 Revised estimate_Source]]*T_DataComboFile[[#This Row],[G&S reporting level indicator]] -> 0 | BF27: =T_DataComboFile[[#This Row],[2019/20 Preliminary outcome_Source]]*T_DataComboFile[[#This Row],[G&S reporting level indicator]] -> 0 | BG27: =T_DataComboFile[[#This Row],[2020/21 Original_Source]]*T_DataComboFile[[#This Row],[G&S reporting level indicator]] -> 0 | BH27: =T_DataComboFile[[#This Row],[2020/21 SAB_Source]]*T_DataComboFile[[#This Row],[G&S reporting level indicator]] -> 0 | BI27: =T_DataComboFile[[#This Row],[2020/21 Baseline_Source]]*T_DataComboFile[[#This Row],[G&S reporting level indicator]] -> 0 | BJ27: =T_DataComboFile[[#This Row],[2021/22 Baseline_Source]]*T_DataComboFile[[#This Row],[G&S reporting level indicator]] -> 0 | BK27: =T_DataComboFile[[#This Row],[2022/23 Baseline_Source]]*T_DataComboFile[[#This Row],[G&S reporting level indicator]] -> 0 | BL27: =T_DataComboFile[[#This Row],[2023/24 Baseline_Source]]*T_DataComboFile[[#This Row],[G&S reporting level indicator]] -> 0 | BS27: =T_DataComboFile[[#This Row],[2021/22 Baseline]]+T_DataComboFile[[#This Row],[2021/22 Reduction]]+T_DataComboFile[[#This Row],[2021/22 Increase]] -> 0 | BT27: =T_DataComboFile[[#This Row],[2022/23 Baseline]]+T_DataComboFile[[#This Row],[2022/23 Reduction]]+T_DataComboFile[[#This Row],[2022/23 Increase]] -> 0 | BU27: =T_DataComboFile[[#This Row],[2023/24 Baseline]]+T_DataComboFile[[#This Row],[2023/24 Reduction]]+T_DataComboFile[[#This Row],[2023/24 Increase]] -> 0
C28: 2021_22 | D28: ENE2020 | E28: 6 | F28: 1 | G28: 1 | I28: 9129 | J28: 6 | K28: 1 | L28: 1 | N28: 009129 | O28: 06|01|01 | P28: 1 | Q28: 1 | R28: 2 | S28: 10 | T28: 10 | U28: 01|01|02|10|10 | V28: National | W28: International Relations and Cooperation | X28: Administration | Y28: Ministry | AA28: Current | AB28: Current payments | AC28: Goods and services | AD28: Computer services | AE28: Computer services | AI28: 0 | AJ28: 0 | AK28: 0 | AL28: 0 | AM28: 0 | AN28: 0 | AO28: 0 | AP28: 0 | AQ28: 0 | AR28: 0 | AS28: 0 | AT28: 0 | AU28: 0 | AV28: 0 | AX28: =IF(T_DataComboFile[[#This Row],[G&S reporting level indicator]]=1,$AX$16,"Not applicable") -> Not applicable | AY28: =IF(AND($AX$16="Level 3",T_DataComboFile[[#This Row],[Econ3]] = "Goods and services"),IF(T_DataComboFile[[#This Row],[Econ4]] = T_DataComboFile[[#This Row],[Econ3]],1,0),IF(AND($AX$16="Level 4",T_DataComboFile[[#This Row],[Econ4]] = "Goods and services"),0,1)) -> 0 | AZ28: =T_DataComboFile[[#This Row],[2016/17_Source]]*T_DataComboFile[[#This Row],[G&S reporting level indicator]] -> 0 | BA28: =T_DataComboFile[[#This Row],[2017/18_Source]]*T_DataComboFile[[#This Row],[G&S reporting level indicator]] -> 0 | BB28: =T_DataComboFile[[#This Row],[2018/19_Source]]*T_DataComboFile[[#This Row],[G&S reporting level indicator]] -> 0 | BC28: =T_DataComboFile[[#This Row],[2019/20 Main appropriation_Source]]*T_DataComboFile[[#This Row],[G&S reporting level indicator]] -> 0 | BD28: =T_DataComboFile[[#This Row],[2019/20 Adjusted appropriation_Source]]*T_DataComboFile[[#This Row],[G&S reporting level indicator]] -> 0 | BE28: =T_DataComboFile[[#This Row],[2019/20 Revised estimate_Source]]*T_DataComboFile[[#This Row],[G&S reporting level indicator]] -> 0 | BF28: =T_DataComboFile[[#This Row],[2019/20 Preliminary outcome_Source]]*T_DataComboFile[[#This Row],[G&S reporting level indicator]] -> 0 | BG28: =T_DataComboFile[[#This Row],[2020/21 Original_Source]]*T_DataComboFile[[#This Row],[G&S reporting level indicator]] -> 0 | BH28: =T_DataComboFile[[#This Row],[2020/21 SAB_Source]]*T_DataComboFile[[#This Row],[G&S reporting level indicator]] -> 0 | BI28: =T_DataComboFile[[#This Row],[2020/21 Baseline_Source]]*T_DataComboFile[[#This Row],[G&S reporting level indicator]] -> 0 | BJ28: =T_DataComboFile[[#This Row],[2021/22 Baseline_Source]]*T_DataComboFile[[#This Row],[G&S reporting level indicator]] -> 0 | BK28: =T_DataComboFile[[#This Row],[2022/23 Baseline_Source]]*T_DataComboFile[[#This Row],[G&S reporting level indicator]] -> 0 | BL28: =T_DataComboFile[[#This Row],[2023/24 Baseline_Source]]*T_DataComboFile[[#This Row],[G&S reporting level indicator]] -> 0 | BS28: =T_DataComboFile[[#This Row],[2021/22 Baseline]]+T_DataComboFile[[#This Row],[2021/22 Reduction]]+T_DataComboFile[[#This Row],[2021/22 Increase]] -> 0 | BT28: =T_DataComboFile[[#This Row],[2022/23 Baseline]]+T_DataComboFile[[#This Row],[2022/23 Reduction]]+T_DataComboFile[[#This Row],[2022/23 Increase]] -> 0 | BU28: =T_DataComboFile[[#This Row],[2023/24 Baseline]]+T_DataComboFile[[#This Row],[2023/24 Reduction]]+T_DataComboFile[[#This Row],[2023/24 Increase]] -> 0
C29: 2021_22 | D29: ENE2020 | E29: 6 | F29: 1 | G29: 1 | I29: 9130 | J29: 6 | K29: 1 | L29: 1 | N29: 009130 | O29: 06|01|01 | P29: 1 | Q29: 1 | R29: 2 | S29: 11 | T29: 11 | U29: 01|01|02|11|11 | V29: National | W29: International Relations and Cooperation | X29: Administration | Y29: Ministry | AA29: Current | AB29: Current payments | AC29: Goods and services | AD29: Consultants: Business and advisory services | AE29: Consultants: Business and advisory services | AI29: 0 | AJ29: 0 | AK29: 0 | AL29: 0 | AM29: 0 | AN29: 0 | AO29: 0 | AP29: 0 | AQ29: 0 | AR29: 0 | AS29: 0 | AT29: 0 | AU29: 0 | AV29: 0 | AX29: =IF(T_DataComboFile[[#This Row],[G&S reporting level indicator]]=1,$AX$16,"Not applicable") -> Not applicable | AY29: =IF(AND($AX$16="Level 3",T_DataComboFile[[#This Row],[Econ3]] = "Goods and services"),IF(T_DataComboFile[[#This Row],[Econ4]] = T_DataComboFile[[#This Row],[Econ3]],1,0),IF(AND($AX$16="Level 4",T_DataComboFile[[#This Row],[Econ4]] = "Goods and services"),0,1)) -> 0 | AZ29: =T_DataComboFile[[#This Row],[2016/17_Source]]*T_DataComboFile[[#This Row],[G&S reporting level indicator]] -> 0 | BA29: =T_DataComboFile[[#This Row],[2017/18_Source]]*T_DataComboFile[[#This Row],[G&S reporting level indicator]] -> 0 | BB29: =T_DataComboFile[[#This Row],[2018/19_Source]]*T_DataComboFile[[#This Row],[G&S reporting level indicator]] -> 0 | BC29: =T_DataComboFile[[#This Row],[2019/20 Main appropriation_Source]]*T_DataComboFile[[#This Row],[G&S reporting level indicator]] -> 0 | BD29: =T_DataComboFile[[#This Row],[2019/20 Adjusted appropriation_Source]]*T_DataComboFile[[#This Row],[G&S reporting level indicator]] -> 0 | BE29: =T_DataComboFile[[#This Row],[2019/20 Revised estimate_Source]]*T_DataComboFile[[#This Row],[G&S reporting level indicator]] -> 0 | BF29: =T_DataComboFile[[#This Row],[2019/20 Preliminary outcome_Source]]*T_DataComboFile[[#This Row],[G&S reporting level indicator]] -> 0 | BG29: =T_DataComboFile[[#This Row],[2020/21 Original_Source]]*T_DataComboFile[[#This Row],[G&S reporting level indicator]] -> 0 | BH29: =T_DataComboFile[[#This Row],[2020/21 SAB_Source]]*T_DataComboFile[[#This Row],[G&S reporting level indicator]] -> 0 | BI29: =T_DataComboFile[[#This Row],[2020/21 Baseline_Source]]*T_DataComboFile[[#This Row],[G&S reporting level indicator]] -> 0 | BJ29: =T_DataComboFile[[#This Row],[2021/22 Baseline_Source]]*T_DataComboFile[[#This Row],[G&S reporting level indicator]] -> 0 | BK29: =T_DataComboFile[[#This Row],[2022/23 Baseline_Source]]*T_DataComboFile[[#This Row],[G&S reporting level indicator]] -> 0 | BL29: =T_DataComboFile[[#This Row],[2023/24 Baseline_Source]]*T_DataComboFile[[#This Row],[G&S reporting level indicator]] -> 0 | BS29: =T_DataComboFile[[#This Row],[2021/22 Baseline]]+T_DataComboFile[[#This Row],[2021/22 Reduction]]+T_DataComboFile[[#This Row],[2021/22 Increase]] -> 0 | BT29: =T_DataComboFile[[#This Row],[2022/23 Baseline]]+T_DataComboFile[[#This Row],[2022/23 Reduction]]+T_DataComboFile[[#This Row],[2022/23 Increase]] -> 0 | BU29: =T_DataComboFile[[#This Row],[2023/24 Baseline]]+T_DataComboFile[[#This Row],[2023/24 Reduction]]+T_DataComboFile[[#This Row],[2023/24 Increase]] -> 0
C30: 2021_22 | D30: ENE2020 | E30: 6 | F30: 1 | G30: 1 | I30: 9131 | J30: 6 | K30: 1 | L30: 1 | N30: 009131 | O30: 06|01|01 | P30: 1 | Q30: 1 | R30: 2 | S30: 12 | T30: 12 | U30: 01|01|02|12|12 | V30: National | W30: International Relations and Cooperation | X30: Administration | Y30: Ministry | AA30: Current | AB30: Current payments | AC30: Goods and services | AD30: Infrastructure and planning services | AE30: Infrastructure and planning services | AI30: 0 | AJ30: 0 | AK30: 0 | AL30: 0 | AM30: 0 | AN30: 0 | AO30: 0 | AP30: 0 | AQ30: 0 | AR30: 0 | AS30: 0 | AT30: 0 | AU30: 0 | AV30: 0 | AX30: =IF(T_DataComboFile[[#This Row],[G&S reporting level indicator]]=1,$AX$16,"Not applicable") -> Not applicable | AY30: =IF(AND($AX$16="Level 3",T_DataComboFile[[#This Row],[Econ3]] = "Goods and services"),IF(T_DataComboFile[[#This Row],[Econ4]] = T_DataComboFile[[#This Row],[Econ3]],1,0),IF(AND($AX$16="Level 4",T_DataComboFile[[#This Row],[Econ4]] = "Goods and services"),0,1)) -> 0 | AZ30: =T_DataComboFile[[#This Row],[2016/17_Source]]*T_DataComboFile[[#This Row],[G&S reporting level indicator]] -> 0 | BA30: =T_DataComboFile[[#This Row],[2017/18_Source]]*T_DataComboFile[[#This Row],[G&S reporting level indicator]] -> 0 | BB30: =T_DataComboFile[[#This Row],[2018/19_Source]]*T_DataComboFile[[#This Row],[G&S reporting level indicator]] -> 0 | BC30: =T_DataComboFile[[#This Row],[2019/20 Main appropriation_Source]]*T_DataComboFile[[#This Row],[G&S reporting level indicator]] -> 0 | BD30: =T_DataComboFile[[#This Row],[2019/20 Adjusted appropriation_Source]]*T_DataComboFile[[#This Row],[G&S reporting level indicator]] -> 0 | BE30: =T_DataComboFile[[#This Row],[2019/20 Revised estimate_Source]]*T_DataComboFile[[#This Row],[G&S reporting level indicator]] -> 0 | BF30: =T_DataComboFile[[#This Row],[2019/20 Preliminary outcome_Source]]*T_DataComboFile[[#This Row],[G&S reporting level indicator]] -> 0 | BG30: =T_DataComboFile[[#This Row],[2020/21 Original_Source]]*T_DataComboFile[[#This Row],[G&S reporting level indicator]] -> 0 | BH30: =T_DataComboFile[[#This Row],[2020/21 SAB_Source]]*T_DataComboFile[[#This Row],[G&S reporting level indicator]] -> 0 | BI30: =T_DataComboFile[[#This Row],[2020/21 Baseline_Source]]*T_DataComboFile[[#This Row],[G&S reporting level indicator]] -> 0 | BJ30: =T_DataComboFile[[#This Row],[2021/22 Baseline_Source]]*T_DataComboFile[[#This Row],[G&S reporting level indicator]] -> 0 | BK30: =T_DataComboFile[[#This Row],[2022/23 Baseline_Source]]*T_DataComboFile[[#This Row],[G&S reporting level indicator]] -> 0 | BL30: =T_DataComboFile[[#This Row],[2023/24 Baseline_Source]]*T_DataComboFile[[#This Row],[G&S reporting level indicator]] -> 0 | BS30: =T_DataComboFile[[#This Row],[2021/22 Baseline]]+T_DataComboFile[[#This Row],[2021/22 Reduction]]+T_DataComboFile[[#This Row],[2021/22 Increase]] -> 0 | BT30: =T_DataComboFile[[#This Row],[2022/23 Baseline]]+T_DataComboFile[[#This Row],[2022/23 Reduction]]+T_DataComboFile[[#This Row],[2022/23 Increase]] -> 0 | BU30: =T_DataComboFile[[#This Row],[2023/24 Baseline]]+T_DataComboFile[[#This Row],[2023/24 Reduction]]+T_DataComboFile[[#This Row],[2023/24 Increase]] -> 0
C31: 2021_22 | D31: ENE2020 | E31: 6 | F31: 1 | G31: 1 | I31: 9132 | J31: 6 | K31: 1 | L31: 1 | N31: 009132 | O31: 06|01|01 | P31: 1 | Q31: 1 | R31: 2 | S31: 13 | T31: 13 | U31: 01|01|02|13|13 | V31: National | W31: International Relations and Cooperation | X31: Administration | Y31: Ministry | AA31: Current | AB31: Current payments | AC31: Goods and services | AD31: Laboratory services | AE31: Laboratory services | AI31: 0 | AJ31: 0 | AK31: 0 | AL31: 0 | AM31: 0 | AN31: 0 | AO31: 0 | AP31: 0 | AQ31: 0 | AR31: 0 | AS31: 0 | AT31: 0 | AU31: 0 | AV31: 0 | AX31: =IF(T_DataComboFile[[#This Row],[G&S reporting level indicator]]=1,$AX$16,"Not applicable") -> Not applicable | AY31: =IF(AND($AX$16="Level 3",T_DataComboFile[[#This Row],[Econ3]] = "Goods and services"),IF(T_DataComboFile[[#This Row],[Econ4]] = T_DataComboFile[[#This Row],[Econ3]],1,0),IF(AND($AX$16="Level 4",T_DataComboFile[[#This Row],[Econ4]] = "Goods and services"),0,1)) -> 0 | AZ31: =T_DataComboFile[[#This Row],[2016/17_Source]]*T_DataComboFile[[#This Row],[G&S reporting level indicator]] -> 0 | BA31: =T_DataComboFile[[#This Row],[2017/18_Source]]*T_DataComboFile[[#This Row],[G&S reporting level indicator]] -> 0 | BB31: =T_DataComboFile[[#This Row],[2018/19_Source]]*T_DataComboFile[[#This Row],[G&S reporting level indicator]] -> 0 | BC31: =T_DataComboFile[[#This Row],[2019/20 Main appropriation_Source]]*T_DataComboFile[[#This Row],[G&S reporting level indicator]] -> 0 | BD31: =T_DataComboFile[[#This Row],[2019/20 Adjusted appropriation_Source]]*T_DataComboFile[[#This Row],[G&S reporting level indicator]] -> 0 | BE31: =T_DataComboFile[[#This Row],[2019/20 Revised estimate_Source]]*T_DataComboFile[[#This Row],[G&S reporting level indicator]] -> 0 | BF31: =T_DataComboFile[[#This Row],[2019/20 Preliminary outcome_Source]]*T_DataComboFile[[#This Row],[G&S reporting level indicator]] -> 0 | BG31: =T_DataComboFile[[#This Row],[2020/21 Original_Source]]*T_DataComboFile[[#This Row],[G&S reporting level indicator]] -> 0 | BH31: =T_DataComboFile[[#This Row],[2020/21 SAB_Source]]*T_DataComboFile[[#This Row],[G&S reporting level indicator]] -> 0 | BI31: =T_DataComboFile[[#This Row],[2020/21 Baseline_Source]]*T_DataComboFile[[#This Row],[G&S reporting level indicator]] -> 0 | BJ31: =T_DataComboFile[[#This Row],[2021/22 Baseline_Source]]*T_DataComboFile[[#This Row],[G&S reporting level indicator]] -> 0 | BK31: =T_DataComboFile[[#This Row],[2022/23 Baseline_Source]]*T_DataComboFile[[#This Row],[G&S reporting level indicator]] -> 0 | BL31: =T_DataComboFile[[#This Row],[2023/24 Baseline_Source]]*T_DataComboFile[[#This Row],[G&S reporting level indicator]] -> 0 | BS31: =T_DataComboFile[[#This Row],[2021/22 Baseline]]+T_DataComboFile[[#This Row],[2021/22 Reduction]]+T_DataComboFile[[#This Row],[2021/22 Increase]] -> 0 | BT31: =T_DataComboFile[[#This Row],[2022/23 Baseline]]+T_DataComboFile[[#This Row],[2022/23 Reduction]]+T_DataComboFile[[#This Row],[2022/23 Increase]] -> 0 | BU31: =T_DataComboFile[[#This Row],[2023/24 Baseline]]+T_DataComboFile[[#This Row],[2023/24 Reduction]]+T_DataComboFile[[#This Row],[2023/24 Increase]] -> 0
C32: 2021_22 | D32: ENE2020 | E32: 6 | F32: 1 | G32: 1 | I32: 9133 | J32: 6 | K32: 1 | L32: 1 | N32: 009133 | O32: 06|01|01 | P32: 1 | Q32: 1 | R32: 2 | S32: 14 | T32: 14 | U32: 01|01|02|14|14 | V32: National | W32: International Relations and Cooperation | X32: Administration | Y32: Ministry | AA32: Current | AB32: Current payments | AC32: Goods and services | AD32: Legal services (G&S) | AE32: Legal services (G&S) | AI32: 0 | AJ32: 0 | AK32: 0 | AL32: 0 | AM32: 0 | AN32: 0 | AO32: 0 | AP32: 0 | AQ32: 0 | AR32: 0 | AS32: 0 | AT32: 0 | AU32: 0 | AV32: 0 | AX32: =IF(T_DataComboFile[[#This Row],[G&S reporting level indicator]]=1,$AX$16,"Not applicable") -> Not applicable | AY32: =IF(AND($AX$16="Level 3",T_DataComboFile[[#This Row],[Econ3]] = "Goods and services"),IF(T_DataComboFile[[#This Row],[Econ4]] = T_DataComboFile[[#This Row],[Econ3]],1,0),IF(AND($AX$16="Level 4",T_DataComboFile[[#This Row],[Econ4]] = "Goods and services"),0,1)) -> 0 | AZ32: =T_DataComboFile[[#This Row],[2016/17_Source]]*T_DataComboFile[[#This Row],[G&S reporting level indicator]] -> 0 | BA32: =T_DataComboFile[[#This Row],[2017/18_Source]]*T_DataComboFile[[#This Row],[G&S reporting level indicator]] -> 0 | BB32: =T_DataComboFile[[#This Row],[2018/19_Source]]*T_DataComboFile[[#This Row],[G&S reporting level indicator]] -> 0 | BC32: =T_DataComboFile[[#This Row],[2019/20 Main appropriation_Source]]*T_DataComboFile[[#This Row],[G&S reporting level indicator]] -> 0 | BD32: =T_DataComboFile[[#This Row],[2019/20 Adjusted appropriation_Source]]*T_DataComboFile[[#This Row],[G&S reporting level indicator]] -> 0 | BE32: =T_DataComboFile[[#This Row],[2019/20 Revised estimate_Source]]*T_DataComboFile[[#This Row],[G&S reporting level indicator]] -> 0 | BF32: =T_DataComboFile[[#This Row],[2019/20 Preliminary outcome_Source]]*T_DataComboFile[[#This Row],[G&S reporting level indicator]] -> 0 | BG32: =T_DataComboFile[[#This Row],[2020/21 Original_Source]]*T_DataComboFile[[#This Row],[G&S reporting level indicator]] -> 0 | BH32: =T_DataComboFile[[#This Row],[2020/21 SAB_Source]]*T_DataComboFile[[#This Row],[G&S reporting level indicator]] -> 0 | BI32: =T_DataComboFile[[#This Row],[2020/21 Baseline_Source]]*T_DataComboFile[[#This Row],[G&S reporting level indicator]] -> 0 | BJ32: =T_DataComboFile[[#This Row],[2021/22 Baseline_Source]]*T_DataComboFile[[#This Row],[G&S reporting level indicator]] -> 0 | BK32: =T_DataComboFile[[#This Row],[2022/23 Baseline_Source]]*T_DataComboFile[[#This Row],[G&S reporting level indicator]] -> 0 | BL32: =T_DataComboFile[[#This Row],[2023/24 Baseline_Source]]*T_DataComboFile[[#This Row],[G&S reporting level indicator]] -> 0 | BS32: =T_DataComboFile[[#This Row],[2021/22 Baseline]]+T_DataComboFile[[#This Row],[2021/22 Reduction]]+T_DataComboFile[[#This Row],[2021/22 Increase]] -> 0 | BT32: =T_DataComboFile[[#This Row],[2022/23 Baseline]]+T_DataComboFile[[#This Row],[2022/23 Reduction]]+T_DataComboFile[[#This Row],[2022/23 Increase]] -> 0 | BU32: =T_DataComboFile[[#This Row],[2023/24 Baseline]]+T_DataComboFile[[#This Row],[2023/24 Reduction]]+T_DataComboFile[[#This Row],[2023/24 Increase]] -> 0
C33: 2021_22 | D33: ENE2020 | E33: 6 | F33: 1 | G33: 1 | I33: 9134 | J33: 6 | K33: 1 | L33: 1 | N33: 009134 | O33: 06|01|01 | P33: 1 | Q33: 1 | R33: 2 | S33: 15 | T33: 15 | U33: 01|01|02|15|15 | V33: National | W33: International Relations and Cooperation | X33: Administration | Y33: Ministry | AA33: Current | AB33: Current payments | AC33: Goods and services | AD33: Science and technological services | AE33: Science and technological services | AI33: 0 | AJ33: 0 | AK33: 0 | AL33: 0 | AM33: 0 | AN33: 0 | AO33: 0 | AP33: 0 | AQ33: 0 | AR33: 0 | AS33: 0 | AT33: 0 | AU33: 0 | AV33: 0 | AX33: =IF(T_DataComboFile[[#This Row],[G&S reporting level indicator]]=1,$AX$16,"Not applicable") -> Not applicable | AY33: =IF(AND($AX$16="Level 3",T_DataComboFile[[#This Row],[Econ3]] = "Goods and services"),IF(T_DataComboFile[[#This Row],[Econ4]] = T_DataComboFile[[#This Row],[Econ3]],1,0),IF(AND($AX$16="Level 4",T_DataComboFile[[#This Row],[Econ4]] = "Goods and services"),0,1)) -> 0 | AZ33: =T_DataComboFile[[#This Row],[2016/17_Source]]*T_DataComboFile[[#This Row],[G&S reporting level indicator]] -> 0 | BA33: =T_DataComboFile[[#This Row],[2017/18_Source]]*T_DataComboFile[[#This Row],[G&S reporting level indicator]] -> 0 | BB33: =T_DataComboFile[[#This Row],[2018/19_Source]]*T_DataComboFile[[#This Row],[G&S reporting level indicator]] -> 0 | BC33: =T_DataComboFile[[#This Row],[2019/20 Main appropriation_Source]]*T_DataComboFile[[#This Row],[G&S reporting level indicator]] -> 0 | BD33: =T_DataComboFile[[#This Row],[2019/20 Adjusted appropriation_Source]]*T_DataComboFile[[#This Row],[G&S reporting level indicator]] -> 0 | BE33: =T_DataComboFile[[#This Row],[2019/20 Revised estimate_Source]]*T_DataComboFile[[#This Row],[G&S reporting level indicator]] -> 0 | BF33: =T_DataComboFile[[#This Row],[2019/20 Preliminary outcome_Source]]*T_DataComboFile[[#This Row],[G&S reporting level indicator]] -> 0 | BG33: =T_DataComboFile[[#This Row],[2020/21 Original_Source]]*T_DataComboFile[[#This Row],[G&S reporting level indicator]] -> 0 | BH33: =T_DataComboFile[[#This Row],[2020/21 SAB_Source]]*T_DataComboFile[[#This Row],[G&S reporting level indicator]] -> 0 | BI33: =T_DataComboFile[[#This Row],[2020/21 Baseline_Source]]*T_DataComboFile[[#This Row],[G&S reporting level indicator]] -> 0 | BJ33: =T_DataComboFile[[#This Row],[2021/22 Baseline_Source]]*T_DataComboFile[[#This Row],[G&S reporting level indicator]] -> 0 | BK33: =T_DataComboFile[[#This Row],[2022/23 Baseline_Source]]*T_DataComboFile[[#This Row],[G&S reporting level indicator]] -> 0 | BL33: =T_DataComboFile[[#This Row],[2023/24 Baseline_Source]]*T_DataComboFile[[#This Row],[G&S reporting level indicator]] -> 0 | BS33: =T_DataComboFile[[#This Row],[2021/22 Baseline]]+T_DataComboFile[[#This Row],[2021/22 Reduction]]+T_DataComboFile[[#This Row],[2021/22 Increase]] -> 0 | BT33: =T_DataComboFile[[#This Row],[2022/23 Baseline]]+T_DataComboFile[[#This Row],[2022/23 Reduction]]+T_DataComboFile[[#This Row],[2022/23 Increase]] -> 0 | BU33: =T_DataComboFile[[#This Row],[2023/24 Baseline]]+T_DataComboFile[[#This Row],[2023/24 Reduction]]+T_DataComboFile[[#This Row],[2023/24 Increase]] -> 0
C34: 2021_22 | D34: ENE2020 | E34: 6 | F34: 1 | G34: 1 | I34: 9135 | J34: 6 | K34: 1 | L34: 1 | N34: 009135 | O34: 06|01|01 | P34: 1 | Q34: 1 | R34: 2 | S34: 16 | T34: 16 | U34: 01|01|02|16|16 | V34: National | W34: International Relations and Cooperation | X34: Administration | Y34: Ministry | AA34: Current | AB34: Current payments | AC34: Goods and services | AD34: Contractors | AE34: Contractors | AI34: 0 | AJ34: 0 | AK34: 0 | AL34: 0 | AM34: 0 | AN34: 0 | AO34: 0 | AP34: 0 | AQ34: 0 | AR34: 0 | AS34: 0 | AT34: 0 | AU34: 0 | AV34: 0 | AX34: =IF(T_DataComboFile[[#This Row],[G&S reporting level indicator]]=1,$AX$16,"Not applicable") -> Not applicable | AY34: =IF(AND($AX$16="Level 3",T_DataComboFile[[#This Row],[Econ3]] = "Goods and services"),IF(T_DataComboFile[[#This Row],[Econ4]] = T_DataComboFile[[#This Row],[Econ3]],1,0),IF(AND($AX$16="Level 4",T_DataComboFile[[#This Row],[Econ4]] = "Goods and services"),0,1)) -> 0 | AZ34: =T_DataComboFile[[#This Row],[2016/17_Source]]*T_DataComboFile[[#This Row],[G&S reporting level indicator]] -> 0 | BA34: =T_DataComboFile[[#This Row],[2017/18_Source]]*T_DataComboFile[[#This Row],[G&S reporting level indicator]] -> 0 | BB34: =T_DataComboFile[[#This Row],[2018/19_Source]]*T_DataComboFile[[#This Row],[G&S reporting level indicator]] -> 0 | BC34: =T_DataComboFile[[#This Row],[2019/20 Main appropriation_Source]]*T_DataComboFile[[#This Row],[G&S reporting level indicator]] -> 0 | BD34: =T_DataComboFile[[#This Row],[2019/20 Adjusted appropriation_Source]]*T_DataComboFile[[#This Row],[G&S reporting level indicator]] -> 0 | BE34: =T_DataComboFile[[#This Row],[2019/20 Revised estimate_Source]]*T_DataComboFile[[#This Row],[G&S reporting level indicator]] -> 0 | BF34: =T_DataComboFile[[#This Row],[2019/20 Preliminary outcome_Source]]*T_DataComboFile[[#This Row],[G&S reporting level indicator]] -> 0 | BG34: =T_DataComboFile[[#This Row],[2020/21 Original_Source]]*T_DataComboFile[[#This Row],[G&S reporting level indicator]] -> 0 | BH34: =T_DataComboFile[[#This Row],[2020/21 SAB_Source]]*T_DataComboFile[[#This Row],[G&S reporting level indicator]] -> 0 | BI34: =T_DataComboFile[[#This Row],[2020/21 Baseline_Source]]*T_DataComboFile[[#This Row],[G&S reporting level indicator]] -> 0 | BJ34: =T_DataComboFile[[#This Row],[2021/22 Baseline_Source]]*T_DataComboFile[[#This Row],[G&S reporting level indicator]] -> 0 | BK34: =T_DataComboFile[[#This Row],[2022/23 Baseline_Source]]*T_DataComboFile[[#This Row],[G&S reporting level indicator]] -> 0 | BL34: =T_DataComboFile[[#This Row],[2023/24 Baseline_Source]]*T_DataComboFile[[#This Row],[G&S reporting level indicator]] -> 0 | BS34: =T_DataComboFile[[#This Row],[2021/22 Baseline]]+T_DataComboFile[[#This Row],[2021/22 Reduction]]+T_DataComboFile[[#This Row],[2021/22 Increase]] -> 0 | BT34: =T_DataComboFile[[#This Row],[2022/23 Baseline]]+T_DataComboFile[[#This Row],[2022/23 Reduction]]+T_DataComboFile[[#This Row],[2022/23 Increase]] -> 0 | BU34: =T_DataComboFile[[#This Row],[2023/24 Baseline]]+T_DataComboFile[[#This Row],[2023/24 Reduction]]+T_DataComboFile[[#This Row],[2023/24 Increase]] -> 0
C35: 2021_22 | D35: ENE2020 | E35: 6 | F35: 1 | G35: 1 | I35: 9136 | J35: 6 | K35: 1 | L35: 1 | N35: 009136 | O35: 06|01|01 | P35: 1 | Q35: 1 | R35: 2 | S35: 17 | T35: 17 | U35: 01|01|02|17|17 | V35: National | W35: International Relations and Cooperation | X35: Administration | Y35: Ministry | AA35: Current | AB35: Current payments | AC35: Goods and services | AD35: Agency and support/outsourced services | AE35: Agency and support/outsourced services | AI35: 0 | AJ35: 0 | AK35: 0 | AL35: 0 | AM35: 0 | AN35: 0 | AO35: 0 | AP35: 0 | AQ35: 0 | AR35: 0 | AS35: 0 | AT35: 0 | AU35: 0 | AV35: 0 | AX35: =IF(T_DataComboFile[[#This Row],[G&S reporting level indicator]]=1,$AX$16,"Not applicable") -> Not applicable | AY35: =IF(AND($AX$16="Level 3",T_DataComboFile[[#This Row],[Econ3]] = "Goods and services"),IF(T_DataComboFile[[#This Row],[Econ4]] = T_DataComboFile[[#This Row],[Econ3]],1,0),IF(AND($AX$16="Level 4",T_DataComboFile[[#This Row],[Econ4]] = "Goods and services"),0,1)) -> 0 | AZ35: =T_DataComboFile[[#This Row],[2016/17_Source]]*T_DataComboFile[[#This Row],[G&S reporting level indicator]] -> 0 | BA35: =T_DataComboFile[[#This Row],[2017/18_Source]]*T_DataComboFile[[#This Row],[G&S reporting level indicator]] -> 0 | BB35: =T_DataComboFile[[#This Row],[2018/19_Source]]*T_DataComboFile[[#This Row],[G&S reporting level indicator]] -> 0 | BC35: =T_DataComboFile[[#This Row],[2019/20 Main appropriation_Source]]*T_DataComboFile[[#This Row],[G&S reporting level indicator]] -> 0 | BD35: =T_DataComboFile[[#This Row],[2019/20 Adjusted appropriation_Source]]*T_DataComboFile[[#This Row],[G&S reporting level indicator]] -> 0 | BE35: =T_DataComboFile[[#This Row],[2019/20 Revised estimate_Source]]*T_DataComboFile[[#This Row],[G&S reporting level indicator]] -> 0 | BF35: =T_DataComboFile[[#This Row],[2019/20 Preliminary outcome_Source]]*T_DataComboFile[[#This Row],[G&S reporting level indicator]] -> 0 | BG35: =T_DataComboFile[[#This Row],[2020/21 Original_Source]]*T_DataComboFile[[#This Row],[G&S reporting level indicator]] -> 0 | BH35: =T_DataComboFile[[#This Row],[2020/21 SAB_Source]]*T_DataComboFile[[#This Row],[G&S reporting level indicator]] -> 0 | BI35: =T_DataComboFile[[#This Row],[2020/21 Baseline_Source]]*T_DataComboFile[[#This Row],[G&S reporting level indicator]] -> 0 | BJ35: =T_DataComboFile[[#This Row],[2021/22 Baseline_Source]]*T_DataComboFile[[#This Row],[G&S reporting level indicator]] -> 0 | BK35: =T_DataComboFile[[#This Row],[2022/23 Baseline_Source]]*T_DataComboFile[[#This Row],[G&S reporting level indicator]] -> 0 | BL35: =T_DataComboFile[[#This Row],[2023/24 Baseline_Source]]*T_DataComboFile[[#This Row],[G&S reporting level indicator]] -> 0 | BS35: =T_DataComboFile[[#This Row],[2021/22 Baseline]]+T_DataComboFile[[#This Row],[2021/22 Reduction]]+T_DataComboFile[[#This Row],[2021/22 Increase]] -> 0 | BT35: =T_DataComboFile[[#This Row],[2022/23 Baseline]]+T_DataComboFile[[#This Row],[2022/23 Reduction]]+T_DataComboFile[[#This Row],[2022/23 Increase]] -> 0 | BU35: =T_DataComboFile[[#This Row],[2023/24 Baseline]]+T_DataComboFile[[#This Row],[2023/24 Reduction]]+T_DataComboFile[[#This Row],[2023/24 Increase]] -> 0
C36: 2021_22 | D36: ENE2020 | E36: 6 | F36: 1 | G36: 1 | I36: 9137 | J36: 6 | K36: 1 | L36: 1 | N36: 009137 | O36: 06|01|01 | P36: 1 | Q36: 1 | R36: 2 | S36: 18 | T36: 18 | U36: 01|01|02|18|18 | V36: National | W36: International Relations and Cooperation | X36: Administration | Y36: Ministry | AA36: Current | AB36: Current payments | AC36: Goods and services | AD36: Entertainment | AE36: Entertainment | AI36: 0 | AJ36: 0 | AK36: 0 | AL36: 0 | AM36: 0 | AN36: 0 | AO36: 0 | AP36: 0 | AQ36: 0 | AR36: 0 | AS36: 0 | AT36: 0 | AU36: 0 | AV36: 0 | AX36: =IF(T_DataComboFile[[#This Row],[G&S reporting level indicator]]=1,$AX$16,"Not applicable") -> Not applicable | AY36: =IF(AND($AX$16="Level 3",T_DataComboFile[[#This Row],[Econ3]] = "Goods and services"),IF(T_DataComboFile[[#This Row],[Econ4]] = T_DataComboFile[[#This Row],[Econ3]],1,0),IF(AND($AX$16="Level 4",T_DataComboFile[[#This Row],[Econ4]] = "Goods and services"),0,1)) -> 0 | AZ36: =T_DataComboFile[[#This Row],[2016/17_Source]]*T_DataComboFile[[#This Row],[G&S reporting level indicator]] -> 0 | BA36: =T_DataComboFile[[#This Row],[2017/18_Source]]*T_DataComboFile[[#This Row],[G&S reporting level indicator]] -> 0 | BB36: =T_DataComboFile[[#This Row],[2018/19_Source]]*T_DataComboFile[[#This Row],[G&S reporting level indicator]] -> 0 | BC36: =T_DataComboFile[[#This Row],[2019/20 Main appropriation_Source]]*T_DataComboFile[[#This Row],[G&S reporting level indicator]] -> 0 | BD36: =T_DataComboFile[[#This Row],[2019/20 Adjusted appropriation_Source]]*T_DataComboFile[[#This Row],[G&S reporting level indicator]] -> 0 | BE36: =T_DataComboFile[[#This Row],[2019/20 Revised estimate_Source]]*T_DataComboFile[[#This Row],[G&S reporting level indicator]] -> 0 | BF36: =T_DataComboFile[[#This Row],[2019/20 Preliminary outcome_Source]]*T_DataComboFile[[#This Row],[G&S reporting level indicator]] -> 0 | BG36: =T_DataComboFile[[#This Row],[2020/21 Original_Source]]*T_DataComboFile[[#This Row],[G&S reporting level indicator]] -> 0 | BH36: =T_DataComboFile[[#This Row],[2020/21 SAB_Source]]*T_DataComboFile[[#This Row],[G&S reporting level indicator]] -> 0 | BI36: =T_DataComboFile[[#This Row],[2020/21 Baseline_Source]]*T_DataComboFile[[#This Row],[G&S reporting level indicator]] -> 0 | BJ36: =T_DataComboFile[[#This Row],[2021/22 Baseline_Source]]*T_DataComboFile[[#This Row],[G&S reporting level indicator]] -> 0 | BK36: =T_DataComboFile[[#This Row],[2022/23 Baseline_Source]]*T_DataComboFile[[#This Row],[G&S reporting level indicator]] -> 0 | BL36: =T_DataComboFile[[#This Row],[2023/24 Baseline_Source]]*T_DataComboFile[[#This Row],[G&S reporting level indicator]] -> 0 | BS36: =T_DataComboFile[[#This Row],[2021/22 Baseline]]+T_DataComboFile[[#This Row],[2021/22 Reduction]]+T_DataComboFile[[#This Row],[2021/22 Increase]] -> 0 | BT36: =T_DataComboFile[[#This Row],[2022/23 Baseline]]+T_DataComboFile[[#This Row],[2022/23 Reduction]]+T_DataComboFile[[#This Row],[2022/23 Increase]] -> 0 | BU36: =T_DataComboFile[[#This Row],[2023/24 Baseline]]+T_DataComboFile[[#This Row],[2023/24 Reduction]]+T_DataComboFile[[#This Row],[2023/24 Increase]] -> 0
C37: 2021_22 | D37: ENE2020 | E37: 6 | F37: 1 | G37: 1 | I37: 9138 | J37: 6 | K37: 1 | L37: 1 | N37: 009138 | O37: 06|01|01 | P37: 1 | Q37: 1 | R37: 2 | S37: 19 | T37: 19 | U37: 01|01|02|19|19 | V37: National | W37: International Relations and Cooperation | X37: Administration | Y37: Ministry | AA37: Current | AB37: Current payments | AC37: Goods and services | AD37: Fleet services (including government motor transport) | AE37: Fleet services (including government motor transport) | AI37: 0 | AJ37: 0 | AK37: 0 | AL37: 0 | AM37: 0 | AN37: 0 | AO37: 0 | AP37: 0 | AQ37: 0 | AR37: 0 | AS37: 0 | AT37: 0 | AU37: 0 | AV37: 0 | AX37: =IF(T_DataComboFile[[#This Row],[G&S reporting level indicator]]=1,$AX$16,"Not applicable") -> Not applicable | AY37: =IF(AND($AX$16="Level 3",T_DataComboFile[[#This Row],[Econ3]] = "Goods and services"),IF(T_DataComboFile[[#This Row],[Econ4]] = T_DataComboFile[[#This Row],[Econ3]],1,0),IF(AND($AX$16="Level 4",T_DataComboFile[[#This Row],[Econ4]] = "Goods and services"),0,1)) -> 0 | AZ37: =T_DataComboFile[[#This Row],[2016/17_Source]]*T_DataComboFile[[#This Row],[G&S reporting level indicator]] -> 0 | BA37: =T_DataComboFile[[#This Row],[2017/18_Source]]*T_DataComboFile[[#This Row],[G&S reporting level indicator]] -> 0 | BB37: =T_DataComboFile[[#This Row],[2018/19_Source]]*T_DataComboFile[[#This Row],[G&S reporting level indicator]] -> 0 | BC37: =T_DataComboFile[[#This Row],[2019/20 Main appropriation_Source]]*T_DataComboFile[[#This Row],[G&S reporting level indicator]] -> 0 | BD37: =T_DataComboFile[[#This Row],[2019/20 Adjusted appropriation_Source]]*T_DataComboFile[[#This Row],[G&S reporting level indicator]] -> 0 | BE37: =T_DataComboFile[[#This Row],[2019/20 Revised estimate_Source]]*T_DataComboFile[[#This Row],[G&S reporting level indicator]] -> 0 | BF37: =T_DataComboFile[[#This Row],[2019/20 Preliminary outcome_Source]]*T_DataComboFile[[#This Row],[G&S reporting level indicator]] -> 0 | BG37: =T_DataComboFile[[#This Row],[2020/21 Original_Source]]*T_DataComboFile[[#This Row],[G&S reporting level indicator]] -> 0 | BH37: =T_DataComboFile[[#This Row],[2020/21 SAB_Source]]*T_DataComboFile[[#This Row],[G&S reporting level indicator]] -> 0 | BI37: =T_DataComboFile[[#This Row],[2020/21 Baseline_Source]]*T_DataComboFile[[#This Row],[G&S reporting level indicator]] -> 0 | BJ37: =T_DataComboFile[[#This Row],[2021/22 Baseline_Source]]*T_DataComboFile[[#This Row],[G&S reporting level indicator]] -> 0 | BK37: =T_DataComboFile[[#This Row],[2022/23 Baseline_Source]]*T_DataComboFile[[#This Row],[G&S reporting level indicator]] -> 0 | BL37: =T_DataComboFile[[#This Row],[2023/24 Baseline_Source]]*T_DataComboFile[[#This Row],[G&S reporting level indicator]] -> 0 | BS37: =T_DataComboFile[[#This Row],[2021/22 Baseline]]+T_DataComboFile[[#This Row],[2021/22 Reduction]]+T_DataComboFile[[#This Row],[2021/22 Increase]] -> 0 | BT37: =T_DataComboFile[[#This Row],[2022/23 Baseline]]+T_DataComboFile[[#This Row],[2022/23 Reduction]]+T_DataComboFile[[#This Row],[2022/23 Increase]] -> 0 | BU37: =T_DataComboFile[[#This Row],[2023/24 Baseline]]+T_DataComboFile[[#This Row],[2023/24 Reduction]]+T_DataComboFile[[#This Row],[2023/24 Increase]] -> 0
C38: 2021_22 | D38: ENE2020 | E38: 6 | F38: 1 | G38: 1 | I38: 9139 | J38: 6 | K38: 1 | L38: 1 | N38: 009139 | O38: 06|01|01 | P38: 1 | Q38: 1 | R38: 2 | S38: 20 | T38: 20 | U38: 01|01|02|20|20 | V38: National | W38: International Relations and Cooperation | X38: Administration | Y38: Ministry | AA38: Current | AB38: Current payments | AC38: Goods and services | AD38: Housing | AE38: Housing | AI38: 0 | AJ38: 0 | AK38: 0 | AL38: 0 | AM38: 0 | AN38: 0 | AO38: 0 | AP38: 0 | AQ38: 0 | AR38: 0 | AS38: 0 | AT38: 0 | AU38: 0 | AV38: 0 | AX38: =IF(T_DataComboFile[[#This Row],[G&S reporting level indicator]]=1,$AX$16,"Not applicable") -> Not applicable | AY38: =IF(AND($AX$16="Level 3",T_DataComboFile[[#This Row],[Econ3]] = "Goods and services"),IF(T_DataComboFile[[#This Row],[Econ4]] = T_DataComboFile[[#This Row],[Econ3]],1,0),IF(AND($AX$16="Level 4",T_DataComboFile[[#This Row],[Econ4]] = "Goods and services"),0,1)) -> 0 | AZ38: =T_DataComboFile[[#This Row],[2016/17_Source]]*T_DataComboFile[[#This Row],[G&S reporting level indicator]] -> 0 | BA38: =T_DataComboFile[[#This Row],[2017/18_Source]]*T_DataComboFile[[#This Row],[G&S reporting level indicator]] -> 0 | BB38: =T_DataComboFile[[#This Row],[2018/19_Source]]*T_DataComboFile[[#This Row],[G&S reporting level indicator]] -> 0 | BC38: =T_DataComboFile[[#This Row],[2019/20 Main appropriation_Source]]*T_DataComboFile[[#This Row],[G&S reporting level indicator]] -> 0 | BD38: =T_DataComboFile[[#This Row],[2019/20 Adjusted appropriation_Source]]*T_DataComboFile[[#This Row],[G&S reporting level indicator]] -> 0 | BE38: =T_DataComboFile[[#This Row],[2019/20 Revised estimate_Source]]*T_DataComboFile[[#This Row],[G&S reporting level indicator]] -> 0 | BF38: =T_DataComboFile[[#This Row],[2019/20 Preliminary outcome_Source]]*T_DataComboFile[[#This Row],[G&S reporting level indicator]] -> 0 | BG38: =T_DataComboFile[[#This Row],[2020/21 Original_Source]]*T_DataComboFile[[#This Row],[G&S reporting level indicator]] -> 0 | BH38: =T_DataComboFile[[#This Row],[2020/21 SAB_Source]]*T_DataComboFile[[#This Row],[G&S reporting level indicator]] -> 0 | BI38: =T_DataComboFile[[#This Row],[2020/21 Baseline_Source]]*T_DataComboFile[[#This Row],[G&S reporting level indicator]] -> 0 | BJ38: =T_DataComboFile[[#This Row],[2021/22 Baseline_Source]]*T_DataComboFile[[#This Row],[G&S reporting level indicator]] -> 0 | BK38: =T_DataComboFile[[#This Row],[2022/23 Baseline_Source]]*T_DataComboFile[[#This Row],[G&S reporting level indicator]] -> 0 | BL38: =T_DataComboFile[[#This Row],[2023/24 Baseline_Source]]*T_DataComboFile[[#This Row],[G&S reporting level indicator]] -> 0 | BS38: =T_DataComboFile[[#This Row],[2021/22 Baseline]]+T_DataComboFile[[#This Row],[2021/22 Reduction]]+T_DataComboFile[[#This Row],[2021/22 Increase]] -> 0 | BT38: =T_DataComboFile[[#This Row],[2022/23 Baseline]]+T_DataComboFile[[#This Row],[2022/23 Reduction]]+T_DataComboFile[[#This Row],[2022/23 Increase]] -> 0 | BU38: =T_DataComboFile[[#This Row],[2023/24 Baseline]]+T_DataComboFile[[#This Row],[2023/24 Reduction]]+T_DataComboFile[[#This Row],[2023/24 Increase]] -> 0
C39: 2021_22 | D39: ENE2020 | E39: 6 | F39: 1 | G39: 1 | I39: 9140 | J39: 6 | K39: 1 | L39: 1 | N39: 009140 | O39: 06|01|01 | P39: 1 | Q39: 1 | R39: 2 | S39: 21 | T39: 21 | U39: 01|01|02|21|21 | V39: National | W39: International Relations and Cooperation | X39: Administration | Y39: Ministry | AA39: Current | AB39: Current payments | AC39: Goods and services | AD39: Inventory: Clothing material and accessories | AE39: Inventory: Clothing material and accessories | AI39: 0 | AJ39: 0 | AK39: 0 | AL39: 0 | AM39: 0 | AN39: 0 | AO39: 0 | AP39: 0 | AQ39: 0 | AR39: 0 | AS39: 0 | AT39: 0 | AU39: 0 | AV39: 0 | AX39: =IF(T_DataComboFile[[#This Row],[G&S reporting level indicator]]=1,$AX$16,"Not applicable") -> Not applicable | AY39: =IF(AND($AX$16="Level 3",T_DataComboFile[[#This Row],[Econ3]] = "Goods and services"),IF(T_DataComboFile[[#This Row],[Econ4]] = T_DataComboFile[[#This Row],[Econ3]],1,0),IF(AND($AX$16="Level 4",T_DataComboFile[[#This Row],[Econ4]] = "Goods and services"),0,1)) -> 0 | AZ39: =T_DataComboFile[[#This Row],[2016/17_Source]]*T_DataComboFile[[#This Row],[G&S reporting level indicator]] -> 0 | BA39: =T_DataComboFile[[#This Row],[2017/18_Source]]*T_DataComboFile[[#This Row],[G&S reporting level indicator]] -> 0 | BB39: =T_DataComboFile[[#This Row],[2018/19_Source]]*T_DataComboFile[[#This Row],[G&S reporting level indicator]] -> 0 | BC39: =T_DataComboFile[[#This Row],[2019/20 Main appropriation_Source]]*T_DataComboFile[[#This Row],[G&S reporting level indicator]] -> 0 | BD39: =T_DataComboFile[[#This Row],[2019/20 Adjusted appropriation_Source]]*T_DataComboFile[[#This Row],[G&S reporting level indicator]] -> 0 | BE39: =T_DataComboFile[[#This Row],[2019/20 Revised estimate_Source]]*T_DataComboFile[[#This Row],[G&S reporting level indicator]] -> 0 | BF39: =T_DataComboFile[[#This Row],[2019/20 Preliminary outcome_Source]]*T_DataComboFile[[#This Row],[G&S reporting level indicator]] -> 0 | BG39: =T_DataComboFile[[#This Row],[2020/21 Original_Source]]*T_DataComboFile[[#This Row],[G&S reporting level indicator]] -> 0 | BH39: =T_DataComboFile[[#This Row],[2020/21 SAB_Source]]*T_DataComboFile[[#This Row],[G&S reporting level indicator]] -> 0 | BI39: =T_DataComboFile[[#This Row],[2020/21 Baseline_Source]]*T_DataComboFile[[#This Row],[G&S reporting level indicator]] -> 0 | BJ39: =T_DataComboFile[[#This Row],[2021/22 Baseline_Source]]*T_DataComboFile[[#This Row],[G&S reporting level indicator]] -> 0 | BK39: =T_DataComboFile[[#This Row],[2022/23 Baseline_Source]]*T_DataComboFile[[#This Row],[G&S reporting level indicator]] -> 0 | BL39: =T_DataComboFile[[#This Row],[2023/24 Baseline_Source]]*T_DataComboFile[[#This Row],[G&S reporting level indicator]] -> 0 | BS39: =T_DataComboFile[[#This Row],[2021/22 Baseline]]+T_DataComboFile[[#This Row],[2021/22 Reduction]]+T_DataComboFile[[#This Row],[2021/22 Increase]] -> 0 | BT39: =T_DataComboFile[[#This Row],[2022/23 Baseline]]+T_DataComboFile[[#This Row],[2022/23 Reduction]]+T_DataComboFile[[#This Row],[2022/23 Increase]] -> 0 | BU39: =T_DataComboFile[[#This Row],[2023/24 Baseline]]+T_DataComboFile[[#This Row],[2023/24 Reduction]]+T_DataComboFile[[#This Row],[2023/24 Increase]] -> 0
C40: 2021_22 | D40: ENE2020 | E40: 6 | F40: 1 | G40: 1 | I40: 9141 | J40: 6 | K40: 1 | L40: 1 | N40: 009141 | O40: 06|01|01 | P40: 1 | Q40: 1 | R40: 2 | S40: 22 | T40: 22 | U40: 01|01|02|22|22 | V40: National | W40: International Relations and Cooperation | X40: Administration | Y40: Ministry | AA40: Current | AB40: Current payments | AC40: Goods and services | AD40: Inventory: Farming supplies | AE40: Inventory: Farming supplies | AI40: 0 | AJ40: 0 | AK40: 0 | AL40: 0 | AM40: 0 | AN40: 0 | AO40: 0 | AP40: 0 | AQ40: 0 | AR40: 0 | AS40: 0 | AT40: 0 | AU40: 0 | AV40: 0 | AX40: =IF(T_DataComboFile[[#This Row],[G&S reporting level indicator]]=1,$AX$16,"Not applicable") -> Not applicable | AY40: =IF(AND($AX$16="Level 3",T_DataComboFile[[#This Row],[Econ3]] = "Goods and services"),IF(T_DataComboFile[[#This Row],[Econ4]] = T_DataComboFile[[#This Row],[Econ3]],1,0),IF(AND($AX$16="Level 4",T_DataComboFile[[#This Row],[Econ4]] = "Goods and services"),0,1)) -> 0 | AZ40: =T_DataComboFile[[#This Row],[2016/17_Source]]*T_DataComboFile[[#This Row],[G&S reporting level indicator]] -> 0 | BA40: =T_DataComboFile[[#This Row],[2017/18_Source]]*T_DataComboFile[[#This Row],[G&S reporting level indicator]] -> 0 | BB40: =T_DataComboFile[[#This Row],[2018/19_Source]]*T_DataComboFile[[#This Row],[G&S reporting level indicator]] -> 0 | BC40: =T_DataComboFile[[#This Row],[2019/20 Main appropriation_Source]]*T_DataComboFile[[#This Row],[G&S reporting level indicator]] -> 0 | BD40: =T_DataComboFile[[#This Row],[2019/20 Adjusted appropriation_Source]]*T_DataComboFile[[#This Row],[G&S reporting level indicator]] -> 0 | BE40: =T_DataComboFile[[#This Row],[2019/20 Revised estimate_Source]]*T_DataComboFile[[#This Row],[G&S reporting level indicator]] -> 0 | BF40: =T_DataComboFile[[#This Row],[2019/20 Preliminary outcome_Source]]*T_DataComboFile[[#This Row],[G&S reporting level indicator]] -> 0 | BG40: =T_DataComboFile[[#This Row],[2020/21 Original_Source]]*T_DataComboFile[[#This Row],[G&S reporting level indicator]] -> 0 | BH40: =T_DataComboFile[[#This Row],[2020/21 SAB_Source]]*T_DataComboFile[[#This Row],[G&S reporting level indicator]] -> 0 | BI40: =T_DataComboFile[[#This Row],[2020/21 Baseline_Source]]*T_DataComboFile[[#This Row],[G&S reporting level indicator]] -> 0 | BJ40: =T_DataComboFile[[#This Row],[2021/22 Baseline_Source]]*T_DataComboFile[[#This Row],[G&S reporting level indicator]] -> 0 | BK40: =T_DataComboFile[[#This Row],[2022/23 Baseline_Source]]*T_DataComboFile[[#This Row],[G&S reporting level indicator]] -> 0 | BL40: =T_DataComboFile[[#This Row],[2023/24 Baseline_Source]]*T_DataComboFile[[#This Row],[G&S reporting level indicator]] -> 0 | BS40: =T_DataComboFile[[#This Row],[2021/22 Baseline]]+T_DataComboFile[[#This Row],[2021/22 Reduction]]+T_DataComboFile[[#This Row],[2021/22 Increase]] -> 0 | BT40: =T_DataComboFile[[#This Row],[2022/23 Baseline]]+T_DataComboFile[[#This Row],[2022/23 Reduction]]+T_DataComboFile[[#This Row],[2022/23 Increase]] -> 0 | BU40: =T_DataComboFile[[#This Row],[2023/24 Baseline]]+T_DataComboFile[[#This Row],[2023/24 Reduction]]+T_DataComboFile[[#This Row],[2023/24 Increase]] -> 0
C41: 2021_22 | D41: ENE2020 | E41: 6 | F41: 1 | G41: 1 | I41: 9142 | J41: 6 | K41: 1 | L41: 1 | N41: 009142 | O41: 06|01|01 | P41: 1 | Q41: 1 | R41: 2 | S41: 23 | T41: 23 | U41: 01|01|02|23|23 | V41: National | W41: International Relations and Cooperation | X41: Administration | Y41: Ministry | AA41: Current | AB41: Current payments | AC41: Goods and services | AD41: Inventory: Food and food supplies | AE41: Inventory: Food and food supplies | AI41: 0 | AJ41: 0 | AK41: 0 | AL41: 0 | AM41: 0 | AN41: 0 | AO41: 0 | AP41: 0 | AQ41: 0 | AR41: 0 | AS41: 0 | AT41: 0 | AU41: 0 | AV41: 0 | AX41: =IF(T_DataComboFile[[#This Row],[G&S reporting level indicator]]=1,$AX$16,"Not applicable") -> Not applicable | AY41: =IF(AND($AX$16="Level 3",T_DataComboFile[[#This Row],[Econ3]] = "Goods and services"),IF(T_DataComboFile[[#This Row],[Econ4]] = T_DataComboFile[[#This Row],[Econ3]],1,0),IF(AND($AX$16="Level 4",T_DataComboFile[[#This Row],[Econ4]] = "Goods and services"),0,1)) -> 0 | AZ41: =T_DataComboFile[[#This Row],[2016/17_Source]]*T_DataComboFile[[#This Row],[G&S reporting level indicator]] -> 0 | BA41: =T_DataComboFile[[#This Row],[2017/18_Source]]*T_DataComboFile[[#This Row],[G&S reporting level indicator]] -> 0 | BB41: =T_DataComboFile[[#This Row],[2018/19_Source]]*T_DataComboFile[[#This Row],[G&S reporting level indicator]] -> 0 | BC41: =T_DataComboFile[[#This Row],[2019/20 Main appropriation_Source]]*T_DataComboFile[[#This Row],[G&S reporting level indicator]] -> 0 | BD41: =T_DataComboFile[[#This Row],[2019/20 Adjusted appropriation_Source]]*T_DataComboFile[[#This Row],[G&S reporting level indicator]] -> 0 | BE41: =T_DataComboFile[[#This Row],[2019/20 Revised estimate_Source]]*T_DataComboFile[[#This Row],[G&S reporting level indicator]] -> 0 | BF41: =T_DataComboFile[[#This Row],[2019/20 Preliminary outcome_Source]]*T_DataComboFile[[#This Row],[G&S reporting level indicator]] -> 0 | BG41: =T_DataComboFile[[#This Row],[2020/21 Original_Source]]*T_DataComboFile[[#This Row],[G&S reporting level indicator]] -> 0 | BH41: =T_DataComboFile[[#This Row],[2020/21 SAB_Source]]*T_DataComboFile[[#This Row],[G&S reporting level indicator]] -> 0 | BI41: =T_DataComboFile[[#This Row],[2020/21 Baseline_Source]]*T_DataComboFile[[#This Row],[G&S reporting level indicator]] -> 0 | BJ41: =T_DataComboFile[[#This Row],[2021/22 Baseline_Source]]*T_DataComboFile[[#This Row],[G&S reporting level indicator]] -> 0 | BK41: =T_DataComboFile[[#This Row],[2022/23 Baseline_Source]]*T_DataComboFile[[#This Row],[G&S reporting level indicator]] -> 0 | BL41: =T_DataComboFile[[#This Row],[2023/24 Baseline_Source]]*T_DataComboFile[[#This Row],[G&S reporting level indicator]] -> 0 | BS41: =T_DataComboFile[[#This Row],[2021/22 Baseline]]+T_DataComboFile[[#This Row],[2021/22 Reduction]]+T_DataComboFile[[#This Row],[2021/22 Increase]] -> 0 | BT41: =T_DataComboFile[[#This Row],[2022/23 Baseline]]+T_DataComboFile[[#This Row],[2022/23 Reduction]]+T_DataComboFile[[#This Row],[2022/23 Increase]] -> 0 | BU41: =T_DataComboFile[[#This Row],[2023/24 Baseline]]+T_DataComboFile[[#This Row],[2023/24 Reduction]]+T_DataComboFile[[#This Row],[2023/24 Increase]] -> 0
C42: 2021_22 | D42: ENE2020 | E42: 6 | F42: 1 | G42: 1 | I42: 9143 | J42: 6 | K42: 1 | L42: 1 | N42: 009143 | O42: 06|01|01 | P42: 1 | Q42: 1 | R42: 2 | S42: 24 | T42: 24 | U42: 01|01|02|24|24 | V42: National | W42: International Relations and Cooperation | X42: Administration | Y42: Ministry | AA42: Current | AB42: Current payments | AC42: Goods and services | AD42: Inventory: Fuel, oil and gas | AE42: Inventory: Fuel, oil and gas | AI42: 0 | AJ42: 0 | AK42: 0 | AL42: 0 | AM42: 0 | AN42: 0 | AO42: 0 | AP42: 0 | AQ42: 0 | AR42: 0 | AS42: 0 | AT42: 0 | AU42: 0 | AV42: 0 | AX42: =IF(T_DataComboFile[[#This Row],[G&S reporting level indicator]]=1,$AX$16,"Not applicable") -> Not applicable | AY42: =IF(AND($AX$16="Level 3",T_DataComboFile[[#This Row],[Econ3]] = "Goods and services"),IF(T_DataComboFile[[#This Row],[Econ4]] = T_DataComboFile[[#This Row],[Econ3]],1,0),IF(AND($AX$16="Level 4",T_DataComboFile[[#This Row],[Econ4]] = "Goods and services"),0,1)) -> 0 | AZ42: =T_DataComboFile[[#This Row],[2016/17_Source]]*T_DataComboFile[[#This Row],[G&S reporting level indicator]] -> 0 | BA42: =T_DataComboFile[[#This Row],[2017/18_Source]]*T_DataComboFile[[#This Row],[G&S reporting level indicator]] -> 0 | BB42: =T_DataComboFile[[#This Row],[2018/19_Source]]*T_DataComboFile[[#This Row],[G&S reporting level indicator]] -> 0 | BC42: =T_DataComboFile[[#This Row],[2019/20 Main appropriation_Source]]*T_DataComboFile[[#This Row],[G&S reporting level indicator]] -> 0 | BD42: =T_DataComboFile[[#This Row],[2019/20 Adjusted appropriation_Source]]*T_DataComboFile[[#This Row],[G&S reporting level indicator]] -> 0 | BE42: =T_DataComboFile[[#This Row],[2019/20 Revised estimate_Source]]*T_DataComboFile[[#This Row],[G&S reporting level indicator]] -> 0 | BF42: =T_DataComboFile[[#This Row],[2019/20 Preliminary outcome_Source]]*T_DataComboFile[[#This Row],[G&S reporting level indicator]] -> 0 | BG42: =T_DataComboFile[[#This Row],[2020/21 Original_Source]]*T_DataComboFile[[#This Row],[G&S reporting level indicator]] -> 0 | BH42: =T_DataComboFile[[#This Row],[2020/21 SAB_Source]]*T_DataComboFile[[#This Row],[G&S reporting level indicator]] -> 0 | BI42: =T_DataComboFile[[#This Row],[2020/21 Baseline_Source]]*T_DataComboFile[[#This Row],[G&S reporting level indicator]] -> 0 | BJ42: =T_DataComboFile[[#This Row],[2021/22 Baseline_Source]]*T_DataComboFile[[#This Row],[G&S reporting level indicator]] -> 0 | BK42: =T_DataComboFile[[#This Row],[2022/23 Baseline_Source]]*T_DataComboFile[[#This Row],[G&S reporting level indicator]] -> 0 | BL42: =T_DataComboFile[[#This Row],[2023/24 Baseline_Source]]*T_DataComboFile[[#This Row],[G&S reporting level indicator]] -> 0 | BS42: =T_DataComboFile[[#This Row],[2021/22 Baseline]]+T_DataComboFile[[#This Row],[2021/22 Reduction]]+T_DataComboFile[[#This Row],[2021/22 Increase]] -> 0 | BT42: =T_DataComboFile[[#This Row],[2022/23 Baseline]]+T_DataComboFile[[#This Row],[2022/23 Reduction]]+T_DataComboFile[[#This Row],[2022/23 Increase]] -> 0 | BU42: =T_DataComboFile[[#This Row],[2023/24 Baseline]]+T_DataComboFile[[#This Row],[2023/24 Reduction]]+T_DataComboFile[[#This Row],[2023/24 Increase]] -> 0
C43: 2021_22 | D43: ENE2020 | E43: 6 | F43: 1 | G43: 1 | I43: 9144 | J43: 6 | K43: 1 | L43: 1 | N43: 009144 | O43: 06|01|01 | P43: 1 | Q43: 1 | R43: 2 | S43: 25 | T43: 25 | U43: 01|01|02|25|25 | V43: National | W43: International Relations and Cooperation | X43: Administration | Y43: Ministry | AA43: Current | AB43: Current payments | AC43: Goods and services | AD43: Inventory: Learner and teacher support material | AE43: Inventory: Learner and teacher support material | AI43: 0 | AJ43: 0 | AK43: 0 | AL43: 0 | AM43: 0 | AN43: 0 | AO43: 0 | AP43: 0 | AQ43: 0 | AR43: 0 | AS43: 0 | AT43: 0 | AU43: 0 | AV43: 0 | AX43: =IF(T_DataComboFile[[#This Row],[G&S reporting level indicator]]=1,$AX$16,"Not applicable") -> Not applicable | AY43: =IF(AND($AX$16="Level 3",T_DataComboFile[[#This Row],[Econ3]] = "Goods and services"),IF(T_DataComboFile[[#This Row],[Econ4]] = T_DataComboFile[[#This Row],[Econ3]],1,0),IF(AND($AX$16="Level 4",T_DataComboFile[[#This Row],[Econ4]] = "Goods and services"),0,1)) -> 0 | AZ43: =T_DataComboFile[[#This Row],[2016/17_Source]]*T_DataComboFile[[#This Row],[G&S reporting level indicator]] -> 0 | BA43: =T_DataComboFile[[#This Row],[2017/18_Source]]*T_DataComboFile[[#This Row],[G&S reporting level indicator]] -> 0 | BB43: =T_DataComboFile[[#This Row],[2018/19_Source]]*T_DataComboFile[[#This Row],[G&S reporting level indicator]] -> 0 | BC43: =T_DataComboFile[[#This Row],[2019/20 Main appropriation_Source]]*T_DataComboFile[[#This Row],[G&S reporting level indicator]] -> 0 | BD43: =T_DataComboFile[[#This Row],[2019/20 Adjusted appropriation_Source]]*T_DataComboFile[[#This Row],[G&S reporting level indicator]] -> 0 | BE43: =T_DataComboFile[[#This Row],[2019/20 Revised estimate_Source]]*T_DataComboFile[[#This Row],[G&S reporting level indicator]] -> 0 | BF43: =T_DataComboFile[[#This Row],[2019/20 Preliminary outcome_Source]]*T_DataComboFile[[#This Row],[G&S reporting level indicator]] -> 0 | BG43: =T_DataComboFile[[#This Row],[2020/21 Original_Source]]*T_DataComboFile[[#This Row],[G&S reporting level indicator]] -> 0 | BH43: =T_DataComboFile[[#This Row],[2020/21 SAB_Source]]*T_DataComboFile[[#This Row],[G&S reporting level indicator]] -> 0 | BI43: =T_DataComboFile[[#This Row],[2020/21 Baseline_Source]]*T_DataComboFile[[#This Row],[G&S reporting level indicator]] -> 0 | BJ43: =T_DataComboFile[[#This Row],[2021/22 Baseline_Source]]*T_DataComboFile[[#This Row],[G&S reporting level indicator]] -> 0 | BK43: =T_DataComboFile[[#This Row],[2022/23 Baseline_Source]]*T_DataComboFile[[#This Row],[G&S reporting level indicator]] -> 0 | BL43: =T_DataComboFile[[#This Row],[2023/24 Baseline_Source]]*T_DataComboFile[[#This Row],[G&S reporting level indicator]] -> 0 | BS43: =T_DataComboFile[[#This Row],[2021/22 Baseline]]+T_DataComboFile[[#This Row],[2021/22 Reduction]]+T_DataComboFile[[#This Row],[2021/22 Increase]] -> 0 | BT43: =T_DataComboFile[[#This Row],[2022/23 Baseline]]+T_DataComboFile[[#This Row],[2022/23 Reduction]]+T_DataComboFile[[#This Row],[2022/23 Increase]] -> 0 | BU43: =T_DataComboFile[[#This Row],[2023/24 Baseline]]+T_DataComboFile[[#This Row],[2023/24 Reduction]]+T_DataComboFile[[#This Row],[2023/24 Increase]] -> 0
C44: 2021_22 | D44: ENE2020 | E44: 6 | F44: 1 | G44: 1 | I44: 9145 | J44: 6 | K44: 1 | L44: 1 | N44: 009145 | O44: 06|01|01 | P44: 1 | Q44: 1 | R44: 2 | S44: 26 | T44: 26 | U44: 01|01|02|26|26 | V44: National | W44: International Relations and Cooperation | X44: Administration | Y44: Ministry | AA44: Current | AB44: Current payments | AC44: Goods and services | AD44: Inventory: Materials and supplies | AE44: Inventory: Materials and supplies | AI44: 0 | AJ44: 0 | AK44: 0 | AL44: 0 | AM44: 0 | AN44: 0 | AO44: 0 | AP44: 0 | AQ44: 0 | AR44: 0 | AS44: 0 | AT44: 0 | AU44: 0 | AV44: 0 | AX44: =IF(T_DataComboFile[[#This Row],[G&S reporting level indicator]]=1,$AX$16,"Not applicable") -> Not applicable | AY44: =IF(AND($AX$16="Level 3",T_DataComboFile[[#This Row],[Econ3]] = "Goods and services"),IF(T_DataComboFile[[#This Row],[Econ4]] = T_DataComboFile[[#This Row],[Econ3]],1,0),IF(AND($AX$16="Level 4",T_DataComboFile[[#This Row],[Econ4]] = "Goods and services"),0,1)) -> 0 | AZ44: =T_DataComboFile[[#This Row],[2016/17_Source]]*T_DataComboFile[[#This Row],[G&S reporting level indicator]] -> 0 | BA44: =T_DataComboFile[[#This Row],[2017/18_Source]]*T_DataComboFile[[#This Row],[G&S reporting level indicator]] -> 0 | BB44: =T_DataComboFile[[#This Row],[2018/19_Source]]*T_DataComboFile[[#This Row],[G&S reporting level indicator]] -> 0 | BC44: =T_DataComboFile[[#This Row],[2019/20 Main appropriation_Source]]*T_DataComboFile[[#This Row],[G&S reporting level indicator]] -> 0 | BD44: =T_DataComboFile[[#This Row],[2019/20 Adjusted appropriation_Source]]*T_DataComboFile[[#This Row],[G&S reporting level indicator]] -> 0 | BE44: =T_DataComboFile[[#This Row],[2019/20 Revised estimate_Source]]*T_DataComboFile[[#This Row],[G&S reporting level indicator]] -> 0 | BF44: =T_DataComboFile[[#This Row],[2019/20 Preliminary outcome_Source]]*T_DataComboFile[[#This Row],[G&S reporting level indicator]] -> 0 | BG44: =T_DataComboFile[[#This Row],[2020/21 Original_Source]]*T_DataComboFile[[#This Row],[G&S reporting level indicator]] -> 0 | BH44: =T_DataComboFile[[#This Row],[2020/21 SAB_Source]]*T_DataComboFile[[#This Row],[G&S reporting level indicator]] -> 0 | BI44: =T_DataComboFile[[#This Row],[2020/21 Baseline_Source]]*T_DataComboFile[[#This Row],[G&S reporting level indicator]] -> 0 | BJ44: =T_DataComboFile[[#This Row],[2021/22 Baseline_Source]]*T_DataComboFile[[#This Row],[G&S reporting level indicator]] -> 0 | BK44: =T_DataComboFile[[#This Row],[2022/23 Baseline_Source]]*T_DataComboFile[[#This Row],[G&S reporting level indicator]] -> 0 | BL44: =T_DataComboFile[[#This Row],[2023/24 Baseline_Source]]*T_DataComboFile[[#This Row],[G&S reporting level indicator]] -> 0 | BS44: =T_DataComboFile[[#This Row],[2021/22 Baseline]]+T_DataComboFile[[#This Row],[2021/22 Reduction]]+T_DataComboFile[[#This Row],[2021/22 Increase]] -> 0 | BT44: =T_DataComboFile[[#This Row],[2022/23 Baseline]]+T_DataComboFile[[#This Row],[2022/23 Reduction]]+T_DataComboFile[[#This Row],[2022/23 Increase]] -> 0 | BU44: =T_DataComboFile[[#This Row],[2023/24 Baseline]]+T_DataComboFile[[#This Row],[2023/24 Reduction]]+T_DataComboFile[[#This Row],[2023/24 Increase]] -> 0
C45: 2021_22 | D45: ENE2020 | E45: 6 | F45: 1 | G45: 1 | I45: 9146 | J45: 6 | K45: 1 | L45: 1 | N45: 009146 | O45: 06|01|01 | P45: 1 | Q45: 1 | R45: 2 | S45: 27 | T45: 27 | U45: 01|01|02|27|27 | V45: National | W45: International Relations and Cooperation | X45: Administration | Y45: Ministry | AA45: Current | AB45: Current payments | AC45: Goods and services | AD45: Inventory: Medical supplies | AE45: Inventory: Medical supplies | AI45: 0 | AJ45: 0 | AK45: 0 | AL45: 0 | AM45: 0 | AN45: 0 | AO45: 0 | AP45: 0 | AQ45: 0 | AR45: 0 | AS45: 0 | AT45: 0 | AU45: 0 | AV45: 0 | AX45: =IF(T_DataComboFile[[#This Row],[G&S reporting level indicator]]=1,$AX$16,"Not applicable") -> Not applicable | AY45: =IF(AND($AX$16="Level 3",T_DataComboFile[[#This Row],[Econ3]] = "Goods and services"),IF(T_DataComboFile[[#This Row],[Econ4]] = T_DataComboFile[[#This Row],[Econ3]],1,0),IF(AND($AX$16="Level 4",T_DataComboFile[[#This Row],[Econ4]] = "Goods and services"),0,1)) -> 0 | AZ45: =T_DataComboFile[[#This Row],[2016/17_Source]]*T_DataComboFile[[#This Row],[G&S reporting level indicator]] -> 0 | BA45: =T_DataComboFile[[#This Row],[2017/18_Source]]*T_DataComboFile[[#This Row],[G&S reporting level indicator]] -> 0 | BB45: =T_DataComboFile[[#This Row],[2018/19_Source]]*T_DataComboFile[[#This Row],[G&S reporting level indicator]] -> 0 | BC45: =T_DataComboFile[[#This Row],[2019/20 Main appropriation_Source]]*T_DataComboFile[[#This Row],[G&S reporting level indicator]] -> 0 | BD45: =T_DataComboFile[[#This Row],[2019/20 Adjusted appropriation_Source]]*T_DataComboFile[[#This Row],[G&S reporting level indicator]] -> 0 | BE45: =T_DataComboFile[[#This Row],[2019/20 Revised estimate_Source]]*T_DataComboFile[[#This Row],[G&S reporting level indicator]] -> 0 | BF45: =T_DataComboFile[[#This Row],[2019/20 Preliminary outcome_Source]]*T_DataComboFile[[#This Row],[G&S reporting level indicator]] -> 0 | BG45: =T_DataComboFile[[#This Row],[2020/21 Original_Source]]*T_DataComboFile[[#This Row],[G&S reporting level indicator]] -> 0 | BH45: =T_DataComboFile[[#This Row],[2020/21 SAB_Source]]*T_DataComboFile[[#This Row],[G&S reporting level indicator]] -> 0 | BI45: =T_DataComboFile[[#This Row],[2020/21 Baseline_Source]]*T_DataComboFile[[#This Row],[G&S reporting level indicator]] -> 0 | BJ45: =T_DataComboFile[[#This Row],[2021/22 Baseline_Source]]*T_DataComboFile[[#This Row],[G&S reporting level indicator]] -> 0 | BK45: =T_DataComboFile[[#This Row],[2022/23 Baseline_Source]]*T_DataComboFile[[#This Row],[G&S reporting level indicator]] -> 0 | BL45: =T_DataComboFile[[#This Row],[2023/24 Baseline_Source]]*T_DataComboFile[[#This Row],[G&S reporting level indicator]] -> 0 | BS45: =T_DataComboFile[[#This Row],[2021/22 Baseline]]+T_DataComboFile[[#This Row],[2021/22 Reduction]]+T_DataComboFile[[#This Row],[2021/22 Increase]] -> 0 | BT45: =T_DataComboFile[[#This Row],[2022/23 Baseline]]+T_DataComboFile[[#This Row],[2022/23 Reduction]]+T_DataComboFile[[#This Row],[2022/23 Increase]] -> 0 | BU45: =T_DataComboFile[[#This Row],[2023/24 Baseline]]+T_DataComboFile[[#This Row],[2023/24 Reduction]]+T_DataComboFile[[#This Row],[2023/24 Increase]] -> 0
C46: 2021_22 | D46: ENE2020 | E46: 6 | F46: 1 | G46: 1 | I46: 9147 | J46: 6 | K46: 1 | L46: 1 | N46: 009147 | O46: 06|01|01 | P46: 1 | Q46: 1 | R46: 2 | S46: 28 | T46: 28 | U46: 01|01|02|28|28 | V46: National | W46: International Relations and Cooperation | X46: Administration | Y46: Ministry | AA46: Current | AB46: Current payments | AC46: Goods and services | AD46: Inventory: Medicine | AE46: Inventory: Medicine | AI46: 0 | AJ46: 0 | AK46: 0 | AL46: 0 | AM46: 0 | AN46: 0 | AO46: 0 | AP46: 0 | AQ46: 0 | AR46: 0 | AS46: 0 | AT46: 0 | AU46: 0 | AV46: 0 | AX46: =IF(T_DataComboFile[[#This Row],[G&S reporting level indicator]]=1,$AX$16,"Not applicable") -> Not applicable | AY46: =IF(AND($AX$16="Level 3",T_DataComboFile[[#This Row],[Econ3]] = "Goods and services"),IF(T_DataComboFile[[#This Row],[Econ4]] = T_DataComboFile[[#This Row],[Econ3]],1,0),IF(AND($AX$16="Level 4",T_DataComboFile[[#This Row],[Econ4]] = "Goods and services"),0,1)) -> 0 | AZ46: =T_DataComboFile[[#This Row],[2016/17_Source]]*T_DataComboFile[[#This Row],[G&S reporting level indicator]] -> 0 | BA46: =T_DataComboFile[[#This Row],[2017/18_Source]]*T_DataComboFile[[#This Row],[G&S reporting level indicator]] -> 0 | BB46: =T_DataComboFile[[#This Row],[2018/19_Source]]*T_DataComboFile[[#This Row],[G&S reporting level indicator]] -> 0 | BC46: =T_DataComboFile[[#This Row],[2019/20 Main appropriation_Source]]*T_DataComboFile[[#This Row],[G&S reporting level indicator]] -> 0 | BD46: =T_DataComboFile[[#This Row],[2019/20 Adjusted appropriation_Source]]*T_DataComboFile[[#This Row],[G&S reporting level indicator]] -> 0 | BE46: =T_DataComboFile[[#This Row],[2019/20 Revised estimate_Source]]*T_DataComboFile[[#This Row],[G&S reporting level indicator]] -> 0 | BF46: =T_DataComboFile[[#This Row],[2019/20 Preliminary outcome_Source]]*T_DataComboFile[[#This Row],[G&S reporting level indicator]] -> 0 | BG46: =T_DataComboFile[[#This Row],[2020/21 Original_Source]]*T_DataComboFile[[#This Row],[G&S reporting level indicator]] -> 0 | BH46: =T_DataComboFile[[#This Row],[2020/21 SAB_Source]]*T_DataComboFile[[#This Row],[G&S reporting level indicator]] -> 0 | BI46: =T_DataComboFile[[#This Row],[2020/21 Baseline_Source]]*T_DataComboFile[[#This Row],[G&S reporting level indicator]] -> 0 | BJ46: =T_DataComboFile[[#This Row],[2021/22 Baseline_Source]]*T_DataComboFile[[#This Row],[G&S reporting level indicator]] -> 0 | BK46: =T_DataComboFile[[#This Row],[2022/23 Baseline_Source]]*T_DataComboFile[[#This Row],[G&S reporting level indicator]] -> 0 | BL46: =T_DataComboFile[[#This Row],[2023/24 Baseline_Source]]*T_DataComboFile[[#This Row],[G&S reporting level indicator]] -> 0 | BS46: =T_DataComboFile[[#This Row],[2021/22 Baseline]]+T_DataComboFile[[#This Row],[2021/22 Reduction]]+T_DataComboFile[[#This Row],[2021/22 Increase]] -> 0 | BT46: =T_DataComboFile[[#This Row],[2022/23 Baseline]]+T_DataComboFile[[#This Row],[2022/23 Reduction]]+T_DataComboFile[[#This Row],[2022/23 Increase]] -> 0 | BU46: =T_DataComboFile[[#This Row],[2023/24 Baseline]]+T_DataComboFile[[#This Row],[2023/24 Reduction]]+T_DataComboFile[[#This Row],[2023/24 Increase]] -> 0
C47: 2021_22 | D47: ENE2020 | E47: 6 | F47: 1 | G47: 1 | I47: 9148 | J47: 6 | K47: 1 | L47: 1 | N47: 009148 | O47: 06|01|01 | P47: 1 | Q47: 1 | R47: 2 | S47: 29 | T47: 29 | U47: 01|01|02|29|29 | V47: National | W47: International Relations and Cooperation | X47: Administration | Y47: Ministry | AA47: Current | AB47: Current payments | AC47: Goods and services | AD47: Medsas inventory interface | AE47: Medsas inventory interface | AI47: 0 | AJ47: 0 | AK47: 0 | AL47: 0 | AM47: 0 | AN47: 0 | AO47: 0 | AP47: 0 | AQ47: 0 | AR47: 0 | AS47: 0 | AT47: 0 | AU47: 0 | AV47: 0 | AX47: =IF(T_DataComboFile[[#This Row],[G&S reporting level indicator]]=1,$AX$16,"Not applicable") -> Not applicable | AY47: =IF(AND($AX$16="Level 3",T_DataComboFile[[#This Row],[Econ3]] = "Goods and services"),IF(T_DataComboFile[[#This Row],[Econ4]] = T_DataComboFile[[#This Row],[Econ3]],1,0),IF(AND($AX$16="Level 4",T_DataComboFile[[#This Row],[Econ4]] = "Goods and services"),0,1)) -> 0 | AZ47: =T_DataComboFile[[#This Row],[2016/17_Source]]*T_DataComboFile[[#This Row],[G&S reporting level indicator]] -> 0 | BA47: =T_DataComboFile[[#This Row],[2017/18_Source]]*T_DataComboFile[[#This Row],[G&S reporting level indicator]] -> 0 | BB47: =T_DataComboFile[[#This Row],[2018/19_Source]]*T_DataComboFile[[#This Row],[G&S reporting level indicator]] -> 0 | BC47: =T_DataComboFile[[#This Row],[2019/20 Main appropriation_Source]]*T_DataComboFile[[#This Row],[G&S reporting level indicator]] -> 0 | BD47: =T_DataComboFile[[#This Row],[2019/20 Adjusted appropriation_Source]]*T_DataComboFile[[#This Row],[G&S reporting level indicator]] -> 0 | BE47: =T_DataComboFile[[#This Row],[2019/20 Revised estimate_Source]]*T_DataComboFile[[#This Row],[G&S reporting level indicator]] -> 0 | BF47: =T_DataComboFile[[#This Row],[2019/20 Preliminary outcome_Source]]*T_DataComboFile[[#This Row],[G&S reporting level indicator]] -> 0 | BG47: =T_DataComboFile[[#This Row],[2020/21 Original_Source]]*T_DataComboFile[[#This Row],[G&S reporting level indicator]] -> 0 | BH47: =T_DataComboFile[[#This Row],[2020/21 SAB_Source]]*T_DataComboFile[[#This Row],[G&S reporting level indicator]] -> 0 | BI47: =T_DataComboFile[[#This Row],[2020/21 Baseline_Source]]*T_DataComboFile[[#This Row],[G&S reporting level indicator]] -> 0 | BJ47: =T_DataComboFile[[#This Row],[2021/22 Baseline_Source]]*T_DataComboFile[[#This Row],[G&S reporting level indicator]] -> 0 | BK47: =T_DataComboFile[[#This Row],[2022/23 Baseline_Source]]*T_DataComboFile[[#This Row],[G&S reporting level indicator]] -> 0 | BL47: =T_DataComboFile[[#This Row],[2023/24 Baseline_Source]]*T_DataComboFile[[#This Row],[G&S reporting level indicator]] -> 0 | BS47: =T_DataComboFile[[#This Row],[2021/22 Baseline]]+T_DataComboFile[[#This Row],[2021/22 Reduction]]+T_DataComboFile[[#This Row],[2021/22 Increase]] -> 0 | BT47: =T_DataComboFile[[#This Row],[2022/23 Baseline]]+T_DataComboFile[[#This Row],[2022/23 Reduction]]+T_DataComboFile[[#This Row],[2022/23 Increase]] -> 0 | BU47: =T_DataComboFile[[#This Row],[2023/24 Baseline]]+T_DataComboFile[[#This Row],[2023/24 Reduction]]+T_DataComboFile[[#This Row],[2023/24 Increase]] -> 0
C48: 2021_22 | D48: ENE2020 | E48: 6 | F48: 1 | G48: 1 | I48: 9149 | J48: 6 | K48: 1 | L48: 1 | N48: 009149 | O48: 06|01|01 | P48: 1 | Q48: 1 | R48: 2 | S48: 30 | T48: 30 | U48: 01|01|02|30|30 | V48: National | W48: International Relations and Cooperation | X48: Administration | Y48: Ministry | AA48: Current | AB48: Current payments | AC48: Goods and services | AD48: Inventory: Other supplies | AE48: Inventory: Other supplies | AI48: 0 | AJ48: 0 | AK48: 0 | AL48: 0 | AM48: 0 | AN48: 0 | AO48: 0 | AP48: 0 | AQ48: 0 | AR48: 0 | AS48: 0 | AT48: 0 | AU48: 0 | AV48: 0 | AX48: =IF(T_DataComboFile[[#This Row],[G&S reporting level indicator]]=1,$AX$16,"Not applicable") -> Not applicable | AY48: =IF(AND($AX$16="Level 3",T_DataComboFile[[#This Row],[Econ3]] = "Goods and services"),IF(T_DataComboFile[[#This Row],[Econ4]] = T_DataComboFile[[#This Row],[Econ3]],1,0),IF(AND($AX$16="Level 4",T_DataComboFile[[#This Row],[Econ4]] = "Goods and services"),0,1)) -> 0 | AZ48: =T_DataComboFile[[#This Row],[2016/17_Source]]*T_DataComboFile[[#This Row],[G&S reporting level indicator]] -> 0 | BA48: =T_DataComboFile[[#This Row],[2017/18_Source]]*T_DataComboFile[[#This Row],[G&S reporting level indicator]] -> 0 | BB48: =T_DataComboFile[[#This Row],[2018/19_Source]]*T_DataComboFile[[#This Row],[G&S reporting level indicator]] -> 0 | BC48: =T_DataComboFile[[#This Row],[2019/20 Main appropriation_Source]]*T_DataComboFile[[#This Row],[G&S reporting level indicator]] -> 0 | BD48: =T_DataComboFile[[#This Row],[2019/20 Adjusted appropriation_Source]]*T_DataComboFile[[#This Row],[G&S reporting level indicator]] -> 0 | BE48: =T_DataComboFile[[#This Row],[2019/20 Revised estimate_Source]]*T_DataComboFile[[#This Row],[G&S reporting level indicator]] -> 0 | BF48: =T_DataComboFile[[#This Row],[2019/20 Preliminary outcome_Source]]*T_DataComboFile[[#This Row],[G&S reporting level indicator]] -> 0 | BG48: =T_DataComboFile[[#This Row],[2020/21 Original_Source]]*T_DataComboFile[[#This Row],[G&S reporting level indicator]] -> 0 | BH48: =T_DataComboFile[[#This Row],[2020/21 SAB_Source]]*T_DataComboFile[[#This Row],[G&S reporting level indicator]] -> 0 | BI48: =T_DataComboFile[[#This Row],[2020/21 Baseline_Source]]*T_DataComboFile[[#This Row],[G&S reporting level indicator]] -> 0 | BJ48: =T_DataComboFile[[#This Row],[2021/22 Baseline_Source]]*T_DataComboFile[[#This Row],[G&S reporting level indicator]] -> 0 | BK48: =T_DataComboFile[[#This Row],[2022/23 Baseline_Source]]*T_DataComboFile[[#This Row],[G&S reporting level indicator]] -> 0 | BL48: =T_DataComboFile[[#This Row],[2023/24 Baseline_Source]]*T_DataComboFile[[#This Row],[G&S reporting level indicator]] -> 0 | BS48: =T_DataComboFile[[#This Row],[2021/22 Baseline]]+T_DataComboFile[[#This Row],[2021/22 Reduction]]+T_DataComboFile[[#This Row],[2021/22 Increase]] -> 0 | BT48: =T_DataComboFile[[#This Row],[2022/23 Baseline]]+T_DataComboFile[[#This Row],[2022/23 Reduction]]+T_DataComboFile[[#This Row],[2022/23 Increase]] -> 0 | BU48: =T_DataComboFile[[#This Row],[2023/24 Baseline]]+T_DataComboFile[[#This Row],[2023/24 Reduction]]+T_DataComboFile[[#This Row],[2023/24 Increase]] -> 0
C49: 2021_22 | D49: ENE2020 | E49: 6 | F49: 1 | G49: 1 | I49: 9150 | J49: 6 | K49: 1 | L49: 1 | N49: 009150 | O49: 06|01|01 | P49: 1 | Q49: 1 | R49: 2 | S49: 31 | T49: 31 | U49: 01|01|02|31|31 | V49: National | W49: International Relations and Cooperation | X49: Administration | Y49: Ministry | AA49: Current | AB49: Current payments | AC49: Goods and services | AD49: Consumable supplies | AE49: Consumable supplies | AI49: 0 | AJ49: 0 | AK49: 0 | AL49: 0 | AM49: 0 | AN49: 0 | AO49: 0 | AP49: 0 | AQ49: 0 | AR49: 0 | AS49: 0 | AT49: 0 | AU49: 0 | AV49: 0 | AX49: =IF(T_DataComboFile[[#This Row],[G&S reporting level indicator]]=1,$AX$16,"Not applicable") -> Not applicable | AY49: =IF(AND($AX$16="Level 3",T_DataComboFile[[#This Row],[Econ3]] = "Goods and services"),IF(T_DataComboFile[[#This Row],[Econ4]] = T_DataComboFile[[#This Row],[Econ3]],1,0),IF(AND($AX$16="Level 4",T_DataComboFile[[#This Row],[Econ4]] = "Goods and services"),0,1)) -> 0 | AZ49: =T_DataComboFile[[#This Row],[2016/17_Source]]*T_DataComboFile[[#This Row],[G&S reporting level indicator]] -> 0 | BA49: =T_DataComboFile[[#This Row],[2017/18_Source]]*T_DataComboFile[[#This Row],[G&S reporting level indicator]] -> 0 | BB49: =T_DataComboFile[[#This Row],[2018/19_Source]]*T_DataComboFile[[#This Row],[G&S reporting level indicator]] -> 0 | BC49: =T_DataComboFile[[#This Row],[2019/20 Main appropriation_Source]]*T_DataComboFile[[#This Row],[G&S reporting level indicator]] -> 0 | BD49: =T_DataComboFile[[#This Row],[2019/20 Adjusted appropriation_Source]]*T_DataComboFile[[#This Row],[G&S reporting level indicator]] -> 0 | BE49: =T_DataComboFile[[#This Row],[2019/20 Revised estimate_Source]]*T_DataComboFile[[#This Row],[G&S reporting level indicator]] -> 0 | BF49: =T_DataComboFile[[#This Row],[2019/20 Preliminary outcome_Source]]*T_DataComboFile[[#This Row],[G&S reporting level indicator]] -> 0 | BG49: =T_DataComboFile[[#This Row],[2020/21 Original_Source]]*T_DataComboFile[[#This Row],[G&S reporting level indicator]] -> 0 | BH49: =T_DataComboFile[[#This Row],[2020/21 SAB_Source]]*T_DataComboFile[[#This Row],[G&S reporting level indicator]] -> 0 | BI49: =T_DataComboFile[[#This Row],[2020/21 Baseline_Source]]*T_DataComboFile[[#This Row],[G&S reporting level indicator]] -> 0 | BJ49: =T_DataComboFile[[#This Row],[2021/22 Baseline_Source]]*T_DataComboFile[[#This Row],[G&S reporting level indicator]] -> 0 | BK49: =T_DataComboFile[[#This Row],[2022/23 Baseline_Source]]*T_DataComboFile[[#This Row],[G&S reporting level indicator]] -> 0 | BL49: =T_DataComboFile[[#This Row],[2023/24 Baseline_Source]]*T_DataComboFile[[#This Row],[G&S reporting level indicator]] -> 0 | BS49: =T_DataComboFile[[#This Row],[2021/22 Baseline]]+T_DataComboFile[[#This Row],[2021/22 Reduction]]+T_DataComboFile[[#This Row],[2021/22 Increase]] -> 0 | BT49: =T_DataComboFile[[#This Row],[2022/23 Baseline]]+T_DataComboFile[[#This Row],[2022/23 Reduction]]+T_DataComboFile[[#This Row],[2022/23 Increase]] -> 0 | BU49: =T_DataComboFile[[#This Row],[2023/24 Baseline]]+T_DataComboFile[[#This Row],[2023/24 Reduction]]+T_DataComboFile[[#This Row],[2023/24 Increase]] -> 0
C50: 2021_22 | D50: ENE2020 | E50: 6 | F50: 1 | G50: 1 | I50: 9151 | J50: 6 | K50: 1 | L50: 1 | N50: 009151 | O50: 06|01|01 | P50: 1 | Q50: 1 | R50: 2 | S50: 32 | T50: 32 | U50: 01|01|02|32|32 | V50: National | W50: International Relations and Cooperation | X50: Administration | Y50: Ministry | AA50: Current | AB50: Current payments | AC50: Goods and services | AD50: Consumables: Stationery, printing and office supplies | AE50: Consumables: Stationery, printing and office supplies | AI50: 0 | AJ50: 0 | AK50: 0 | AL50: 0 | AM50: 0 | AN50: 0 | AO50: 0 | AP50: 0 | AQ50: 0 | AR50: 0 | AS50: 0 | AT50: 0 | AU50: 0 | AV50: 0 | AX50: =IF(T_DataComboFile[[#This Row],[G&S reporting level indicator]]=1,$AX$16,"Not applicable") -> Not applicable | AY50: =IF(AND($AX$16="Level 3",T_DataComboFile[[#This Row],[Econ3]] = "Goods and services"),IF(T_DataComboFile[[#This Row],[Econ4]] = T_DataComboFile[[#This Row],[Econ3]],1,0),IF(AND($AX$16="Level 4",T_DataComboFile[[#This Row],[Econ4]] = "Goods and services"),0,1)) -> 0 | AZ50: =T_DataComboFile[[#This Row],[2016/17_Source]]*T_DataComboFile[[#This Row],[G&S reporting level indicator]] -> 0 | BA50: =T_DataComboFile[[#This Row],[2017/18_Source]]*T_DataComboFile[[#This Row],[G&S reporting level indicator]] -> 0 | BB50: =T_DataComboFile[[#This Row],[2018/19_Source]]*T_DataComboFile[[#This Row],[G&S reporting level indicator]] -> 0 | BC50: =T_DataComboFile[[#This Row],[2019/20 Main appropriation_Source]]*T_DataComboFile[[#This Row],[G&S reporting level indicator]] -> 0 | BD50: =T_DataComboFile[[#This Row],[2019/20 Adjusted appropriation_Source]]*T_DataComboFile[[#This Row],[G&S reporting level indicator]] -> 0 | BE50: =T_DataComboFile[[#This Row],[2019/20 Revised estimate_Source]]*T_DataComboFile[[#This Row],[G&S reporting level indicator]] -> 0 | BF50: =T_DataComboFile[[#This Row],[2019/20 Preliminary outcome_Source]]*T_DataComboFile[[#This Row],[G&S reporting level indicator]] -> 0 | BG50: =T_DataComboFile[[#This Row],[2020/21 Original_Source]]*T_DataComboFile[[#This Row],[G&S reporting level indicator]] -> 0 | BH50: =T_DataComboFile[[#This Row],[2020/21 SAB_Source]]*T_DataComboFile[[#This Row],[G&S reporting level indicator]] -> 0 | BI50: =T_DataComboFile[[#This Row],[2020/21 Baseline_Source]]*T_DataComboFile[[#This Row],[G&S reporting level indicator]] -> 0 | BJ50: =T_DataComboFile[[#This Row],[2021/22 Baseline_Source]]*T_DataComboFile[[#This Row],[G&S reporting level indicator]] -> 0 | BK50: =T_DataComboFile[[#This Row],[2022/23 Baseline_Source]]*T_DataComboFile[[#This Row],[G&S reporting level indicator]] -> 0 | BL50: =T_DataComboFile[[#This Row],[2023/24 Baseline_Source]]*T_DataComboFile[[#This Row],[G&S reporting level indicator]] -> 0 | BS50: =T_DataComboFile[[#This Row],[2021/22 Baseline]]+T_DataComboFile[[#This Row],[2021/22 Reduction]]+T_DataComboFile[[#This Row],[2021/22 Increase]] -> 0 | BT50: =T_DataComboFile[[#This Row],[2022/23 Baseline]]+T_DataComboFile[[#This Row],[2022/23 Reduction]]+T_DataComboFile[[#This Row],[2022/23 Increase]] -> 0 | BU50: =T_DataComboFile[[#This Row],[2023/24 Baseline]]+T_DataComboFile[[#This Row],[2023/24 Reduction]]+T_DataComboFile[[#This Row],[2023/24 Increase]] -> 0
C51: 2021_22 | D51: ENE2020 | E51: 6 | F51: 1 | G51: 1 | I51: 9152 | J51: 6 | K51: 1 | L51: 1 | N51: 009152 | O51: 06|01|01 | P51: 1 | Q51: 1 | R51: 2 | S51: 33 | T51: 33 | U51: 01|01|02|33|33 | V51: National | W51: International Relations and Cooperation | X51: Administration | Y51: Ministry | AA51: Current | AB51: Current payments | AC51: Goods and services | AD51: Operating leases | AE51: Operating leases | AI51: 0 | AJ51: 0 | AK51: 0 | AL51: 0 | AM51: 0 | AN51: 0 | AO51: 0 | AP51: 0 | AQ51: 0 | AR51: 0 | AS51: 0 | AT51: 0 | AU51: 0 | AV51: 0 | AX51: =IF(T_DataComboFile[[#This Row],[G&S reporting level indicator]]=1,$AX$16,"Not applicable") -> Not applicable | AY51: =IF(AND($AX$16="Level 3",T_DataComboFile[[#This Row],[Econ3]] = "Goods and services"),IF(T_DataComboFile[[#This Row],[Econ4]] = T_DataComboFile[[#This Row],[Econ3]],1,0),IF(AND($AX$16="Level 4",T_DataComboFile[[#This Row],[Econ4]] = "Goods and services"),0,1)) -> 0 | AZ51: =T_DataComboFile[[#This Row],[2016/17_Source]]*T_DataComboFile[[#This Row],[G&S reporting level indicator]] -> 0 | BA51: =T_DataComboFile[[#This Row],[2017/18_Source]]*T_DataComboFile[[#This Row],[G&S reporting level indicator]] -> 0 | BB51: =T_DataComboFile[[#This Row],[2018/19_Source]]*T_DataComboFile[[#This Row],[G&S reporting level indicator]] -> 0 | BC51: =T_DataComboFile[[#This Row],[2019/20 Main appropriation_Source]]*T_DataComboFile[[#This Row],[G&S reporting level indicator]] -> 0 | BD51: =T_DataComboFile[[#This Row],[2019/20 Adjusted appropriation_Source]]*T_DataComboFile[[#This Row],[G&S reporting level indicator]] -> 0 | BE51: =T_DataComboFile[[#This Row],[2019/20 Revised estimate_Source]]*T_DataComboFile[[#This Row],[G&S reporting level indicator]] -> 0 | BF51: =T_DataComboFile[[#This Row],[2019/20 Preliminary outcome_Source]]*T_DataComboFile[[#This Row],[G&S reporting level indicator]] -> 0 | BG51: =T_DataComboFile[[#This Row],[2020/21 Original_Source]]*T_DataComboFile[[#This Row],[G&S reporting level indicator]] -> 0 | BH51: =T_DataComboFile[[#This Row],[2020/21 SAB_Source]]*T_DataComboFile[[#This Row],[G&S reporting level indicator]] -> 0 | BI51: =T_DataComboFile[[#This Row],[2020/21 Baseline_Source]]*T_DataComboFile[[#This Row],[G&S reporting level indicator]] -> 0 | BJ51: =T_DataComboFile[[#This Row],[2021/22 Baseline_Source]]*T_DataComboFile[[#This Row],[G&S reporting level indicator]] -> 0 | BK51: =T_DataComboFile[[#This Row],[2022/23 Baseline_Source]]*T_DataComboFile[[#This Row],[G&S reporting level indicator]] -> 0 | BL51: =T_DataComboFile[[#This Row],[2023/24 Baseline_Source]]*T_DataComboFile[[#This Row],[G&S reporting level indicator]] -> 0 | BS51: =T_DataComboFile[[#This Row],[2021/22 Baseline]]+T_DataComboFile[[#This Row],[2021/22 Reduction]]+T_DataComboFile[[#This Row],[2021/22 Increase]] -> 0 | BT51: =T_DataComboFile[[#This Row],[2022/23 Baseline]]+T_DataComboFile[[#This Row],[2022/23 Reduction]]+T_DataComboFile[[#This Row],[2022/23 Increase]] -> 0 | BU51: =T_DataComboFile[[#This Row],[2023/24 Baseline]]+T_DataComboFile[[#This Row],[2023/24 Reduction]]+T_DataComboFile[[#This Row],[2023/24 Increase]] -> 0
C52: 2021_22 | D52: ENE2020 | E52: 6 | F52: 1 | G52: 1 | I52: 9153 | J52: 6 | K52: 1 | L52: 1 | N52: 009153 | O52: 06|01|01 | P52: 1 | Q52: 1 | R52: 2 | S52: 34 | T52: 34 | U52: 01|01|02|34|34 | V52: National | W52: International Relations and Cooperation | X52: Administration | Y52: Ministry | AA52: Current | AB52: Current payments | AC52: Goods and services | AD52: Rental and hiring | AE52: Rental and hiring | AI52: 0 | AJ52: 0 | AK52: 0 | AL52: 0 | AM52: 0 | AN52: 0 | AO52: 0 | AP52: 0 | AQ52: 0 | AR52: 0 | AS52: 0 | AT52: 0 | AU52: 0 | AV52: 0 | AX52: =IF(T_DataComboFile[[#This Row],[G&S reporting level indicator]]=1,$AX$16,"Not applicable") -> Not applicable | AY52: =IF(AND($AX$16="Level 3",T_DataComboFile[[#This Row],[Econ3]] = "Goods and services"),IF(T_DataComboFile[[#This Row],[Econ4]] = T_DataComboFile[[#This Row],[Econ3]],1,0),IF(AND($AX$16="Level 4",T_DataComboFile[[#This Row],[Econ4]] = "Goods and services"),0,1)) -> 0 | AZ52: =T_DataComboFile[[#This Row],[2016/17_Source]]*T_DataComboFile[[#This Row],[G&S reporting level indicator]] -> 0 | BA52: =T_DataComboFile[[#This Row],[2017/18_Source]]*T_DataComboFile[[#This Row],[G&S reporting level indicator]] -> 0 | BB52: =T_DataComboFile[[#This Row],[2018/19_Source]]*T_DataComboFile[[#This Row],[G&S reporting level indicator]] -> 0 | BC52: =T_DataComboFile[[#This Row],[2019/20 Main appropriation_Source]]*T_DataComboFile[[#This Row],[G&S reporting level indicator]] -> 0 | BD52: =T_DataComboFile[[#This Row],[2019/20 Adjusted appropriation_Source]]*T_DataComboFile[[#This Row],[G&S reporting level indicator]] -> 0 | BE52: =T_DataComboFile[[#This Row],[2019/20 Revised estimate_Source]]*T_DataComboFile[[#This Row],[G&S reporting level indicator]] -> 0 | BF52: =T_DataComboFile[[#This Row],[2019/20 Preliminary outcome_Source]]*T_DataComboFile[[#This Row],[G&S reporting level indicator]] -> 0 | BG52: =T_DataComboFile[[#This Row],[2020/21 Original_Source]]*T_DataComboFile[[#This Row],[G&S reporting level indicator]] -> 0 | BH52: =T_DataComboFile[[#This Row],[2020/21 SAB_Source]]*T_DataComboFile[[#This Row],[G&S reporting level indicator]] -> 0 | BI52: =T_DataComboFile[[#This Row],[2020/21 Baseline_Source]]*T_DataComboFile[[#This Row],[G&S reporting level indicator]] -> 0 | BJ52: =T_DataComboFile[[#This Row],[2021/22 Baseline_Source]]*T_DataComboFile[[#This Row],[G&S reporting level indicator]] -> 0 | BK52: =T_DataComboFile[[#This Row],[2022/23 Baseline_Source]]*T_DataComboFile[[#This Row],[G&S reporting level indicator]] -> 0 | BL52: =T_DataComboFile[[#This Row],[2023/24 Baseline_Source]]*T_DataComboFile[[#This Row],[G&S reporting level indicator]] -> 0 | BS52: =T_DataComboFile[[#This Row],[2021/22 Baseline]]+T_DataComboFile[[#This Row],[2021/22 Reduction]]+T_DataComboFile[[#This Row],[2021/22 Increase]] -> 0 | BT52: =T_DataComboFile[[#This Row],[2022/23 Baseline]]+T_DataComboFile[[#This Row],[2022/23 Reduction]]+T_DataComboFile[[#This Row],[2022/23 Increase]] -> 0 | BU52: =T_DataComboFile[[#This Row],[2023/24 Baseline]]+T_DataComboFile[[#This Row],[2023/24 Reduction]]+T_DataComboFile[[#This Row],[2023/24 Increase]] -> 0
C53: 2021_22 | D53: ENE2020 | E53: 6 | F53: 1 | G53: 1 | I53: 9154 | J53: 6 | K53: 1 | L53: 1 | N53: 009154 | O53: 06|01|01 | P53: 1 | Q53: 1 | R53: 2 | S53: 35 | T53: 35 | U53: 01|01|02|35|35 | V53: National | W53: International Relations and Cooperation | X53: Administration | Y53: Ministry | AA53: Current | AB53: Current payments | AC53: Goods and services | AD53: Property payments | AE53: Property payments | AI53: 0 | AJ53: 0 | AK53: 0 | AL53: 0 | AM53: 0 | AN53: 0 | AO53: 0 | AP53: 0 | AQ53: 0 | AR53: 0 | AS53: 0 | AT53: 0 | AU53: 0 | AV53: 0 | AX53: =IF(T_DataComboFile[[#This Row],[G&S reporting level indicator]]=1,$AX$16,"Not applicable") -> Not applicable | AY53: =IF(AND($AX$16="Level 3",T_DataComboFile[[#This Row],[Econ3]] = "Goods and services"),IF(T_DataComboFile[[#This Row],[Econ4]] = T_DataComboFile[[#This Row],[Econ3]],1,0),IF(AND($AX$16="Level 4",T_DataComboFile[[#This Row],[Econ4]] = "Goods and services"),0,1)) -> 0 | AZ53: =T_DataComboFile[[#This Row],[2016/17_Source]]*T_DataComboFile[[#This Row],[G&S reporting level indicator]] -> 0 | BA53: =T_DataComboFile[[#This Row],[2017/18_Source]]*T_DataComboFile[[#This Row],[G&S reporting level indicator]] -> 0 | BB53: =T_DataComboFile[[#This Row],[2018/19_Source]]*T_DataComboFile[[#This Row],[G&S reporting level indicator]] -> 0 | BC53: =T_DataComboFile[[#This Row],[2019/20 Main appropriation_Source]]*T_DataComboFile[[#This Row],[G&S reporting level indicator]] -> 0 | BD53: =T_DataComboFile[[#This Row],[2019/20 Adjusted appropriation_Source]]*T_DataComboFile[[#This Row],[G&S reporting level indicator]] -> 0 | BE53: =T_DataComboFile[[#This Row],[2019/20 Revised estimate_Source]]*T_DataComboFile[[#This Row],[G&S reporting level indicator]] -> 0 | BF53: =T_DataComboFile[[#This Row],[2019/20 Preliminary outcome_Source]]*T_DataComboFile[[#This Row],[G&S reporting level indicator]] -> 0 | BG53: =T_DataComboFile[[#This Row],[2020/21 Original_Source]]*T_DataComboFile[[#This Row],[G&S reporting level indicator]] -> 0 | BH53: =T_DataComboFile[[#This Row],[2020/21 SAB_Source]]*T_DataComboFile[[#This Row],[G&S reporting level indicator]] -> 0 | BI53: =T_DataComboFile[[#This Row],[2020/21 Baseline_Source]]*T_DataComboFile[[#This Row],[G&S reporting level indicator]] -> 0 | BJ53: =T_DataComboFile[[#This Row],[2021/22 Baseline_Source]]*T_DataComboFile[[#This Row],[G&S reporting level indicator]] -> 0 | BK53: =T_DataComboFile[[#This Row],[2022/23 Baseline_Source]]*T_DataComboFile[[#This Row],[G&S reporting level indicator]] -> 0 | BL53: =T_DataComboFile[[#This Row],[2023/24 Baseline_Source]]*T_DataComboFile[[#This Row],[G&S reporting level indicator]] -> 0 | BS53: =T_DataComboFile[[#This Row],[2021/22 Baseline]]+T_DataComboFile[[#This Row],[2021/22 Reduction]]+T_DataComboFile[[#This Row],[2021/22 Increase]] -> 0 | BT53: =T_DataComboFile[[#This Row],[2022/23 Baseline]]+T_DataComboFile[[#This Row],[2022/23 Reduction]]+T_DataComboFile[[#This Row],[2022/23 Increase]] -> 0 | BU53: =T_DataComboFile[[#This Row],[2023/24 Baseline]]+T_DataComboFile[[#This Row],[2023/24 Reduction]]+T_DataComboFile[[#This Row],[2023/24 Increase]] -> 0
C54: 2021_22 | D54: ENE2020 | E54: 6 | F54: 1 | G54: 1 | I54: 9155 | J54: 6 | K54: 1 | L54: 1 | N54: 009155 | O54: 06|01|01 | P54: 1 | Q54: 1 | R54: 2 | S54: 36 | T54: 36 | U54: 01|01|02|36|36 | V54: National | W54: International Relations and Cooperation | X54: Administration | Y54: Ministry | AA54: Current | AB54: Current payments | AC54: Goods and services | AD54: Transport provided: Departmental activity | AE54: Transport provided: Departmental activity | AI54: 0 | AJ54: 0 | AK54: 0 | AL54: 0 | AM54: 0 | AN54: 0 | AO54: 0 | AP54: 0 | AQ54: 0 | AR54: 0 | AS54: 0 | AT54: 0 | AU54: 0 | AV54: 0 | AX54: =IF(T_DataComboFile[[#This Row],[G&S reporting level indicator]]=1,$AX$16,"Not applicable") -> Not applicable | AY54: =IF(AND($AX$16="Level 3",T_DataComboFile[[#This Row],[Econ3]] = "Goods and services"),IF(T_DataComboFile[[#This Row],[Econ4]] = T_DataComboFile[[#This Row],[Econ3]],1,0),IF(AND($AX$16="Level 4",T_DataComboFile[[#This Row],[Econ4]] = "Goods and services"),0,1)) -> 0 | AZ54: =T_DataComboFile[[#This Row],[2016/17_Source]]*T_DataComboFile[[#This Row],[G&S reporting level indicator]] -> 0 | BA54: =T_DataComboFile[[#This Row],[2017/18_Source]]*T_DataComboFile[[#This Row],[G&S reporting level indicator]] -> 0 | BB54: =T_DataComboFile[[#This Row],[2018/19_Source]]*T_DataComboFile[[#This Row],[G&S reporting level indicator]] -> 0 | BC54: =T_DataComboFile[[#This Row],[2019/20 Main appropriation_Source]]*T_DataComboFile[[#This Row],[G&S reporting level indicator]] -> 0 | BD54: =T_DataComboFile[[#This Row],[2019/20 Adjusted appropriation_Source]]*T_DataComboFile[[#This Row],[G&S reporting level indicator]] -> 0 | BE54: =T_DataComboFile[[#This Row],[2019/20 Revised estimate_Source]]*T_DataComboFile[[#This Row],[G&S reporting level indicator]] -> 0 | BF54: =T_DataComboFile[[#This Row],[2019/20 Preliminary outcome_Source]]*T_DataComboFile[[#This Row],[G&S reporting level indicator]] -> 0 | BG54: =T_DataComboFile[[#This Row],[2020/21 Original_Source]]*T_DataComboFile[[#This Row],[G&S reporting level indicator]] -> 0 | BH54: =T_DataComboFile[[#This Row],[2020/21 SAB_Source]]*T_DataComboFile[[#This Row],[G&S reporting level indicator]] -> 0 | BI54: =T_DataComboFile[[#This Row],[2020/21 Baseline_Source]]*T_DataComboFile[[#This Row],[G&S reporting level indicator]] -> 0 | BJ54: =T_DataComboFile[[#This Row],[2021/22 Baseline_Source]]*T_DataComboFile[[#This Row],[G&S reporting level indicator]] -> 0 | BK54: =T_DataComboFile[[#This Row],[2022/23 Baseline_Source]]*T_DataComboFile[[#This Row],[G&S reporting level indicator]] -> 0 | BL54: =T_DataComboFile[[#This Row],[2023/24 Baseline_Source]]*T_DataComboFile[[#This Row],[G&S reporting level indicator]] -> 0 | BS54: =T_DataComboFile[[#This Row],[2021/22 Baseline]]+T_DataComboFile[[#This Row],[2021/22 Reduction]]+T_DataComboFile[[#This Row],[2021/22 Increase]] -> 0 | BT54: =T_DataComboFile[[#This Row],[2022/23 Baseline]]+T_DataComboFile[[#This Row],[2022/23 Reduction]]+T_DataComboFile[[#This Row],[2022/23 Increase]] -> 0 | BU54: =T_DataComboFile[[#This Row],[2023/24 Baseline]]+T_DataComboFile[[#This Row],[2023/24 Reduction]]+T_DataComboFile[[#This Row],[2023/24 Increase]] -> 0
C55: 2021_22 | D55: ENE2020 | E55: 6 | F55: 1 | G55: 1 | I55: 9156 | J55: 6 | K55: 1 | L55: 1 | N55: 009156 | O55: 06|01|01 | P55: 1 | Q55: 1 | R55: 2 | S55: 37 | T55: 37 | U55: 01|01|02|37|37 | V55: National | W55: International Relations and Cooperation | X55: Administration | Y55: Ministry | AA55: Current | AB55: Current payments | AC55: Goods and services | AD55: Travel and subsistence | AE55: Travel and subsistence | AI55: 0 | AJ55: 0 | AK55: 0 | AL55: 0 | AM55: 0 | AN55: 0 | AO55: 0 | AP55: 0 | AQ55: 0 | AR55: 0 | AS55: 0 | AT55: 0 | AU55: 0 | AV55: 0 | AX55: =IF(T_DataComboFile[[#This Row],[G&S reporting level indicator]]=1,$AX$16,"Not applicable") -> Not applicable | AY55: =IF(AND($AX$16="Level 3",T_DataComboFile[[#This Row],[Econ3]] = "Goods and services"),IF(T_DataComboFile[[#This Row],[Econ4]] = T_DataComboFile[[#This Row],[Econ3]],1,0),IF(AND($AX$16="Level 4",T_DataComboFile[[#This Row],[Econ4]] = "Goods and services"),0,1)) -> 0 | AZ55: =T_DataComboFile[[#This Row],[2016/17_Source]]*T_DataComboFile[[#This Row],[G&S reporting level indicator]] -> 0 | BA55: =T_DataComboFile[[#This Row],[2017/18_Source]]*T_DataComboFile[[#This Row],[G&S reporting level indicator]] -> 0 | BB55: =T_DataComboFile[[#This Row],[2018/19_Source]]*T_DataComboFile[[#This Row],[G&S reporting level indicator]] -> 0 | BC55: =T_DataComboFile[[#This Row],[2019/20 Main appropriation_Source]]*T_DataComboFile[[#This Row],[G&S reporting level indicator]] -> 0 | BD55: =T_DataComboFile[[#This Row],[2019/20 Adjusted appropriation_Source]]*T_DataComboFile[[#This Row],[G&S reporting level indicator]] -> 0 | BE55: =T_DataComboFile[[#This Row],[2019/20 Revised estimate_Source]]*T_DataComboFile[[#This Row],[G&S reporting level indicator]] -> 0 | BF55: =T_DataComboFile[[#This Row],[2019/20 Preliminary outcome_Source]]*T_DataComboFile[[#This Row],[G&S reporting level indicator]] -> 0 | BG55: =T_DataComboFile[[#This Row],[2020/21 Original_Source]]*T_DataComboFile[[#This Row],[G&S reporting level indicator]] -> 0 | BH55: =T_DataComboFile[[#This Row],[2020/21 SAB_Source]]*T_DataComboFile[[#This Row],[G&S reporting level indicator]] -> 0 | BI55: =T_DataComboFile[[#This Row],[2020/21 Baseline_Source]]*T_DataComboFile[[#This Row],[G&S reporting level indicator]] -> 0 | BJ55: =T_DataComboFile[[#This Row],[2021/22 Baseline_Source]]*T_DataComboFile[[#This Row],[G&S reporting level indicator]] -> 0 | BK55: =T_DataComboFile[[#This Row],[2022/23 Baseline_Source]]*T_DataComboFile[[#This Row],[G&S reporting level indicator]] -> 0 | BL55: =T_DataComboFile[[#This Row],[2023/24 Baseline_Source]]*T_DataComboFile[[#This Row],[G&S reporting level indicator]] -> 0 | BS55: =T_DataComboFile[[#This Row],[2021/22 Baseline]]+T_DataComboFile[[#This Row],[2021/22 Reduction]]+T_DataComboFile[[#This Row],[2021/22 Increase]] -> 0 | BT55: =T_DataComboFile[[#This Row],[2022/23 Baseline]]+T_DataComboFile[[#This Row],[2022/23 Reduction]]+T_DataComboFile[[#This Row],[2022/23 Increase]] -> 0 | BU55: =T_DataComboFile[[#This Row],[2023/24 Baseline]]+T_DataComboFile[[#This Row],[2023/24 Reduction]]+T_DataComboFile[[#This Row],[2023/24 Increase]] -> 0
C56: 2021_22 | D56: ENE2020 | E56: 6 | F56: 1 | G56: 1 | I56: 9157 | J56: 6 | K56: 1 | L56: 1 | N56: 009157 | O56: 06|01|01 | P56: 1 | Q56: 1 | R56: 2 | S56: 38 | T56: 38 | U56: 01|01|02|38|38 | V56: National | W56: International Relations and Cooperation | X56: Administration | Y56: Ministry | AA56: Current | AB56: Current payments | AC56: Goods and services | AD56: Training and development | AE56: Training and development | AI56: 0 | AJ56: 0 | AK56: 0 | AL56: 0 | AM56: 0 | AN56: 0 | AO56: 0 | AP56: 0 | AQ56: 0 | AR56: 0 | AS56: 0 | AT56: 0 | AU56: 0 | AV56: 0 | AX56: =IF(T_DataComboFile[[#This Row],[G&S reporting level indicator]]=1,$AX$16,"Not applicable") -> Not applicable | AY56: =IF(AND($AX$16="Level 3",T_DataComboFile[[#This Row],[Econ3]] = "Goods and services"),IF(T_DataComboFile[[#This Row],[Econ4]] = T_DataComboFile[[#This Row],[Econ3]],1,0),IF(AND($AX$16="Level 4",T_DataComboFile[[#This Row],[Econ4]] = "Goods and services"),0,1)) -> 0 | AZ56: =T_DataComboFile[[#This Row],[2016/17_Source]]*T_DataComboFile[[#This Row],[G&S reporting level indicator]] -> 0 | BA56: =T_DataComboFile[[#This Row],[2017/18_Source]]*T_DataComboFile[[#This Row],[G&S reporting level indicator]] -> 0 | BB56: =T_DataComboFile[[#This Row],[2018/19_Source]]*T_DataComboFile[[#This Row],[G&S reporting level indicator]] -> 0 | BC56: =T_DataComboFile[[#This Row],[2019/20 Main appropriation_Source]]*T_DataComboFile[[#This Row],[G&S reporting level indicator]] -> 0 | BD56: =T_DataComboFile[[#This Row],[2019/20 Adjusted appropriation_Source]]*T_DataComboFile[[#This Row],[G&S reporting level indicator]] -> 0 | BE56: =T_DataComboFile[[#This Row],[2019/20 Revised estimate_Source]]*T_DataComboFile[[#This Row],[G&S reporting level indicator]] -> 0 | BF56: =T_DataComboFile[[#This Row],[2019/20 Preliminary outcome_Source]]*T_DataComboFile[[#This Row],[G&S reporting level indicator]] -> 0 | BG56: =T_DataComboFile[[#This Row],[2020/21 Original_Source]]*T_DataComboFile[[#This Row],[G&S reporting level indicator]] -> 0 | BH56: =T_DataComboFile[[#This Row],[2020/21 SAB_Source]]*T_DataComboFile[[#This Row],[G&S reporting level indicator]] -> 0 | BI56: =T_DataComboFile[[#This Row],[2020/21 Baseline_Source]]*T_DataComboFile[[#This Row],[G&S reporting level indicator]] -> 0 | BJ56: =T_DataComboFile[[#This Row],[2021/22 Baseline_Source]]*T_DataComboFile[[#This Row],[G&S reporting level indicator]] -> 0 | BK56: =T_DataComboFile[[#This Row],[2022/23 Baseline_Source]]*T_DataComboFile[[#This Row],[G&S reporting level indicator]] -> 0 | BL56: =T_DataComboFile[[#This Row],[2023/24 Baseline_Source]]*T_DataComboFile[[#This Row],[G&S reporting level indicator]] -> 0 | BS56: =T_DataComboFile[[#This Row],[2021/22 Baseline]]+T_DataComboFile[[#This Row],[2021/22 Reduction]]+T_DataComboFile[[#This Row],[2021/22 Increase]] -> 0 | BT56: =T_DataComboFile[[#This Row],[2022/23 Baseline]]+T_DataComboFile[[#This Row],[2022/23 Reduction]]+T_DataComboFile[[#This Row],[2022/23 Increase]] -> 0 | BU56: =T_DataComboFile[[#This Row],[2023/24 Baseline]]+T_DataComboFile[[#This Row],[2023/24 Reduction]]+T_DataComboFile[[#This Row],[2023/24 Increase]] -> 0
C57: 2021_22 | D57: ENE2020 | E57: 6 | F57: 1 | G57: 1 | I57: 9158 | J57: 6 | K57: 1 | L57: 1 | N57: 009158 | O57: 06|01|01 | P57: 1 | Q57: 1 | R57: 2 | S57: 39 | T57: 39 | U57: 01|01|02|39|39 | V57: National | W57: International Relations and Cooperation | X57: Administration | Y57: Ministry | AA57: Current | AB57: Current payments | AC57: Goods and services | AD57: Operating payments | AE57: Operating payments | AI57: 0 | AJ57: 0 | AK57: 0 | AL57: 0 | AM57: 0 | AN57: 0 | AO57: 0 | AP57: 0 | AQ57: 0 | AR57: 0 | AS57: 0 | AT57: 0 | AU57: 0 | AV57: 0 | AX57: =IF(T_DataComboFile[[#This Row],[G&S reporting level indicator]]=1,$AX$16,"Not applicable") -> Not applicable | AY57: =IF(AND($AX$16="Level 3",T_DataComboFile[[#This Row],[Econ3]] = "Goods and services"),IF(T_DataComboFile[[#This Row],[Econ4]] = T_DataComboFile[[#This Row],[Econ3]],1,0),IF(AND($AX$16="Level 4",T_DataComboFile[[#This Row],[Econ4]] = "Goods and services"),0,1)) -> 0 | AZ57: =T_DataComboFile[[#This Row],[2016/17_Source]]*T_DataComboFile[[#This Row],[G&S reporting level indicator]] -> 0 | BA57: =T_DataComboFile[[#This Row],[2017/18_Source]]*T_DataComboFile[[#This Row],[G&S reporting level indicator]] -> 0 | BB57: =T_DataComboFile[[#This Row],[2018/19_Source]]*T_DataComboFile[[#This Row],[G&S reporting level indicator]] -> 0 | BC57: =T_DataComboFile[[#This Row],[2019/20 Main appropriation_Source]]*T_DataComboFile[[#This Row],[G&S reporting level indicator]] -> 0 | BD57: =T_DataComboFile[[#This Row],[2019/20 Adjusted appropriation_Source]]*T_DataComboFile[[#This Row],[G&S reporting level indicator]] -> 0 | BE57: =T_DataComboFile[[#This Row],[2019/20 Revised estimate_Source]]*T_DataComboFile[[#This Row],[G&S reporting level indicator]] -> 0 | BF57: =T_DataComboFile[[#This Row],[2019/20 Preliminary outcome_Source]]*T_DataComboFile[[#This Row],[G&S reporting level indicator]] -> 0 | BG57: =T_DataComboFile[[#This Row],[2020/21 Original_Source]]*T_DataComboFile[[#This Row],[G&S reporting level indicator]] -> 0 | BH57: =T_DataComboFile[[#This Row],[2020/21 SAB_Source]]*T_DataComboFile[[#This Row],[G&S reporting level indicator]] -> 0 | BI57: =T_DataComboFile[[#This Row],[2020/21 Baseline_Source]]*T_DataComboFile[[#This Row],[G&S reporting level indicator]] -> 0 | BJ57: =T_DataComboFile[[#This Row],[2021/22 Baseline_Source]]*T_DataComboFile[[#This Row],[G&S reporting level indicator]] -> 0 | BK57: =T_DataComboFile[[#This Row],[2022/23 Baseline_Source]]*T_DataComboFile[[#This Row],[G&S reporting level indicator]] -> 0 | BL57: =T_DataComboFile[[#This Row],[2023/24 Baseline_Source]]*T_DataComboFile[[#This Row],[G&S reporting level indicator]] -> 0 | BS57: =T_DataComboFile[[#This Row],[2021/22 Baseline]]+T_DataComboFile[[#This Row],[2021/22 Reduction]]+T_DataComboFile[[#This Row],[2021/22 Increase]] -> 0 | BT57: =T_DataComboFile[[#This Row],[2022/23 Baseline]]+T_DataComboFile[[#This Row],[2022/23 Reduction]]+T_DataComboFile[[#This Row],[2022/23 Increase]] -> 0 | BU57: =T_DataComboFile[[#This Row],[2023/24 Baseline]]+T_DataComboFile[[#This Row],[2023/24 Reduction]]+T_DataComboFile[[#This Row],[2023/24 Increase]] -> 0
C58: 2021_22 | D58: ENE2020 | E58: 6 | F58: 1 | G58: 1 | I58: 9159 | J58: 6 | K58: 1 | L58: 1 | N58: 009159 | O58: 06|01|01 | P58: 1 | Q58: 1 | R58: 2 | S58: 40 | T58: 40 | U58: 01|01|02|40|40 | V58: National | W58: International Relations and Cooperation | X58: Administration | Y58: Ministry | AA58: Current | AB58: Current payments | AC58: Goods and services | AD58: Venues and facilities | AE58: Venues and facilities | AI58: 0 | AJ58: 0 | AK58: 0 | AL58: 0 | AM58: 0 | AN58: 0 | AO58: 0 | AP58: 0 | AQ58: 0 | AR58: 0 | AS58: 0 | AT58: 0 | AU58: 0 | AV58: 0 | AX58: =IF(T_DataComboFile[[#This Row],[G&S reporting level indicator]]=1,$AX$16,"Not applicable") -> Not applicable | AY58: =IF(AND($AX$16="Level 3",T_DataComboFile[[#This Row],[Econ3]] = "Goods and services"),IF(T_DataComboFile[[#This Row],[Econ4]] = T_DataComboFile[[#This Row],[Econ3]],1,0),IF(AND($AX$16="Level 4",T_DataComboFile[[#This Row],[Econ4]] = "Goods and services"),0,1)) -> 0 | AZ58: =T_DataComboFile[[#This Row],[2016/17_Source]]*T_DataComboFile[[#This Row],[G&S reporting level indicator]] -> 0 | BA58: =T_DataComboFile[[#This Row],[2017/18_Source]]*T_DataComboFile[[#This Row],[G&S reporting level indicator]] -> 0 | BB58: =T_DataComboFile[[#This Row],[2018/19_Source]]*T_DataComboFile[[#This Row],[G&S reporting level indicator]] -> 0 | BC58: =T_DataComboFile[[#This Row],[2019/20 Main appropriation_Source]]*T_DataComboFile[[#This Row],[G&S reporting level indicator]] -> 0 | BD58: =T_DataComboFile[[#This Row],[2019/20 Adjusted appropriation_Source]]*T_DataComboFile[[#This Row],[G&S reporting level indicator]] -> 0 | BE58: =T_DataComboFile[[#This Row],[2019/20 Revised estimate_Source]]*T_DataComboFile[[#This Row],[G&S reporting level indicator]] -> 0 | BF58: =T_DataComboFile[[#This Row],[2019/20 Preliminary outcome_Source]]*T_DataComboFile[[#This Row],[G&S reporting level indicator]] -> 0 | BG58: =T_DataComboFile[[#This Row],[2020/21 Original_Source]]*T_DataComboFile[[#This Row],[G&S reporting level indicator]] -> 0 | BH58: =T_DataComboFile[[#This Row],[2020/21 SAB_Source]]*T_DataComboFile[[#This Row],[G&S reporting level indicator]] -> 0 | BI58: =T_DataComboFile[[#This Row],[2020/21 Baseline_Source]]*T_DataComboFile[[#This Row],[G&S reporting level indicator]] -> 0 | BJ58: =T_DataComboFile[[#This Row],[2021/22 Baseline_Source]]*T_DataComboFile[[#This Row],[G&S reporting level indicator]] -> 0 | BK58: =T_DataComboFile[[#This Row],[2022/23 Baseline_Source]]*T_DataComboFile[[#This Row],[G&S reporting level indicator]] -> 0 | BL58: =T_DataComboFile[[#This Row],[2023/24 Baseline_Source]]*T_DataComboFile[[#This Row],[G&S reporting level indicator]] -> 0 | BS58: =T_DataComboFile[[#This Row],[2021/22 Baseline]]+T_DataComboFile[[#This Row],[2021/22 Reduction]]+T_DataComboFile[[#This Row],[2021/22 Increase]] -> 0 | BT58: =T_DataComboFile[[#This Row],[2022/23 Baseline]]+T_DataComboFile[[#This Row],[2022/23 Reduction]]+T_DataComboFile[[#This Row],[2022/23 Increase]] -> 0 | BU58: =T_DataComboFile[[#This Row],[2023/24 Baseline]]+T_DataComboFile[[#This Row],[2023/24 Reduction]]+T_DataComboFile[[#This Row],[2023/24 Increase]] -> 0
C59: 2021_22 | D59: ENE2020 | E59: 6 | F59: 1 | G59: 1 | I59: 9160 | J59: 6 | K59: 1 | L59: 1 | N59: 009160 | O59: 06|01|01 | P59: 1 | Q59: 1 | R59: 3 | S59: 41 | T59: 41 | U59: 01|01|03|41|41 | V59: National | W59: International Relations and Cooperation | X59: Administration | Y59: Ministry | AA59: Current | AB59: Current payments | AC59: Interest and rent on land | AD59: Interest (Incl. interest on unitary payments (PPP)) | AE59: Interest (Incl. interest on unitary payments (PPP)) | AI59: 0 | AJ59: 0 | AK59: 0 | AL59: 0 | AM59: 0 | AN59: 0 | AO59: 0 | AP59: 0 | AQ59: 0 | AR59: 0 | AS59: 0 | AT59: 0 | AU59: 0 | AV59: 0 | AX59: =IF(T_DataComboFile[[#This Row],[G&S reporting level indicator]]=1,$AX$16,"Not applicable") -> Level 3 | AY59: =IF(AND($AX$16="Level 3",T_DataComboFile[[#This Row],[Econ3]] = "Goods and services"),IF(T_DataComboFile[[#This Row],[Econ4]] = T_DataComboFile[[#This Row],[Econ3]],1,0),IF(AND($AX$16="Level 4",T_DataComboFile[[#This Row],[Econ4]] = "Goods and services"),0,1)) -> 1 | AZ59: =T_DataComboFile[[#This Row],[2016/17_Source]]*T_DataComboFile[[#This Row],[G&S reporting level indicator]] -> 0 | BA59: =T_DataComboFile[[#This Row],[2017/18_Source]]*T_DataComboFile[[#This Row],[G&S reporting level indicator]] -> 0 | BB59: =T_DataComboFile[[#This Row],[2018/19_Source]]*T_DataComboFile[[#This Row],[G&S reporting level indicator]] -> 0 | BC59: =T_DataComboFile[[#This Row],[2019/20 Main appropriation_Source]]*T_DataComboFile[[#This Row],[G&S reporting level indicator]] -> 0 | BD59: =T_DataComboFile[[#This Row],[2019/20 Adjusted appropriation_Source]]*T_DataComboFile[[#This Row],[G&S reporting level indicator]] -> 0 | BE59: =T_DataComboFile[[#This Row],[2019/20 Revised estimate_Source]]*T_DataComboFile[[#This Row],[G&S reporting level indicator]] -> 0 | BF59: =T_DataComboFile[[#This Row],[2019/20 Preliminary outcome_Source]]*T_DataComboFile[[#This Row],[G&S reporting level indicator]] -> 0 | BG59: =T_DataComboFile[[#This Row],[2020/21 Original_Source]]*T_DataComboFile[[#This Row],[G&S reporting level indicator]] -> 0 | BH59: =T_DataComboFile[[#This Row],[2020/21 SAB_Source]]*T_DataComboFile[[#This Row],[G&S reporting level indicator]] -> 0 | BI59: =T_DataComboFile[[#This Row],[2020/21 Baseline_Source]]*T_DataComboFile[[#This Row],[G&S reporting level indicator]] -> 0 | BJ59: =T_DataComboFile[[#This Row],[2021/22 Baseline_Source]]*T_DataComboFile[[#This Row],[G&S reporting level indicator]] -> 0 | BK59: =T_DataComboFile[[#This Row],[2022/23 Baseline_Source]]*T_DataComboFile[[#This Row],[G&S reporting level indicator]] -> 0 | BL59: =T_DataComboFile[[#This Row],[2023/24 Baseline_Source]]*T_DataComboFile[[#This Row],[G&S reporting level indicator]] -> 0 | BS59: =T_DataComboFile[[#This Row],[2021/22 Baseline]]+T_DataComboFile[[#This Row],[2021/22 Reduction]]+T_DataComboFile[[#This Row],[2021/22 Increase]] -> 0 | BT59: =T_DataComboFile[[#This Row],[2022/23 Baseline]]+T_DataComboFile[[#This Row],[2022/23 Reduction]]+T_DataComboFile[[#This Row],[2022/23 Increase]] -> 0 | BU59: =T_DataComboFile[[#This Row],[2023/24 Baseline]]+T_DataComboFile[[#This Row],[2023/24 Reduction]]+T_DataComboFile[[#This Row],[2023/24 Increase]] -> 0
C60: 2021_22 | D60: ENE2020 | E60: 6 | F60: 1 | G60: 1 | I60: 9161 | J60: 6 | K60: 1 | L60: 1 | N60: 009161 | O60: 06|01|01 | P60: 1 | Q60: 1 | R60: 3 | S60: 42 | T60: 42 | U60: 01|01|03|42|42 | V60: National | W60: International Relations and Cooperation | X60: Administration | Y60: Ministry | AA60: Current | AB60: Current payments | AC60: Interest and rent on land | AD60: Rent on land | AE60: Rent on land | AI60: 0 | AJ60: 0 | AK60: 0 | AL60: 0 | AM60: 0 | AN60: 0 | AO60: 0 | AP60: 0 | AQ60: 0 | AR60: 0 | AS60: 0 | AT60: 0 | AU60: 0 | AV60: 0 | AX60: =IF(T_DataComboFile[[#This Row],[G&S reporting level indicator]]=1,$AX$16,"Not applicable") -> Level 3 | AY60: =IF(AND($AX$16="Level 3",T_DataComboFile[[#This Row],[Econ3]] = "Goods and services"),IF(T_DataComboFile[[#This Row],[Econ4]] = T_DataComboFile[[#This Row],[Econ3]],1,0),IF(AND($AX$16="Level 4",T_DataComboFile[[#This Row],[Econ4]] = "Goods and services"),0,1)) -> 1 | AZ60: =T_DataComboFile[[#This Row],[2016/17_Source]]*T_DataComboFile[[#This Row],[G&S reporting level indicator]] -> 0 | BA60: =T_DataComboFile[[#This Row],[2017/18_Source]]*T_DataComboFile[[#This Row],[G&S reporting level indicator]] -> 0 | BB60: =T_DataComboFile[[#This Row],[2018/19_Source]]*T_DataComboFile[[#This Row],[G&S reporting level indicator]] -> 0 | BC60: =T_DataComboFile[[#This Row],[2019/20 Main appropriation_Source]]*T_DataComboFile[[#This Row],[G&S reporting level indicator]] -> 0 | BD60: =T_DataComboFile[[#This Row],[2019/20 Adjusted appropriation_Source]]*T_DataComboFile[[#This Row],[G&S reporting level indicator]] -> 0 | BE60: =T_DataComboFile[[#This Row],[2019/20 Revised estimate_Source]]*T_DataComboFile[[#This Row],[G&S reporting level indicator]] -> 0 | BF60: =T_DataComboFile[[#This Row],[2019/20 Preliminary outcome_Source]]*T_DataComboFile[[#This Row],[G&S reporting level indicator]] -> 0 | BG60: =T_DataComboFile[[#This Row],[2020/21 Original_Source]]*T_DataComboFile[[#This Row],[G&S reporting level indicator]] -> 0 | BH60: =T_DataComboFile[[#This Row],[2020/21 SAB_Source]]*T_DataComboFile[[#This Row],[G&S reporting level indicator]] -> 0 | BI60: =T_DataComboFile[[#This Row],[2020/21 Baseline_Source]]*T_DataComboFile[[#This Row],[G&S reporting level indicator]] -> 0 | BJ60: =T_DataComboFile[[#This Row],[2021/22 Baseline_Source]]*T_DataComboFile[[#This Row],[G&S reporting level indicator]] -> 0 | BK60: =T_DataComboFile[[#This Row],[2022/23 Baseline_Source]]*T_DataComboFile[[#This Row],[G&S reporting level indicator]] -> 0 | BL60: =T_DataComboFile[[#This Row],[2023/24 Baseline_Source]]*T_DataComboFile[[#This Row],[G&S reporting level indicator]] -> 0 | BS60: =T_DataComboFile[[#This Row],[2021/22 Baseline]]+T_DataComboFile[[#This Row],[2021/22 Reduction]]+T_DataComboFile[[#This Row],[2021/22 Increase]] -> 0 | BT60: =T_DataComboFile[[#This Row],[2022/23 Baseline]]+T_DataComboFile[[#This Row],[2022/23 Reduction]]+T_DataComboFile[[#This Row],[2022/23 Increase]] -> 0 | BU60: =T_DataComboFile[[#This Row],[2023/24 Baseline]]+T_DataComboFile[[#This Row],[2023/24 Reduction]]+T_DataComboFile[[#This Row],[2023/24 Increase]] -> 0
C61: 2021_22 | D61: ENE2020 | E61: 6 | F61: 1 | G61: 1 | I61: 9162 | J61: 6 | K61: 1 | L61: 1 | N61: 009162 | O61: 06|01|01 | P61: 1 | Q61: 2 | R61: 4 | S61: 43 | T61: 43 | U61: 01|02|04|43|43 | V61: National | W61: International Relations and Cooperation | X61: Administration | Y61: Ministry | AA61: Current | AB61: Transfers and subsidies | AC61: Provinces and municipalities | AD61: Provinces | AE61: Provincial Revenue Funds | AI61: 0 | AJ61: 0 | AK61: 0 | AL61: 0 | AM61: 0 | AN61: 0 | AO61: 0 | AP61: 0 | AQ61: 0 | AR61: 0 | AS61: 0 | AT61: 0 | AU61: 0 | AV61: 0 | AX61: =IF(T_DataComboFile[[#This Row],[G&S reporting level indicator]]=1,$AX$16,"Not applicable") -> Level 3 | AY61: =IF(AND($AX$16="Level 3",T_DataComboFile[[#This Row],[Econ3]] = "Goods and services"),IF(T_DataComboFile[[#This Row],[Econ4]] = T_DataComboFile[[#This Row],[Econ3]],1,0),IF(AND($AX$16="Level 4",T_DataComboFile[[#This Row],[Econ4]] = "Goods and services"),0,1)) -> 1 | AZ61: =T_DataComboFile[[#This Row],[2016/17_Source]]*T_DataComboFile[[#This Row],[G&S reporting level indicator]] -> 0 | BA61: =T_DataComboFile[[#This Row],[2017/18_Source]]*T_DataComboFile[[#This Row],[G&S reporting level indicator]] -> 0 | BB61: =T_DataComboFile[[#This Row],[2018/19_Source]]*T_DataComboFile[[#This Row],[G&S reporting level indicator]] -> 0 | BC61: =T_DataComboFile[[#This Row],[2019/20 Main appropriation_Source]]*T_DataComboFile[[#This Row],[G&S reporting level indicator]] -> 0 | BD61: =T_DataComboFile[[#This Row],[2019/20 Adjusted appropriation_Source]]*T_DataComboFile[[#This Row],[G&S reporting level indicator]] -> 0 | BE61: =T_DataComboFile[[#This Row],[2019/20 Revised estimate_Source]]*T_DataComboFile[[#This Row],[G&S reporting level indicator]] -> 0 | BF61: =T_DataComboFile[[#This Row],[2019/20 Preliminary outcome_Source]]*T_DataComboFile[[#This Row],[G&S reporting level indicator]] -> 0 | BG61: =T_DataComboFile[[#This Row],[2020/21 Original_Source]]*T_DataComboFile[[#This Row],[G&S reporting level indicator]] -> 0 | BH61: =T_DataComboFile[[#This Row],[2020/21 SAB_Source]]*T_DataComboFile[[#This Row],[G&S reporting level indicator]] -> 0 | BI61: =T_DataComboFile[[#This Row],[2020/21 Baseline_Source]]*T_DataComboFile[[#This Row],[G&S reporting level indicator]] -> 0 | BJ61: =T_DataComboFile[[#This Row],[2021/22 Baseline_Source]]*T_DataComboFile[[#This Row],[G&S reporting level indicator]] -> 0 | BK61: =T_DataComboFile[[#This Row],[2022/23 Baseline_Source]]*T_DataComboFile[[#This Row],[G&S reporting level indicator]] -> 0 | BL61: =T_DataComboFile[[#This Row],[2023/24 Baseline_Source]]*T_DataComboFile[[#This Row],[G&S reporting level indicator]] -> 0 | BS61: =T_DataComboFile[[#This Row],[2021/22 Baseline]]+T_DataComboFile[[#This Row],[2021/22 Reduction]]+T_DataComboFile[[#This Row],[2021/22 Increase]] -> 0 | BT61: =T_DataComboFile[[#This Row],[2022/23 Baseline]]+T_DataComboFile[[#This Row],[2022/23 Reduction]]+T_DataComboFile[[#This Row],[2022/23 Increase]] -> 0 | BU61: =T_DataComboFile[[#This Row],[2023/24 Baseline]]+T_DataComboFile[[#This Row],[2023/24 Reduction]]+T_DataComboFile[[#This Row],[2023/24 Increase]] -> 0
C62: 2021_22 | D62: ENE2020 | E62: 6 | F62: 1 | G62: 1 | I62: 9163 | J62: 6 | K62: 1 | L62: 1 | N62: 009163 | O62: 06|01|01 | P62: 1 | Q62: 2 | R62: 4 | S62: 43 | T62: 44 | U62: 01|02|04|43|44 | V62: National | W62: International Relations and Cooperation | X62: Administration | Y62: Ministry | AA62: Current | AB62: Transfers and subsidies | AC62: Provinces and municipalities | AD62: Provinces | AE62: Provincial agencies and funds | AI62: 0 | AJ62: 0 | AK62: 0 | AL62: 0 | AM62: 0 | AN62: 0 | AO62: 0 | AP62: 0 | AQ62: 0 | AR62: 0 | AS62: 0 | AT62: 0 | AU62: 0 | AV62: 0 | AX62: =IF(T_DataComboFile[[#This Row],[G&S reporting level indicator]]=1,$AX$16,"Not applicable") -> Level 3 | AY62: =IF(AND($AX$16="Level 3",T_DataComboFile[[#This Row],[Econ3]] = "Goods and services"),IF(T_DataComboFile[[#This Row],[Econ4]] = T_DataComboFile[[#This Row],[Econ3]],1,0),IF(AND($AX$16="Level 4",T_DataComboFile[[#This Row],[Econ4]] = "Goods and services"),0,1)) -> 1 | AZ62: =T_DataComboFile[[#This Row],[2016/17_Source]]*T_DataComboFile[[#This Row],[G&S reporting level indicator]] -> 0 | BA62: =T_DataComboFile[[#This Row],[2017/18_Source]]*T_DataComboFile[[#This Row],[G&S reporting level indicator]] -> 0 | BB62: =T_DataComboFile[[#This Row],[2018/19_Source]]*T_DataComboFile[[#This Row],[G&S reporting level indicator]] -> 0 | BC62: =T_DataComboFile[[#This Row],[2019/20 Main appropriation_Source]]*T_DataComboFile[[#This Row],[G&S reporting level indicator]] -> 0 | BD62: =T_DataComboFile[[#This Row],[2019/20 Adjusted appropriation_Source]]*T_DataComboFile[[#This Row],[G&S reporting level indicator]] -> 0 | BE62: =T_DataComboFile[[#This Row],[2019/20 Revised estimate_Source]]*T_DataComboFile[[#This Row],[G&S reporting level indicator]] -> 0 | BF62: =T_DataComboFile[[#This Row],[2019/20 Preliminary outcome_Source]]*T_DataComboFile[[#This Row],[G&S reporting level indicator]] -> 0 | BG62: =T_DataComboFile[[#This Row],[2020/21 Original_Source]]*T_DataComboFile[[#This Row],[G&S reporting level indicator]] -> 0 | BH62: =T_DataComboFile[[#This Row],[2020/21 SAB_Source]]*T_DataComboFile[[#This Row],[G&S reporting level indicator]] -> 0 | BI62: =T_DataComboFile[[#This Row],[2020/21 Baseline_Source]]*T_DataComboFile[[#This Row],[G&S reporting level indicator]] -> 0 | BJ62: =T_DataComboFile[[#This Row],[2021/22 Baseline_Source]]*T_DataComboFile[[#This Row],[G&S reporting level indicator]] -> 0 | BK62: =T_DataComboFile[[#This Row],[2022/23 Baseline_Source]]*T_DataComboFile[[#This Row],[G&S reporting level indicator]] -> 0 | BL62: =T_DataComboFile[[#This Row],[2023/24 Baseline_Source]]*T_DataComboFile[[#This Row],[G&S reporting level indicator]] -> 0 | BS62: =T_DataComboFile[[#This Row],[2021/22 Baseline]]+T_DataComboFile[[#This Row],[2021/22 Reduction]]+T_DataComboFile[[#This Row],[2021/22 Increase]] -> 0 | BT62: =T_DataComboFile[[#This Row],[2022/23 Baseline]]+T_DataComboFile[[#This Row],[2022/23 Reduction]]+T_DataComboFile[[#This Row],[2022/23 Increase]] -> 0 | BU62: =T_DataComboFile[[#This Row],[2023/24 Baseline]]+T_DataComboFile[[#This Row],[2023/24 Reduction]]+T_DataComboFile[[#This Row],[2023/24 Increase]] -> 0
C63: 2021_22 | D63: ENE2020 | E63: 6 | F63: 1 | G63: 1 | I63: 9164 | J63: 6 | K63: 1 | L63: 1 | N63: 009164 | O63: 06|01|01 | P63: 1 | Q63: 2 | R63: 4 | S63: 44 | T63: 45 | U63: 01|02|04|44|45 | V63: National | W63: International Relations and Cooperation | X63: Administration | Y63: Ministry | AA63: Current | AB63: Transfers and subsidies | AC63: Provinces and municipalities | AD63: Municipalities | AE63: Municipal bank accounts | AI63: 0 | AJ63: 0 | AK63: 0 | AL63: 0 | AM63: 0 | AN63: 0 | AO63: 0 | AP63: 0 | AQ63: 0 | AR63: 0 | AS63: 0 | AT63: 0 | AU63: 0 | AV63: 0 | AX63: =IF(T_DataComboFile[[#This Row],[G&S reporting level indicator]]=1,$AX$16,"Not applicable") -> Level 3 | AY63: =IF(AND($AX$16="Level 3",T_DataComboFile[[#This Row],[Econ3]] = "Goods and services"),IF(T_DataComboFile[[#This Row],[Econ4]] = T_DataComboFile[[#This Row],[Econ3]],1,0),IF(AND($AX$16="Level 4",T_DataComboFile[[#This Row],[Econ4]] = "Goods and services"),0,1)) -> 1 | AZ63: =T_DataComboFile[[#This Row],[2016/17_Source]]*T_DataComboFile[[#This Row],[G&S reporting level indicator]] -> 0 | BA63: =T_DataComboFile[[#This Row],[2017/18_Source]]*T_DataComboFile[[#This Row],[G&S reporting level indicator]] -> 0 | BB63: =T_DataComboFile[[#This Row],[2018/19_Source]]*T_DataComboFile[[#This Row],[G&S reporting level indicator]] -> 0 | BC63: =T_DataComboFile[[#This Row],[2019/20 Main appropriation_Source]]*T_DataComboFile[[#This Row],[G&S reporting level indicator]] -> 0 | BD63: =T_DataComboFile[[#This Row],[2019/20 Adjusted appropriation_Source]]*T_DataComboFile[[#This Row],[G&S reporting level indicator]] -> 0 | BE63: =T_DataComboFile[[#This Row],[2019/20 Revised estimate_Source]]*T_DataComboFile[[#This Row],[G&S reporting level indicator]] -> 0 | BF63: =T_DataComboFile[[#This Row],[2019/20 Preliminary outcome_Source]]*T_DataComboFile[[#This Row],[G&S reporting level indicator]] -> 0 | BG63: =T_DataComboFile[[#This Row],[2020/21 Original_Source]]*T_DataComboFile[[#This Row],[G&S reporting level indicator]] -> 0 | BH63: =T_DataComboFile[[#This Row],[2020/21 SAB_Source]]*T_DataComboFile[[#This Row],[G&S reporting level indicator]] -> 0 | BI63: =T_DataComboFile[[#This Row],[2020/21 Baseline_Source]]*T_DataComboFile[[#This Row],[G&S reporting level indicator]] -> 0 | BJ63: =T_DataComboFile[[#This Row],[2021/22 Baseline_Source]]*T_DataComboFile[[#This Row],[G&S reporting level indicator]] -> 0 | BK63: =T_DataComboFile[[#This Row],[2022/23 Baseline_Source]]*T_DataComboFile[[#This Row],[G&S reporting level indicator]] -> 0 | BL63: =T_DataComboFile[[#This Row],[2023/24 Baseline_Source]]*T_DataComboFile[[#This Row],[G&S reporting level indicator]] -> 0 | BS63: =T_DataComboFile[[#This Row],[2021/22 Baseline]]+T_DataComboFile[[#This Row],[2021/22 Reduction]]+T_DataComboFile[[#This Row],[2021/22 Increase]] -> 0 | BT63: =T_DataComboFile[[#This Row],[2022/23 Baseline]]+T_DataComboFile[[#This Row],[2022/23 Reduction]]+T_DataComboFile[[#This Row],[2022/23 Increase]] -> 0 | BU63: =T_DataComboFile[[#This Row],[2023/24 Baseline]]+T_DataComboFile[[#This Row],[2023/24 Reduction]]+T_DataComboFile[[#This Row],[2023/24 Increase]] -> 0
C64: 2021_22 | D64: ENE2020 | E64: 6 | F64: 1 | G64: 1 | I64: 9165 | J64: 6 | K64: 1 | L64: 1 | N64: 009165 | O64: 06|01|01 | P64: 1 | Q64: 2 | R64: 4 | S64: 44 | T64: 46 | U64: 01|02|04|44|46 | V64: National | W64: International Relations and Cooperation | X64: Administration | Y64: Ministry | AA64: Current | AB64: Transfers and subsidies | AC64: Provinces and municipalities | AD64: Municipalities | AE64: Municipal agencies and funds | AI64: 0 | AJ64: 0 | AK64: 0 | AL64: 0 | AM64: 0 | AN64: 0 | AO64: 0 | AP64: 0 | AQ64: 0 | AR64: 0 | AS64: 0 | AT64: 0 | AU64: 0 | AV64: 0 | AX64: =IF(T_DataComboFile[[#This Row],[G&S reporting level indicator]]=1,$AX$16,"Not applicable") -> Level 3 | AY64: =IF(AND($AX$16="Level 3",T_DataComboFile[[#This Row],[Econ3]] = "Goods and services"),IF(T_DataComboFile[[#This Row],[Econ4]] = T_DataComboFile[[#This Row],[Econ3]],1,0),IF(AND($AX$16="Level 4",T_DataComboFile[[#This Row],[Econ4]] = "Goods and services"),0,1)) -> 1 | AZ64: =T_DataComboFile[[#This Row],[2016/17_Source]]*T_DataComboFile[[#This Row],[G&S reporting level indicator]] -> 0 | BA64: =T_DataComboFile[[#This Row],[2017/18_Source]]*T_DataComboFile[[#This Row],[G&S reporting level indicator]] -> 0 | BB64: =T_DataComboFile[[#This Row],[2018/19_Source]]*T_DataComboFile[[#This Row],[G&S reporting level indicator]] -> 0 | BC64: =T_DataComboFile[[#This Row],[2019/20 Main appropriation_Source]]*T_DataComboFile[[#This Row],[G&S reporting level indicator]] -> 0 | BD64: =T_DataComboFile[[#This Row],[2019/20 Adjusted appropriation_Source]]*T_DataComboFile[[#This Row],[G&S reporting level indicator]] -> 0 | BE64: =T_DataComboFile[[#This Row],[2019/20 Revised estimate_Source]]*T_DataComboFile[[#This Row],[G&S reporting level indicator]] -> 0 | BF64: =T_DataComboFile[[#This Row],[2019/20 Preliminary outcome_Source]]*T_DataComboFile[[#This Row],[G&S reporting level indicator]] -> 0 | BG64: =T_DataComboFile[[#This Row],[2020/21 Original_Source]]*T_DataComboFile[[#This Row],[G&S reporting level indicator]] -> 0 | BH64: =T_DataComboFile[[#This Row],[2020/21 SAB_Source]]*T_DataComboFile[[#This Row],[G&S reporting level indicator]] -> 0 | BI64: =T_DataComboFile[[#This Row],[2020/21 Baseline_Source]]*T_DataComboFile[[#This Row],[G&S reporting level indicator]] -> 0 | BJ64: =T_DataComboFile[[#This Row],[2021/22 Baseline_Source]]*T_DataComboFile[[#This Row],[G&S reporting level indicator]] -> 0 | BK64: =T_DataComboFile[[#This Row],[2022/23 Baseline_Source]]*T_DataComboFile[[#This Row],[G&S reporting level indicator]] -> 0 | BL64: =T_DataComboFile[[#This Row],[2023/24 Baseline_Source]]*T_DataComboFile[[#This Row],[G&S reporting level indicator]] -> 0 | BS64: =T_DataComboFile[[#This Row],[2021/22 Baseline]]+T_DataComboFile[[#This Row],[2021/22 Reduction]]+T_DataComboFile[[#This Row],[2021/22 Increase]] -> 0 | BT64: =T_DataComboFile[[#This Row],[2022/23 Baseline]]+T_DataComboFile[[#This Row],[2022/23 Reduction]]+T_DataComboFile[[#This Row],[2022/23 Increase]] -> 0 | BU64: =T_DataComboFile[[#This Row],[2023/24 Baseline]]+T_DataComboFile[[#This Row],[2023/24 Reduction]]+T_DataComboFile[[#This Row],[2023/24 Increase]] -> 0
C65: 2021_22 | D65: ENE2020 | E65: 6 | F65: 1 | G65: 1 | I65: 9166 | J65: 6 | K65: 1 | L65: 1 | N65: 009166 | O65: 06|01|01 | P65: 1 | Q65: 2 | R65: 5 | S65: 45 | T65: 47 | U65: 01|02|05|45|47 | V65: National | W65: International Relations and Cooperation | X65: Administration | Y65: Ministry | AA65: Current | AB65: Transfers and subsidies | AC65: Departmental agencies and accounts | AD65: Social security funds | AE65: Social security funds | AI65: 0 | AJ65: 0 | AK65: 0 | AL65: 0 | AM65: 0 | AN65: 0 | AO65: 0 | AP65: 0 | AQ65: 0 | AR65: 0 | AS65: 0 | AT65: 0 | AU65: 0 | AV65: 0 | AX65: =IF(T_DataComboFile[[#This Row],[G&S reporting level indicator]]=1,$AX$16,"Not applicable") -> Level 3 | AY65: =IF(AND($AX$16="Level 3",T_DataComboFile[[#This Row],[Econ3]] = "Goods and services"),IF(T_DataComboFile[[#This Row],[Econ4]] = T_DataComboFile[[#This Row],[Econ3]],1,0),IF(AND($AX$16="Level 4",T_DataComboFile[[#This Row],[Econ4]] = "Goods and services"),0,1)) -> 1 | AZ65: =T_DataComboFile[[#This Row],[2016/17_Source]]*T_DataComboFile[[#This Row],[G&S reporting level indicator]] -> 0 | BA65: =T_DataComboFile[[#This Row],[2017/18_Source]]*T_DataComboFile[[#This Row],[G&S reporting level indicator]] -> 0 | BB65: =T_DataComboFile[[#This Row],[2018/19_Source]]*T_DataComboFile[[#This Row],[G&S reporting level indicator]] -> 0 | BC65: =T_DataComboFile[[#This Row],[2019/20 Main appropriation_Source]]*T_DataComboFile[[#This Row],[G&S reporting level indicator]] -> 0 | BD65: =T_DataComboFile[[#This Row],[2019/20 Adjusted appropriation_Source]]*T_DataComboFile[[#This Row],[G&S reporting level indicator]] -> 0 | BE65: =T_DataComboFile[[#This Row],[2019/20 Revised estimate_Source]]*T_DataComboFile[[#This Row],[G&S reporting level indicator]] -> 0 | BF65: =T_DataComboFile[[#This Row],[2019/20 Preliminary outcome_Source]]*T_DataComboFile[[#This Row],[G&S reporting level indicator]] -> 0 | BG65: =T_DataComboFile[[#This Row],[2020/21 Original_Source]]*T_DataComboFile[[#This Row],[G&S reporting level indicator]] -> 0 | BH65: =T_DataComboFile[[#This Row],[2020/21 SAB_Source]]*T_DataComboFile[[#This Row],[G&S reporting level indicator]] -> 0 | BI65: =T_DataComboFile[[#This Row],[2020/21 Baseline_Source]]*T_DataComboFile[[#This Row],[G&S reporting level indicator]] -> 0 | BJ65: =T_DataComboFile[[#This Row],[2021/22 Baseline_Source]]*T_DataComboFile[[#This Row],[G&S reporting level indicator]] -> 0 | BK65: =T_DataComboFile[[#This Row],[2022/23 Baseline_Source]]*T_DataComboFile[[#This Row],[G&S reporting level indicator]] -> 0 | BL65: =T_DataComboFile[[#This Row],[2023/24 Baseline_Source]]*T_DataComboFile[[#This Row],[G&S reporting level indicator]] -> 0 | BS65: =T_DataComboFile[[#This Row],[2021/22 Baseline]]+T_DataComboFile[[#This Row],[2021/22 Reduction]]+T_DataComboFile[[#This Row],[2021/22 Increase]] -> 0 | BT65: =T_DataComboFile[[#This Row],[2022/23 Baseline]]+T_DataComboFile[[#This Row],[2022/23 Reduction]]+T_DataComboFile[[#This Row],[2022/23 Increase]] -> 0 | BU65: =T_DataComboFile[[#This Row],[2023/24 Baseline]]+T_DataComboFile[[#This Row],[2023/24 Reduction]]+T_DataComboFile[[#This Row],[2023/24 Increase]] -> 0
C66: 2021_22 | D66: ENE2020 | E66: 6 | F66: 1 | G66: 1 | I66: 9167 | J66: 6 | K66: 1 | L66: 1 | N66: 009167 | O66: 06|01|01 | P66: 1 | Q66: 2 | R66: 5 | S66: 46 | T66: 48 | U66: 01|02|05|46|48 | V66: National | W66: International Relations and Cooperation | X66: Administration | Y66: Ministry | AA66: Current | AB66: Transfers and subsidies | AC66: Departmental agencies and accounts | AD66: Departmental agencies (non-business entities) | AE66: Departmental agencies (non-business entities) | AI66: 0 | AJ66: 0 | AK66: 0 | AL66: 0 | AM66: 0 | AN66: 0 | AO66: 0 | AP66: 0 | AQ66: 0 | AR66: 0 | AS66: 0 | AT66: 0 | AU66: 0 | AV66: 0 | AX66: =IF(T_DataComboFile[[#This Row],[G&S reporting level indicator]]=1,$AX$16,"Not applicable") -> Level 3 | AY66: =IF(AND($AX$16="Level 3",T_DataComboFile[[#This Row],[Econ3]] = "Goods and services"),IF(T_DataComboFile[[#This Row],[Econ4]] = T_DataComboFile[[#This Row],[Econ3]],1,0),IF(AND($AX$16="Level 4",T_DataComboFile[[#This Row],[Econ4]] = "Goods and services"),0,1)) -> 1 | AZ66: =T_DataComboFile[[#This Row],[2016/17_Source]]*T_DataComboFile[[#This Row],[G&S reporting level indicator]] -> 0 | BA66: =T_DataComboFile[[#This Row],[2017/18_Source]]*T_DataComboFile[[#This Row],[G&S reporting level indicator]] -> 0 | BB66: =T_DataComboFile[[#This Row],[2018/19_Source]]*T_DataComboFile[[#This Row],[G&S reporting level indicator]] -> 0 | BC66: =T_DataComboFile[[#This Row],[2019/20 Main appropriation_Source]]*T_DataComboFile[[#This Row],[G&S reporting level indicator]] -> 0 | BD66: =T_DataComboFile[[#This Row],[2019/20 Adjusted appropriation_Source]]*T_DataComboFile[[#This Row],[G&S reporting level indicator]] -> 0 | BE66: =T_DataComboFile[[#This Row],[2019/20 Revised estimate_Source]]*T_DataComboFile[[#This Row],[G&S reporting level indicator]] -> 0 | BF66: =T_DataComboFile[[#This Row],[2019/20 Preliminary outcome_Source]]*T_DataComboFile[[#This Row],[G&S reporting level indicator]] -> 0 | BG66: =T_DataComboFile[[#This Row],[2020/21 Original_Source]]*T_DataComboFile[[#This Row],[G&S reporting level indicator]] -> 0 | BH66: =T_DataComboFile[[#This Row],[2020/21 SAB_Source]]*T_DataComboFile[[#This Row],[G&S reporting level indicator]] -> 0 | BI66: =T_DataComboFile[[#This Row],[2020/21 Baseline_Source]]*T_DataComboFile[[#This Row],[G&S reporting level indicator]] -> 0 | BJ66: =T_DataComboFile[[#This Row],[2021/22 Baseline_Source]]*T_DataComboFile[[#This Row],[G&S reporting level indicator]] -> 0 | BK66: =T_DataComboFile[[#This Row],[2022/23 Baseline_Source]]*T_DataComboFile[[#This Row],[G&S reporting level indicator]] -> 0 | BL66: =T_DataComboFile[[#This Row],[2023/24 Baseline_Source]]*T_DataComboFile[[#This Row],[G&S reporting level indicator]] -> 0 | BS66: =T_DataComboFile[[#This Row],[2021/22 Baseline]]+T_DataComboFile[[#This Row],[2021/22 Reduction]]+T_DataComboFile[[#This Row],[2021/22 Increase]] -> 0 | BT66: =T_DataComboFile[[#This Row],[2022/23 Baseline]]+T_DataComboFile[[#This Row],[2022/23 Reduction]]+T_DataComboFile[[#This Row],[2022/23 Increase]] -> 0 | BU66: =T_DataComboFile[[#This Row],[2023/24 Baseline]]+T_DataComboFile[[#This Row],[2023/24 Reduction]]+T_DataComboFile[[#This Row],[2023/24 Increase]] -> 0
C67: 2021_22 | D67: ENE2020 | E67: 6 | F67: 1 | G67: 1 | I67: 9168 | J67: 6 | K67: 1 | L67: 1 | N67: 009168 | O67: 06|01|01 | P67: 1 | Q67: 2 | R67: 6 | S67: 47 | T67: 49 | U67: 01|02|06|47|49 | V67: National | W67: International Relations and Cooperation | X67: Administration | Y67: Ministry | AA67: Current | AB67: Transfers and subsidies | AC67: Higher education institutions | AD67: Higher education institutions | AE67: Higher education institutions | AI67: 0 | AJ67: 0 | AK67: 0 | AL67: 0 | AM67: 0 | AN67: 0 | AO67: 0 | AP67: 0 | AQ67: 0 | AR67: 0 | AS67: 0 | AT67: 0 | AU67: 0 | AV67: 0 | AX67: =IF(T_DataComboFile[[#This Row],[G&S reporting level indicator]]=1,$AX$16,"Not applicable") -> Level 3 | AY67: =IF(AND($AX$16="Level 3",T_DataComboFile[[#This Row],[Econ3]] = "Goods and services"),IF(T_DataComboFile[[#This Row],[Econ4]] = T_DataComboFile[[#This Row],[Econ3]],1,0),IF(AND($AX$16="Level 4",T_DataComboFile[[#This Row],[Econ4]] = "Goods and services"),0,1)) -> 1 | AZ67: =T_DataComboFile[[#This Row],[2016/17_Source]]*T_DataComboFile[[#This Row],[G&S reporting level indicator]] -> 0 | BA67: =T_DataComboFile[[#This Row],[2017/18_Source]]*T_DataComboFile[[#This Row],[G&S reporting level indicator]] -> 0 | BB67: =T_DataComboFile[[#This Row],[2018/19_Source]]*T_DataComboFile[[#This Row],[G&S reporting level indicator]] -> 0 | BC67: =T_DataComboFile[[#This Row],[2019/20 Main appropriation_Source]]*T_DataComboFile[[#This Row],[G&S reporting level indicator]] -> 0 | BD67: =T_DataComboFile[[#This Row],[2019/20 Adjusted appropriation_Source]]*T_DataComboFile[[#This Row],[G&S reporting level indicator]] -> 0 | BE67: =T_DataComboFile[[#This Row],[2019/20 Revised estimate_Source]]*T_DataComboFile[[#This Row],[G&S reporting level indicator]] -> 0 | BF67: =T_DataComboFile[[#This Row],[2019/20 Preliminary outcome_Source]]*T_DataComboFile[[#This Row],[G&S reporting level indicator]] -> 0 | BG67: =T_DataComboFile[[#This Row],[2020/21 Original_Source]]*T_DataComboFile[[#This Row],[G&S reporting level indicator]] -> 0 | BH67: =T_DataComboFile[[#This Row],[2020/21 SAB_Source]]*T_DataComboFile[[#This Row],[G&S reporting level indicator]] -> 0 | BI67: =T_DataComboFile[[#This Row],[2020/21 Baseline_Source]]*T_DataComboFile[[#This Row],[G&S reporting level indicator]] -> 0 | BJ67: =T_DataComboFile[[#This Row],[2021/22 Baseline_Source]]*T_DataComboFile[[#This Row],[G&S reporting level indicator]] -> 0 | BK67: =T_DataComboFile[[#This Row],[2022/23 Baseline_Source]]*T_DataComboFile[[#This Row],[G&S reporting level indicator]] -> 0 | BL67: =T_DataComboFile[[#This Row],[2023/24 Baseline_Source]]*T_DataComboFile[[#This Row],[G&S reporting level indicator]] -> 0 | BS67: =T_DataComboFile[[#This Row],[2021/22 Baseline]]+T_DataComboFile[[#This Row],[2021/22 Reduction]]+T_DataComboFile[[#This Row],[2021/22 Increase]] -> 0 | BT67: =T_DataComboFile[[#This Row],[2022/23 Baseline]]+T_DataComboFile[[#This Row],[2022/23 Reduction]]+T_DataComboFile[[#This Row],[2022/23 Increase]] -> 0 | BU67: =T_DataComboFile[[#This Row],[2023/24 Baseline]]+T_DataComboFile[[#This Row],[2023/24 Reduction]]+T_DataComboFile[[#This Row],[2023/24 Increase]] -> 0
C68: 2021_22 | D68: ENE2020 | E68: 6 | F68: 1 | G68: 1 | I68: 9169 | J68: 6 | K68: 1 | L68: 1 | N68: 009169 | O68: 06|01|01 | P68: 1 | Q68: 2 | R68: 7 | S68: 48 | T68: 50 | U68: 01|02|07|48|50 | V68: National | W68: International Relations and Cooperation | X68: Administration | Y68: Ministry | AA68: Current | AB68: Transfers and subsidies | AC68: Foreign governments and international organisations | AD68: Foreign governments and international organisations | AE68: Foreign governments and international organisations | AI68: 0 | AJ68: 0 | AK68: 0 | AL68: 0 | AM68: 0 | AN68: 0 | AO68: 0 | AP68: 0 | AQ68: 0 | AR68: 0 | AS68: 0 | AT68: 0 | AU68: 0 | AV68: 0 | AX68: =IF(T_DataComboFile[[#This Row],[G&S reporting level indicator]]=1,$AX$16,"Not applicable") -> Level 3 | AY68: =IF(AND($AX$16="Level 3",T_DataComboFile[[#This Row],[Econ3]] = "Goods and services"),IF(T_DataComboFile[[#This Row],[Econ4]] = T_DataComboFile[[#This Row],[Econ3]],1,0),IF(AND($AX$16="Level 4",T_DataComboFile[[#This Row],[Econ4]] = "Goods and services"),0,1)) -> 1 | AZ68: =T_DataComboFile[[#This Row],[2016/17_Source]]*T_DataComboFile[[#This Row],[G&S reporting level indicator]] -> 0 | BA68: =T_DataComboFile[[#This Row],[2017/18_Source]]*T_DataComboFile[[#This Row],[G&S reporting level indicator]] -> 0 | BB68: =T_DataComboFile[[#This Row],[2018/19_Source]]*T_DataComboFile[[#This Row],[G&S reporting level indicator]] -> 0 | BC68: =T_DataComboFile[[#This Row],[2019/20 Main appropriation_Source]]*T_DataComboFile[[#This Row],[G&S reporting level indicator]] -> 0 | BD68: =T_DataComboFile[[#This Row],[2019/20 Adjusted appropriation_Source]]*T_DataComboFile[[#This Row],[G&S reporting level indicator]] -> 0 | BE68: =T_DataComboFile[[#This Row],[2019/20 Revised estimate_Source]]*T_DataComboFile[[#This Row],[G&S reporting level indicator]] -> 0 | BF68: =T_DataComboFile[[#This Row],[2019/20 Preliminary outcome_Source]]*T_DataComboFile[[#This Row],[G&S reporting level indicator]] -> 0 | BG68: =T_DataComboFile[[#This Row],[2020/21 Original_Source]]*T_DataComboFile[[#This Row],[G&S reporting level indicator]] -> 0 | BH68: =T_DataComboFile[[#This Row],[2020/21 SAB_Source]]*T_DataComboFile[[#This Row],[G&S reporting level indicator]] -> 0 | BI68: =T_DataComboFile[[#This Row],[2020/21 Baseline_Source]]*T_DataComboFile[[#This Row],[G&S reporting level indicator]] -> 0 | BJ68: =T_DataComboFile[[#This Row],[2021/22 Baseline_Source]]*T_DataComboFile[[#This Row],[G&S reporting level indicator]] -> 0 | BK68: =T_DataComboFile[[#This Row],[2022/23 Baseline_Source]]*T_DataComboFile[[#This Row],[G&S reporting level indicator]] -> 0 | BL68: =T_DataComboFile[[#This Row],[2023/24 Baseline_Source]]*T_DataComboFile[[#This Row],[G&S reporting level indicator]] -> 0 | BS68: =T_DataComboFile[[#This Row],[2021/22 Baseline]]+T_DataComboFile[[#This Row],[2021/22 Reduction]]+T_DataComboFile[[#This Row],[2021/22 Increase]] -> 0 | BT68: =T_DataComboFile[[#This Row],[2022/23 Baseline]]+T_DataComboFile[[#This Row],[2022/23 Reduction]]+T_DataComboFile[[#This Row],[2022/23 Increase]] -> 0 | BU68: =T_DataComboFile[[#This Row],[2023/24 Baseline]]+T_DataComboFile[[#This Row],[2023/24 Reduction]]+T_DataComboFile[[#This Row],[2023/24 Increase]] -> 0
C69: 2021_22 | D69: ENE2020 | E69: 6 | F69: 1 | G69: 1 | I69: 9170 | J69: 6 | K69: 1 | L69: 1 | N69: 009170 | O69: 06|01|01 | P69: 1 | Q69: 2 | R69: 8 | S69: 49 | T69: 51 | U69: 01|02|08|49|51 | V69: National | W69: International Relations and Cooperation | X69: Administration | Y69: Ministry | AA69: Current | AB69: Transfers and subsidies | AC69: Public corporations and private enterprises | AD69: Public corporations | AE69: Subsidies on products and production (pc) | AI69: 0 | AJ69: 0 | AK69: 0 | AL69: 0 | AM69: 0 | AN69: 0 | AO69: 0 | AP69: 0 | AQ69: 0 | AR69: 0 | AS69: 0 | AT69: 0 | AU69: 0 | AV69: 0 | AX69: =IF(T_DataComboFile[[#This Row],[G&S reporting level indicator]]=1,$AX$16,"Not applicable") -> Level 3 | AY69: =IF(AND($AX$16="Level 3",T_DataComboFile[[#This Row],[Econ3]] = "Goods and services"),IF(T_DataComboFile[[#This Row],[Econ4]] = T_DataComboFile[[#This Row],[Econ3]],1,0),IF(AND($AX$16="Level 4",T_DataComboFile[[#This Row],[Econ4]] = "Goods and services"),0,1)) -> 1 | AZ69: =T_DataComboFile[[#This Row],[2016/17_Source]]*T_DataComboFile[[#This Row],[G&S reporting level indicator]] -> 0 | BA69: =T_DataComboFile[[#This Row],[2017/18_Source]]*T_DataComboFile[[#This Row],[G&S reporting level indicator]] -> 0 | BB69: =T_DataComboFile[[#This Row],[2018/19_Source]]*T_DataComboFile[[#This Row],[G&S reporting level indicator]] -> 0 | BC69: =T_DataComboFile[[#This Row],[2019/20 Main appropriation_Source]]*T_DataComboFile[[#This Row],[G&S reporting level indicator]] -> 0 | BD69: =T_DataComboFile[[#This Row],[2019/20 Adjusted appropriation_Source]]*T_DataComboFile[[#This Row],[G&S reporting level indicator]] -> 0 | BE69: =T_DataComboFile[[#This Row],[2019/20 Revised estimate_Source]]*T_DataComboFile[[#This Row],[G&S reporting level indicator]] -> 0 | BF69: =T_DataComboFile[[#This Row],[2019/20 Preliminary outcome_Source]]*T_DataComboFile[[#This Row],[G&S reporting level indicator]] -> 0 | BG69: =T_DataComboFile[[#This Row],[2020/21 Original_Source]]*T_DataComboFile[[#This Row],[G&S reporting level indicator]] -> 0 | BH69: =T_DataComboFile[[#This Row],[2020/21 SAB_Source]]*T_DataComboFile[[#This Row],[G&S reporting level indicator]] -> 0 | BI69: =T_DataComboFile[[#This Row],[2020/21 Baseline_Source]]*T_DataComboFile[[#This Row],[G&S reporting level indicator]] -> 0 | BJ69: =T_DataComboFile[[#This Row],[2021/22 Baseline_Source]]*T_DataComboFile[[#This Row],[G&S reporting level indicator]] -> 0 | BK69: =T_DataComboFile[[#This Row],[2022/23 Baseline_Source]]*T_DataComboFile[[#This Row],[G&S reporting level indicator]] -> 0 | BL69: =T_DataComboFile[[#This Row],[2023/24 Baseline_Source]]*T_DataComboFile[[#This Row],[G&S reporting level indicator]] -> 0 | BS69: =T_DataComboFile[[#This Row],[2021/22 Baseline]]+T_DataComboFile[[#This Row],[2021/22 Reduction]]+T_DataComboFile[[#This Row],[2021/22 Increase]] -> 0 | BT69: =T_DataComboFile[[#This Row],[2022/23 Baseline]]+T_DataComboFile[[#This Row],[2022/23 Reduction]]+T_DataComboFile[[#This Row],[2022/23 Increase]] -> 0 | BU69: =T_DataComboFile[[#This Row],[2023/24 Baseline]]+T_DataComboFile[[#This Row],[2023/24 Reduction]]+T_DataComboFile[[#This Row],[2023/24 Increase]] -> 0
C70: 2021_22 | D70: ENE2020 | E70: 6 | F70: 1 | G70: 1 | I70: 9171 | J70: 6 | K70: 1 | L70: 1 | N70: 009171 | O70: 06|01|01 | P70: 1 | Q70: 2 | R70: 8 | S70: 49 | T70: 52 | U70: 01|02|08|49|52 | V70: National | W70: International Relations and Cooperation | X70: Administration | Y70: Ministry | AA70: Current | AB70: Transfers and subsidies | AC70: Public corporations and private enterprises | AD70: Public corporations | AE70: Other transfers to public corporations | AI70: 0 | AJ70: 0 | AK70: 0 | AL70: 0 | AM70: 0 | AN70: 0 | AO70: 0 | AP70: 0 | AQ70: 0 | AR70: 0 | AS70: 0 | AT70: 0 | AU70: 0 | AV70: 0 | AX70: =IF(T_DataComboFile[[#This Row],[G&S reporting level indicator]]=1,$AX$16,"Not applicable") -> Level 3 | AY70: =IF(AND($AX$16="Level 3",T_DataComboFile[[#This Row],[Econ3]] = "Goods and services"),IF(T_DataComboFile[[#This Row],[Econ4]] = T_DataComboFile[[#This Row],[Econ3]],1,0),IF(AND($AX$16="Level 4",T_DataComboFile[[#This Row],[Econ4]] = "Goods and services"),0,1)) -> 1 | AZ70: =T_DataComboFile[[#This Row],[2016/17_Source]]*T_DataComboFile[[#This Row],[G&S reporting level indicator]] -> 0 | BA70: =T_DataComboFile[[#This Row],[2017/18_Source]]*T_DataComboFile[[#This Row],[G&S reporting level indicator]] -> 0 | BB70: =T_DataComboFile[[#This Row],[2018/19_Source]]*T_DataComboFile[[#This Row],[G&S reporting level indicator]] -> 0 | BC70: =T_DataComboFile[[#This Row],[2019/20 Main appropriation_Source]]*T_DataComboFile[[#This Row],[G&S reporting level indicator]] -> 0 | BD70: =T_DataComboFile[[#This Row],[2019/20 Adjusted appropriation_Source]]*T_DataComboFile[[#This Row],[G&S reporting level indicator]] -> 0 | BE70: =T_DataComboFile[[#This Row],[2019/20 Revised estimate_Source]]*T_DataComboFile[[#This Row],[G&S reporting level indicator]] -> 0 | BF70: =T_DataComboFile[[#This Row],[2019/20 Preliminary outcome_Source]]*T_DataComboFile[[#This Row],[G&S reporting level indicator]] -> 0 | BG70: =T_DataComboFile[[#This Row],[2020/21 Original_Source]]*T_DataComboFile[[#This Row],[G&S reporting level indicator]] -> 0 | BH70: =T_DataComboFile[[#This Row],[2020/21 SAB_Source]]*T_DataComboFile[[#This Row],[G&S reporting level indicator]] -> 0 | BI70: =T_DataComboFile[[#This Row],[2020/21 Baseline_Source]]*T_DataComboFile[[#This Row],[G&S reporting level indicator]] -> 0 | BJ70: =T_DataComboFile[[#This Row],[2021/22 Baseline_Source]]*T_DataComboFile[[#This Row],[G&S reporting level indicator]] -> 0 | BK70: =T_DataComboFile[[#This Row],[2022/23 Baseline_Source]]*T_DataComboFile[[#This Row],[G&S reporting level indicator]] -> 0 | BL70: =T_DataComboFile[[#This Row],[2023/24 Baseline_Source]]*T_DataComboFile[[#This Row],[G&S reporting level indicator]] -> 0 | BS70: =T_DataComboFile[[#This Row],[2021/22 Baseline]]+T_DataComboFile[[#This Row],[2021/22 Reduction]]+T_DataComboFile[[#This Row],[2021/22 Increase]] -> 0 | BT70: =T_DataComboFile[[#This Row],[2022/23 Baseline]]+T_DataComboFile[[#This Row],[2022/23 Reduction]]+T_DataComboFile[[#This Row],[2022/23 Increase]] -> 0 | BU70: =T_DataComboFile[[#This Row],[2023/24 Baseline]]+T_DataComboFile[[#This Row],[2023/24 Reduction]]+T_DataComboFile[[#This Row],[2023/24 Increase]] -> 0
C71: 2021_22 | D71: ENE2020 | E71: 6 | F71: 1 | G71: 1 | I71: 9172 | J71: 6 | K71: 1 | L71: 1 | N71: 009172 | O71: 06|01|01 | P71: 1 | Q71: 2 | R71: 8 | S71: 50 | T71: 53 | U71: 01|02|08|50|53 | V71: National | W71: International Relations and Cooperation | X71: Administration | Y71: Ministry | AA71: Current | AB71: Transfers and subsidies | AC71: Public corporations and private enterprises | AD71: Private enterprises | AE71: Subsidies on products and production (pe) | AI71: 0 | AJ71: 0 | AK71: 0 | AL71: 0 | AM71: 0 | AN71: 0 | AO71: 0 | AP71: 0 | AQ71: 0 | AR71: 0 | AS71: 0 | AT71: 0 | AU71: 0 | AV71: 0 | AX71: =IF(T_DataComboFile[[#This Row],[G&S reporting level indicator]]=1,$AX$16,"Not applicable") -> Level 3 | AY71: =IF(AND($AX$16="Level 3",T_DataComboFile[[#This Row],[Econ3]] = "Goods and services"),IF(T_DataComboFile[[#This Row],[Econ4]] = T_DataComboFile[[#This Row],[Econ3]],1,0),IF(AND($AX$16="Level 4",T_DataComboFile[[#This Row],[Econ4]] = "Goods and services"),0,1)) -> 1 | AZ71: =T_DataComboFile[[#This Row],[2016/17_Source]]*T_DataComboFile[[#This Row],[G&S reporting level indicator]] -> 0 | BA71: =T_DataComboFile[[#This Row],[2017/18_Source]]*T_DataComboFile[[#This Row],[G&S reporting level indicator]] -> 0 | BB71: =T_DataComboFile[[#This Row],[2018/19_Source]]*T_DataComboFile[[#This Row],[G&S reporting level indicator]] -> 0 | BC71: =T_DataComboFile[[#This Row],[2019/20 Main appropriation_Source]]*T_DataComboFile[[#This Row],[G&S reporting level indicator]] -> 0 | BD71: =T_DataComboFile[[#This Row],[2019/20 Adjusted appropriation_Source]]*T_DataComboFile[[#This Row],[G&S reporting level indicator]] -> 0 | BE71: =T_DataComboFile[[#This Row],[2019/20 Revised estimate_Source]]*T_DataComboFile[[#This Row],[G&S reporting level indicator]] -> 0 | BF71: =T_DataComboFile[[#This Row],[2019/20 Preliminary outcome_Source]]*T_DataComboFile[[#This Row],[G&S reporting level indicator]] -> 0 | BG71: =T_DataComboFile[[#This Row],[2020/21 Original_Source]]*T_DataComboFile[[#This Row],[G&S reporting level indicator]] -> 0 | BH71: =T_DataComboFile[[#This Row],[2020/21 SAB_Source]]*T_DataComboFile[[#This Row],[G&S reporting level indicator]] -> 0 | BI71: =T_DataComboFile[[#This Row],[2020/21 Baseline_Source]]*T_DataComboFile[[#This Row],[G&S reporting level indicator]] -> 0 | BJ71: =T_DataComboFile[[#This Row],[2021/22 Baseline_Source]]*T_DataComboFile[[#This Row],[G&S reporting level indicator]] -> 0 | BK71: =T_DataComboFile[[#This Row],[2022/23 Baseline_Source]]*T_DataComboFile[[#This Row],[G&S reporting level indicator]] -> 0 | BL71: =T_DataComboFile[[#This Row],[2023/24 Baseline_Source]]*T_DataComboFile[[#This Row],[G&S reporting level indicator]] -> 0 | BS71: =T_DataComboFile[[#This Row],[2021/22 Baseline]]+T_DataComboFile[[#This Row],[2021/22 Reduction]]+T_DataComboFile[[#This Row],[2021/22 Increase]] -> 0 | BT71: =T_DataComboFile[[#This Row],[2022/23 Baseline]]+T_DataComboFile[[#This Row],[2022/23 Reduction]]+T_DataComboFile[[#This Row],[2022/23 Increase]] -> 0 | BU71: =T_DataComboFile[[#This Row],[2023/24 Baseline]]+T_DataComboFile[[#This Row],[2023/24 Reduction]]+T_DataComboFile[[#This Row],[2023/24 Increase]] -> 0
C72: 2021_22 | D72: ENE2020 | E72: 6 | F72: 1 | G72: 1 | I72: 9173 | J72: 6 | K72: 1 | L72: 1 | N72: 009173 | O72: 06|01|01 | P72: 1 | Q72: 2 | R72: 8 | S72: 50 | T72: 54 | U72: 01|02|08|50|54 | V72: National | W72: International Relations and Cooperation | X72: Administration | Y72: Ministry | AA72: Current | AB72: Transfers and subsidies | AC72: Public corporations and private enterprises | AD72: Private enterprises | AE72: Other transfers to private enterprises | AI72: 0 | AJ72: 0 | AK72: 0 | AL72: 0 | AM72: 0 | AN72: 0 | AO72: 0 | AP72: 0 | AQ72: 0 | AR72: 0 | AS72: 0 | AT72: 0 | AU72: 0 | AV72: 0 | AX72: =IF(T_DataComboFile[[#This Row],[G&S reporting level indicator]]=1,$AX$16,"Not applicable") -> Level 3 | AY72: =IF(AND($AX$16="Level 3",T_DataComboFile[[#This Row],[Econ3]] = "Goods and services"),IF(T_DataComboFile[[#This Row],[Econ4]] = T_DataComboFile[[#This Row],[Econ3]],1,0),IF(AND($AX$16="Level 4",T_DataComboFile[[#This Row],[Econ4]] = "Goods and services"),0,1)) -> 1 | AZ72: =T_DataComboFile[[#This Row],[2016/17_Source]]*T_DataComboFile[[#This Row],[G&S reporting level indicator]] -> 0 | BA72: =T_DataComboFile[[#This Row],[2017/18_Source]]*T_DataComboFile[[#This Row],[G&S reporting level indicator]] -> 0 | BB72: =T_DataComboFile[[#This Row],[2018/19_Source]]*T_DataComboFile[[#This Row],[G&S reporting level indicator]] -> 0 | BC72: =T_DataComboFile[[#This Row],[2019/20 Main appropriation_Source]]*T_DataComboFile[[#This Row],[G&S reporting level indicator]] -> 0 | BD72: =T_DataComboFile[[#This Row],[2019/20 Adjusted appropriation_Source]]*T_DataComboFile[[#This Row],[G&S reporting level indicator]] -> 0 | BE72: =T_DataComboFile[[#This Row],[2019/20 Revised estimate_Source]]*T_DataComboFile[[#This Row],[G&S reporting level indicator]] -> 0 | BF72: =T_DataComboFile[[#This Row],[2019/20 Preliminary outcome_Source]]*T_DataComboFile[[#This Row],[G&S reporting level indicator]] -> 0 | BG72: =T_DataComboFile[[#This Row],[2020/21 Original_Source]]*T_DataComboFile[[#This Row],[G&S reporting level indicator]] -> 0 | BH72: =T_DataComboFile[[#This Row],[2020/21 SAB_Source]]*T_DataComboFile[[#This Row],[G&S reporting level indicator]] -> 0 | BI72: =T_DataComboFile[[#This Row],[2020/21 Baseline_Source]]*T_DataComboFile[[#This Row],[G&S reporting level indicator]] -> 0 | BJ72: =T_DataComboFile[[#This Row],[2021/22 Baseline_Source]]*T_DataComboFile[[#This Row],[G&S reporting level indicator]] -> 0 | BK72: =T_DataComboFile[[#This Row],[2022/23 Baseline_Source]]*T_DataComboFile[[#This Row],[G&S reporting level indicator]] -> 0 | BL72: =T_DataComboFile[[#This Row],[2023/24 Baseline_Source]]*T_DataComboFile[[#This Row],[G&S reporting level indicator]] -> 0 | BS72: =T_DataComboFile[[#This Row],[2021/22 Baseline]]+T_DataComboFile[[#This Row],[2021/22 Reduction]]+T_DataComboFile[[#This Row],[2021/22 Increase]] -> 0 | BT72: =T_DataComboFile[[#This Row],[2022/23 Baseline]]+T_DataComboFile[[#This Row],[2022/23 Reduction]]+T_DataComboFile[[#This Row],[2022/23 Increase]] -> 0 | BU72: =T_DataComboFile[[#This Row],[2023/24 Baseline]]+T_DataComboFile[[#This Row],[2023/24 Reduction]]+T_DataComboFile[[#This Row],[2023/24 Increase]] -> 0
C73: 2021_22 | D73: ENE2020 | E73: 6 | F73: 1 | G73: 1 | I73: 9174 | J73: 6 | K73: 1 | L73: 1 | N73: 009174 | O73: 06|01|01 | P73: 1 | Q73: 2 | R73: 9 | S73: 51 | T73: 55 | U73: 01|02|09|51|55 | V73: National | W73: International Relations and Cooperation | X73: Administration | Y73: Ministry | AA73: Current | AB73: Transfers and subsidies | AC73: Non-profit institutions | AD73: Non-profit institutions | AE73: Non-profit institutions | AI73: 0 | AJ73: 0 | AK73: 0 | AL73: 0 | AM73: 0 | AN73: 0 | AO73: 0 | AP73: 0 | AQ73: 0 | AR73: 0 | AS73: 0 | AT73: 0 | AU73: 0 | AV73: 0 | AX73: =IF(T_DataComboFile[[#This Row],[G&S reporting level indicator]]=1,$AX$16,"Not applicable") -> Level 3 | AY73: =IF(AND($AX$16="Level 3",T_DataComboFile[[#This Row],[Econ3]] = "Goods and services"),IF(T_DataComboFile[[#This Row],[Econ4]] = T_DataComboFile[[#This Row],[Econ3]],1,0),IF(AND($AX$16="Level 4",T_DataComboFile[[#This Row],[Econ4]] = "Goods and services"),0,1)) -> 1 | AZ73: =T_DataComboFile[[#This Row],[2016/17_Source]]*T_DataComboFile[[#This Row],[G&S reporting level indicator]] -> 0 | BA73: =T_DataComboFile[[#This Row],[2017/18_Source]]*T_DataComboFile[[#This Row],[G&S reporting level indicator]] -> 0 | BB73: =T_DataComboFile[[#This Row],[2018/19_Source]]*T_DataComboFile[[#This Row],[G&S reporting level indicator]] -> 0 | BC73: =T_DataComboFile[[#This Row],[2019/20 Main appropriation_Source]]*T_DataComboFile[[#This Row],[G&S reporting level indicator]] -> 0 | BD73: =T_DataComboFile[[#This Row],[2019/20 Adjusted appropriation_Source]]*T_DataComboFile[[#This Row],[G&S reporting level indicator]] -> 0 | BE73: =T_DataComboFile[[#This Row],[2019/20 Revised estimate_Source]]*T_DataComboFile[[#This Row],[G&S reporting level indicator]] -> 0 | BF73: =T_DataComboFile[[#This Row],[2019/20 Preliminary outcome_Source]]*T_DataComboFile[[#This Row],[G&S reporting level indicator]] -> 0 | BG73: =T_DataComboFile[[#This Row],[2020/21 Original_Source]]*T_DataComboFile[[#This Row],[G&S reporting level indicator]] -> 0 | BH73: =T_DataComboFile[[#This Row],[2020/21 SAB_Source]]*T_DataComboFile[[#This Row],[G&S reporting level indicator]] -> 0 | BI73: =T_DataComboFile[[#This Row],[2020/21 Baseline_Source]]*T_DataComboFile[[#This Row],[G&S reporting level indicator]] -> 0 | BJ73: =T_DataComboFile[[#This Row],[2021/22 Baseline_Source]]*T_DataComboFile[[#This Row],[G&S reporting level indicator]] -> 0 | BK73: =T_DataComboFile[[#This Row],[2022/23 Baseline_Source]]*T_DataComboFile[[#This Row],[G&S reporting level indicator]] -> 0 | BL73: =T_DataComboFile[[#This Row],[2023/24 Baseline_Source]]*T_DataComboFile[[#This Row],[G&S reporting level indicator]] -> 0 | BS73: =T_DataComboFile[[#This Row],[2021/22 Baseline]]+T_DataComboFile[[#This Row],[2021/22 Reduction]]+T_DataComboFile[[#This Row],[2021/22 Increase]] -> 0 | BT73: =T_DataComboFile[[#This Row],[2022/23 Baseline]]+T_DataComboFile[[#This Row],[2022/23 Reduction]]+T_DataComboFile[[#This Row],[2022/23 Increase]] -> 0 | BU73: =T_DataComboFile[[#This Row],[2023/24 Baseline]]+T_DataComboFile[[#This Row],[2023/24 Reduction]]+T_DataComboFile[[#This Row],[2023/24 Increase]] -> 0
C74: 2021_22 | D74: ENE2020 | E74: 6 | F74: 1 | G74: 1 | I74: 9175 | J74: 6 | K74: 1 | L74: 1 | N74: 009175 | O74: 06|01|01 | P74: 1 | Q74: 2 | R74: 10 | S74: 52 | T74: 56 | U74: 01|02|10|52|56 | V74: National | W74: International Relations and Cooperation | X74: Administration | Y74: Ministry | AA74: Current | AB74: Transfers and subsidies | AC74: Households | AD74: Social benefits | AE74: Social benefits | AI74: 0 | AJ74: 0 | AK74: 0 | AL74: 0 | AM74: 0 | AN74: 0 | AO74: 0 | AP74: 0 | AQ74: 0 | AR74: 0 | AS74: 0 | AT74: 0 | AU74: 0 | AV74: 0 | AX74: =IF(T_DataComboFile[[#This Row],[G&S reporting level indicator]]=1,$AX$16,"Not applicable") -> Level 3 | AY74: =IF(AND($AX$16="Level 3",T_DataComboFile[[#This Row],[Econ3]] = "Goods and services"),IF(T_DataComboFile[[#This Row],[Econ4]] = T_DataComboFile[[#This Row],[Econ3]],1,0),IF(AND($AX$16="Level 4",T_DataComboFile[[#This Row],[Econ4]] = "Goods and services"),0,1)) -> 1 | AZ74: =T_DataComboFile[[#This Row],[2016/17_Source]]*T_DataComboFile[[#This Row],[G&S reporting level indicator]] -> 0 | BA74: =T_DataComboFile[[#This Row],[2017/18_Source]]*T_DataComboFile[[#This Row],[G&S reporting level indicator]] -> 0 | BB74: =T_DataComboFile[[#This Row],[2018/19_Source]]*T_DataComboFile[[#This Row],[G&S reporting level indicator]] -> 0 | BC74: =T_DataComboFile[[#This Row],[2019/20 Main appropriation_Source]]*T_DataComboFile[[#This Row],[G&S reporting level indicator]] -> 0 | BD74: =T_DataComboFile[[#This Row],[2019/20 Adjusted appropriation_Source]]*T_DataComboFile[[#This Row],[G&S reporting level indicator]] -> 0 | BE74: =T_DataComboFile[[#This Row],[2019/20 Revised estimate_Source]]*T_DataComboFile[[#This Row],[G&S reporting level indicator]] -> 0 | BF74: =T_DataComboFile[[#This Row],[2019/20 Preliminary outcome_Source]]*T_DataComboFile[[#This Row],[G&S reporting level indicator]] -> 0 | BG74: =T_DataComboFile[[#This Row],[2020/21 Original_Source]]*T_DataComboFile[[#This Row],[G&S reporting level indicator]] -> 0 | BH74: =T_DataComboFile[[#This Row],[2020/21 SAB_Source]]*T_DataComboFile[[#This Row],[G&S reporting level indicator]] -> 0 | BI74: =T_DataComboFile[[#This Row],[2020/21 Baseline_Source]]*T_DataComboFile[[#This Row],[G&S reporting level indicator]] -> 0 | BJ74: =T_DataComboFile[[#This Row],[2021/22 Baseline_Source]]*T_DataComboFile[[#This Row],[G&S reporting level indicator]] -> 0 | BK74: =T_DataComboFile[[#This Row],[2022/23 Baseline_Source]]*T_DataComboFile[[#This Row],[G&S reporting level indicator]] -> 0 | BL74: =T_DataComboFile[[#This Row],[2023/24 Baseline_Source]]*T_DataComboFile[[#This Row],[G&S reporting level indicator]] -> 0 | BS74: =T_DataComboFile[[#This Row],[2021/22 Baseline]]+T_DataComboFile[[#This Row],[2021/22 Reduction]]+T_DataComboFile[[#This Row],[2021/22 Increase]] -> 0 | BT74: =T_DataComboFile[[#This Row],[2022/23 Baseline]]+T_DataComboFile[[#This Row],[2022/23 Reduction]]+T_DataComboFile[[#This Row],[2022/23 Increase]] -> 0 | BU74: =T_DataComboFile[[#This Row],[2023/24 Baseline]]+T_DataComboFile[[#This Row],[2023/24 Reduction]]+T_DataComboFile[[#This Row],[2023/24 Increase]] -> 0
C75: 2021_22 | D75: ENE2020 | E75: 6 | F75: 1 | G75: 1 | I75: 9176 | J75: 6 | K75: 1 | L75: 1 | N75: 009176 | O75: 06|01|01 | P75: 1 | Q75: 2 | R75: 10 | S75: 53 | T75: 57 | U75: 01|02|10|53|57 | V75: National | W75: International Relations and Cooperation | X75: Administration | Y75: Ministry | AA75: Current | AB75: Transfers and subsidies | AC75: Households | AD75: Other transfers to households | AE75: Other transfers to households | AI75: 0 | AJ75: 0 | AK75: 0 | AL75: 0 | AM75: 0 | AN75: 0 | AO75: 0 | AP75: 0 | AQ75: 0 | AR75: 0 | AS75: 0 | AT75: 0 | AU75: 0 | AV75: 0 | AX75: =IF(T_DataComboFile[[#This Row],[G&S reporting level indicator]]=1,$AX$16,"Not applicable") -> Level 3 | AY75: =IF(AND($AX$16="Level 3",T_DataComboFile[[#This Row],[Econ3]] = "Goods and services"),IF(T_DataComboFile[[#This Row],[Econ4]] = T_DataComboFile[[#This Row],[Econ3]],1,0),IF(AND($AX$16="Level 4",T_DataComboFile[[#This Row],[Econ4]] = "Goods and services"),0,1)) -> 1 | AZ75: =T_DataComboFile[[#This Row],[2016/17_Source]]*T_DataComboFile[[#This Row],[G&S reporting level indicator]] -> 0 | BA75: =T_DataComboFile[[#This Row],[2017/18_Source]]*T_DataComboFile[[#This Row],[G&S reporting level indicator]] -> 0 | BB75: =T_DataComboFile[[#This Row],[2018/19_Source]]*T_DataComboFile[[#This Row],[G&S reporting level indicator]] -> 0 | BC75: =T_DataComboFile[[#This Row],[2019/20 Main appropriation_Source]]*T_DataComboFile[[#This Row],[G&S reporting level indicator]] -> 0 | BD75: =T_DataComboFile[[#This Row],[2019/20 Adjusted appropriation_Source]]*T_DataComboFile[[#This Row],[G&S reporting level indicator]] -> 0 | BE75: =T_DataComboFile[[#This Row],[2019/20 Revised estimate_Source]]*T_DataComboFile[[#This Row],[G&S reporting level indicator]] -> 0 | BF75: =T_DataComboFile[[#This Row],[2019/20 Preliminary outcome_Source]]*T_DataComboFile[[#This Row],[G&S reporting level indicator]] -> 0 | BG75: =T_DataComboFile[[#This Row],[2020/21 Original_Source]]*T_DataComboFile[[#This Row],[G&S reporting level indicator]] -> 0 | BH75: =T_DataComboFile[[#This Row],[2020/21 SAB_Source]]*T_DataComboFile[[#This Row],[G&S reporting level indicator]] -> 0 | BI75: =T_DataComboFile[[#This Row],[2020/21 Baseline_Source]]*T_DataComboFile[[#This Row],[G&S reporting level indicator]] -> 0 | BJ75: =T_DataComboFile[[#This Row],[2021/22 Baseline_Source]]*T_DataComboFile[[#This Row],[G&S reporting level indicator]] -> 0 | BK75: =T_DataComboFile[[#This Row],[2022/23 Baseline_Source]]*T_DataComboFile[[#This Row],[G&S reporting level indicator]] -> 0 | BL75: =T_DataComboFile[[#This Row],[2023/24 Baseline_Source]]*T_DataComboFile[[#This Row],[G&S reporting level indicator]] -> 0 | BS75: =T_DataComboFile[[#This Row],[2021/22 Baseline]]+T_DataComboFile[[#This Row],[2021/22 Reduction]]+T_DataComboFile[[#This Row],[2021/22 Increase]] -> 0 | BT75: =T_DataComboFile[[#This Row],[2022/23 Baseline]]+T_DataComboFile[[#This Row],[2022/23 Reduction]]+T_DataComboFile[[#This Row],[2022/23 Increase]] -> 0 | BU75: =T_DataComboFile[[#This Row],[2023/24 Baseline]]+T_DataComboFile[[#This Row],[2023/24 Reduction]]+T_DataComboFile[[#This Row],[2023/24 Increase]] -> 0
C76: 2021_22 | D76: ENE2020 | E76: 6 | F76: 1 | G76: 1 | I76: 9177 | J76: 6 | K76: 1 | L76: 1 | N76: 009177 | O76: 06|01|01 | P76: 2 | Q76: 2 | R76: 4 | S76: 43 | T76: 43 | U76: 02|02|04|43|43 | V76: National | W76: International Relations and Cooperation | X76: Administration | Y76: Ministry | AA76: Capital | AB76: Transfers and subsidies | AC76: Provinces and municipalities | AD76: Provinces | AE76: Provincial Revenue Funds | AI76: 0 | AJ76: 0 | AK76: 0 | AL76: 0 | AM76: 0 | AN76: 0 | AO76: 0 | AP76: 0 | AQ76: 0 | AR76: 0 | AS76: 0 | AT76: 0 | AU76: 0 | AV76: 0 | AX76: =IF(T_DataComboFile[[#This Row],[G&S reporting level indicator]]=1,$AX$16,"Not applicable") -> Level 3 | AY76: =IF(AND($AX$16="Level 3",T_DataComboFile[[#This Row],[Econ3]] = "Goods and services"),IF(T_DataComboFile[[#This Row],[Econ4]] = T_DataComboFile[[#This Row],[Econ3]],1,0),IF(AND($AX$16="Level 4",T_DataComboFile[[#This Row],[Econ4]] = "Goods and services"),0,1)) -> 1 | AZ76: =T_DataComboFile[[#This Row],[2016/17_Source]]*T_DataComboFile[[#This Row],[G&S reporting level indicator]] -> 0 | BA76: =T_DataComboFile[[#This Row],[2017/18_Source]]*T_DataComboFile[[#This Row],[G&S reporting level indicator]] -> 0 | BB76: =T_DataComboFile[[#This Row],[2018/19_Source]]*T_DataComboFile[[#This Row],[G&S reporting level indicator]] -> 0 | BC76: =T_DataComboFile[[#This Row],[2019/20 Main appropriation_Source]]*T_DataComboFile[[#This Row],[G&S reporting level indicator]] -> 0 | BD76: =T_DataComboFile[[#This Row],[2019/20 Adjusted appropriation_Source]]*T_DataComboFile[[#This Row],[G&S reporting level indicator]] -> 0 | BE76: =T_DataComboFile[[#This Row],[2019/20 Revised estimate_Source]]*T_DataComboFile[[#This Row],[G&S reporting level indicator]] -> 0 | BF76: =T_DataComboFile[[#This Row],[2019/20 Preliminary outcome_Source]]*T_DataComboFile[[#This Row],[G&S reporting level indicator]] -> 0 | BG76: =T_DataComboFile[[#This Row],[2020/21 Original_Source]]*T_DataComboFile[[#This Row],[G&S reporting level indicator]] -> 0 | BH76: =T_DataComboFile[[#This Row],[2020/21 SAB_Source]]*T_DataComboFile[[#This Row],[G&S reporting level indicator]] -> 0 | BI76: =T_DataComboFile[[#This Row],[2020/21 Baseline_Source]]*T_DataComboFile[[#This Row],[G&S reporting level indicator]] -> 0 | BJ76: =T_DataComboFile[[#This Row],[2021/22 Baseline_Source]]*T_DataComboFile[[#This Row],[G&S reporting level indicator]] -> 0 | BK76: =T_DataComboFile[[#This Row],[2022/23 Baseline_Source]]*T_DataComboFile[[#This Row],[G&S reporting level indicator]] -> 0 | BL76: =T_DataComboFile[[#This Row],[2023/24 Baseline_Source]]*T_DataComboFile[[#This Row],[G&S reporting level indicator]] -> 0 | BS76: =T_DataComboFile[[#This Row],[2021/22 Baseline]]+T_DataComboFile[[#This Row],[2021/22 Reduction]]+T_DataComboFile[[#This Row],[2021/22 Increase]] -> 0 | BT76: =T_DataComboFile[[#This Row],[2022/23 Baseline]]+T_DataComboFile[[#This Row],[2022/23 Reduction]]+T_DataComboFile[[#This Row],[2022/23 Increase]] -> 0 | BU76: =T_DataComboFile[[#This Row],[2023/24 Baseline]]+T_DataComboFile[[#This Row],[2023/24 Reduction]]+T_DataComboFile[[#This Row],[2023/24 Increase]] -> 0
C77: 2021_22 | D77: ENE2020 | E77: 6 | F77: 1 | G77: 1 | I77: 9178 | J77: 6 | K77: 1 | L77: 1 | N77: 009178 | O77: 06|01|01 | P77: 2 | Q77: 2 | R77: 4 | S77: 44 | T77: 45 | U77: 02|02|04|44|45 | V77: National | W77: International Relations and Cooperation | X77: Administration | Y77: Ministry | AA77: Capital | AB77: Transfers and subsidies | AC77: Provinces and municipalities | AD77: Municipalities | AE77: Municipal bank accounts | AI77: 0 | AJ77: 0 | AK77: 0 | AL77: 0 | AM77: 0 | AN77: 0 | AO77: 0 | AP77: 0 | AQ77: 0 | AR77: 0 | AS77: 0 | AT77: 0 | AU77: 0 | AV77: 0 | AX77: =IF(T_DataComboFile[[#This Row],[G&S reporting level indicator]]=1,$AX$16,"Not applicable") -> Level 3 | AY77: =IF(AND($AX$16="Level 3",T_DataComboFile[[#This Row],[Econ3]] = "Goods and services"),IF(T_DataComboFile[[#This Row],[Econ4]] = T_DataComboFile[[#This Row],[Econ3]],1,0),IF(AND($AX$16="Level 4",T_DataComboFile[[#This Row],[Econ4]] = "Goods and services"),0,1)) -> 1 | AZ77: =T_DataComboFile[[#This Row],[2016/17_Source]]*T_DataComboFile[[#This Row],[G&S reporting level indicator]] -> 0 | BA77: =T_DataComboFile[[#This Row],[2017/18_Source]]*T_DataComboFile[[#This Row],[G&S reporting level indicator]] -> 0 | BB77: =T_DataComboFile[[#This Row],[2018/19_Source]]*T_DataComboFile[[#This Row],[G&S reporting level indicator]] -> 0 | BC77: =T_DataComboFile[[#This Row],[2019/20 Main appropriation_Source]]*T_DataComboFile[[#This Row],[G&S reporting level indicator]] -> 0 | BD77: =T_DataComboFile[[#This Row],[2019/20 Adjusted appropriation_Source]]*T_DataComboFile[[#This Row],[G&S reporting level indicator]] -> 0 | BE77: =T_DataComboFile[[#This Row],[2019/20 Revised estimate_Source]]*T_DataComboFile[[#This Row],[G&S reporting level indicator]] -> 0 | BF77: =T_DataComboFile[[#This Row],[2019/20 Preliminary outcome_Source]]*T_DataComboFile[[#This Row],[G&S reporting level indicator]] -> 0 | BG77: =T_DataComboFile[[#This Row],[2020/21 Original_Source]]*T_DataComboFile[[#This Row],[G&S reporting level indicator]] -> 0 | BH77: =T_DataComboFile[[#This Row],[2020/21 SAB_Source]]*T_DataComboFile[[#This Row],[G&S reporting level indicator]] -> 0 | BI77: =T_DataComboFile[[#This Row],[2020/21 Baseline_Source]]*T_DataComboFile[[#This Row],[G&S reporting level indicator]] -> 0 | BJ77: =T_DataComboFile[[#This Row],[2021/22 Baseline_Source]]*T_DataComboFile[[#This Row],[G&S reporting level indicator]] -> 0 | BK77: =T_DataComboFile[[#This Row],[2022/23 Baseline_Source]]*T_DataComboFile[[#This Row],[G&S reporting level indicator]] -> 0 | BL77: =T_DataComboFile[[#This Row],[2023/24 Baseline_Source]]*T_DataComboFile[[#This Row],[G&S reporting level indicator]] -> 0 | BS77: =T_DataComboFile[[#This Row],[2021/22 Baseline]]+T_DataComboFile[[#This Row],[2021/22 Reduction]]+T_DataComboFile[[#This Row],[2021/22 Increase]] -> 0 | BT77: =T_DataComboFile[[#This Row],[2022/23 Baseline]]+T_DataComboFile[[#This Row],[2022/23 Reduction]]+T_DataComboFile[[#This Row],[2022/23 Increase]] -> 0 | BU77: =T_DataComboFile[[#This Row],[2023/24 Baseline]]+T_DataComboFile[[#This Row],[2023/24 Reduction]]+T_DataComboFile[[#This Row],[2023/24 Increase]] -> 0
C78: 2021_22 | D78: ENE2020 | E78: 6 | F78: 1 | G78: 1 | I78: 9179 | J78: 6 | K78: 1 | L78: 1 | N78: 009179 | O78: 06|01|01 | P78: 2 | Q78: 2 | R78: 5 | S78: 46 | T78: 48 | U78: 02|02|05|46|48 | V78: National | W78: International Relations and Cooperation | X78: Administration | Y78: Ministry | AA78: Capital | AB78: Transfers and subsidies | AC78: Departmental agencies and accounts | AD78: Departmental agencies (non-business entities) | AE78: Departmental agencies (non-business entities) | AI78: 0 | AJ78: 0 | AK78: 0 | AL78: 0 | AM78: 0 | AN78: 0 | AO78: 0 | AP78: 0 | AQ78: 0 | AR78: 0 | AS78: 0 | AT78: 0 | AU78: 0 | AV78: 0 | AX78: =IF(T_DataComboFile[[#This Row],[G&S reporting level indicator]]=1,$AX$16,"Not applicable") -> Level 3 | AY78: =IF(AND($AX$16="Level 3",T_DataComboFile[[#This Row],[Econ3]] = "Goods and services"),IF(T_DataComboFile[[#This Row],[Econ4]] = T_DataComboFile[[#This Row],[Econ3]],1,0),IF(AND($AX$16="Level 4",T_DataComboFile[[#This Row],[Econ4]] = "Goods and services"),0,1)) -> 1 | AZ78: =T_DataComboFile[[#This Row],[2016/17_Source]]*T_DataComboFile[[#This Row],[G&S reporting level indicator]] -> 0 | BA78: =T_DataComboFile[[#This Row],[2017/18_Source]]*T_DataComboFile[[#This Row],[G&S reporting level indicator]] -> 0 | BB78: =T_DataComboFile[[#This Row],[2018/19_Source]]*T_DataComboFile[[#This Row],[G&S reporting level indicator]] -> 0 | BC78: =T_DataComboFile[[#This Row],[2019/20 Main appropriation_Source]]*T_DataComboFile[[#This Row],[G&S reporting level indicator]] -> 0 | BD78: =T_DataComboFile[[#This Row],[2019/20 Adjusted appropriation_Source]]*T_DataComboFile[[#This Row],[G&S reporting level indicator]] -> 0 | BE78: =T_DataComboFile[[#This Row],[2019/20 Revised estimate_Source]]*T_DataComboFile[[#This Row],[G&S reporting level indicator]] -> 0 | BF78: =T_DataComboFile[[#This Row],[2019/20 Preliminary outcome_Source]]*T_DataComboFile[[#This Row],[G&S reporting level indicator]] -> 0 | BG78: =T_DataComboFile[[#This Row],[2020/21 Original_Source]]*T_DataComboFile[[#This Row],[G&S reporting level indicator]] -> 0 | BH78: =T_DataComboFile[[#This Row],[2020/21 SAB_Source]]*T_DataComboFile[[#This Row],[G&S reporting level indicator]] -> 0 | BI78: =T_DataComboFile[[#This Row],[2020/21 Baseline_Source]]*T_DataComboFile[[#This Row],[G&S reporting level indicator]] -> 0 | BJ78: =T_DataComboFile[[#This Row],[2021/22 Baseline_Source]]*T_DataComboFile[[#This Row],[G&S reporting level indicator]] -> 0 | BK78: =T_DataComboFile[[#This Row],[2022/23 Baseline_Source]]*T_DataComboFile[[#This Row],[G&S reporting level indicator]] -> 0 | BL78: =T_DataComboFile[[#This Row],[2023/24 Baseline_Source]]*T_DataComboFile[[#This Row],[G&S reporting level indicator]] -> 0 | BS78: =T_DataComboFile[[#This Row],[2021/22 Baseline]]+T_DataComboFile[[#This Row],[2021/22 Reduction]]+T_DataComboFile[[#This Row],[2021/22 Increase]] -> 0 | BT78: =T_DataComboFile[[#This Row],[2022/23 Baseline]]+T_DataComboFile[[#This Row],[2022/23 Reduction]]+T_DataComboFile[[#This Row],[2022/23 Increase]] -> 0 | BU78: =T_DataComboFile[[#This Row],[2023/24 Baseline]]+T_DataComboFile[[#This Row],[2023/24 Reduction]]+T_DataComboFile[[#This Row],[2023/24 Increase]] -> 0
C79: 2021_22 | D79: ENE2020 | E79: 6 | F79: 1 | G79: 1 | I79: 9180 | J79: 6 | K79: 1 | L79: 1 | N79: 009180 | O79: 06|01|01 | P79: 2 | Q79: 2 | R79: 6 | S79: 47 | T79: 49 | U79: 02|02|06|47|49 | V79: National | W79: International Relations and Cooperation | X79: Administration | Y79: Ministry | AA79: Capital | AB79: Transfers and subsidies | AC79: Higher education institutions | AD79: Higher education institutions | AE79: Higher education institutions | AI79: 0 | AJ79: 0 | AK79: 0 | AL79: 0 | AM79: 0 | AN79: 0 | AO79: 0 | AP79: 0 | AQ79: 0 | AR79: 0 | AS79: 0 | AT79: 0 | AU79: 0 | AV79: 0 | AX79: =IF(T_DataComboFile[[#This Row],[G&S reporting level indicator]]=1,$AX$16,"Not applicable") -> Level 3 | AY79: =IF(AND($AX$16="Level 3",T_DataComboFile[[#This Row],[Econ3]] = "Goods and services"),IF(T_DataComboFile[[#This Row],[Econ4]] = T_DataComboFile[[#This Row],[Econ3]],1,0),IF(AND($AX$16="Level 4",T_DataComboFile[[#This Row],[Econ4]] = "Goods and services"),0,1)) -> 1 | AZ79: =T_DataComboFile[[#This Row],[2016/17_Source]]*T_DataComboFile[[#This Row],[G&S reporting level indicator]] -> 0 | BA79: =T_DataComboFile[[#This Row],[2017/18_Source]]*T_DataComboFile[[#This Row],[G&S reporting level indicator]] -> 0 | BB79: =T_DataComboFile[[#This Row],[2018/19_Source]]*T_DataComboFile[[#This Row],[G&S reporting level indicator]] -> 0 | BC79: =T_DataComboFile[[#This Row],[2019/20 Main appropriation_Source]]*T_DataComboFile[[#This Row],[G&S reporting level indicator]] -> 0 | BD79: =T_DataComboFile[[#This Row],[2019/20 Adjusted appropriation_Source]]*T_DataComboFile[[#This Row],[G&S reporting level indicator]] -> 0 | BE79: =T_DataComboFile[[#This Row],[2019/20 Revised estimate_Source]]*T_DataComboFile[[#This Row],[G&S reporting level indicator]] -> 0 | BF79: =T_DataComboFile[[#This Row],[2019/20 Preliminary outcome_Source]]*T_DataComboFile[[#This Row],[G&S reporting level indicator]] -> 0 | BG79: =T_DataComboFile[[#This Row],[2020/21 Original_Source]]*T_DataComboFile[[#This Row],[G&S reporting level indicator]] -> 0 | BH79: =T_DataComboFile[[#This Row],[2020/21 SAB_Source]]*T_DataComboFile[[#This Row],[G&S reporting level indicator]] -> 0 | BI79: =T_DataComboFile[[#This Row],[2020/21 Baseline_Source]]*T_DataComboFile[[#This Row],[G&S reporting level indicator]] -> 0 | BJ79: =T_DataComboFile[[#This Row],[2021/22 Baseline_Source]]*T_DataComboFile[[#This Row],[G&S reporting level indicator]] -> 0 | BK79: =T_DataComboFile[[#This Row],[2022/23 Baseline_Source]]*T_DataComboFile[[#This Row],[G&S reporting level indicator]] -> 0 | BL79: =T_DataComboFile[[#This Row],[2023/24 Baseline_Source]]*T_DataComboFile[[#This Row],[G&S reporting level indicator]] -> 0 | BS79: =T_DataComboFile[[#This Row],[2021/22 Baseline]]+T_DataComboFile[[#This Row],[2021/22 Reduction]]+T_DataComboFile[[#This Row],[2021/22 Increase]] -> 0 | BT79: =T_DataComboFile[[#This Row],[2022/23 Baseline]]+T_DataComboFile[[#This Row],[2022/23 Reduction]]+T_DataComboFile[[#This Row],[2022/23 Increase]] -> 0 | BU79: =T_DataComboFile[[#This Row],[2023/24 Baseline]]+T_DataComboFile[[#This Row],[2023/24 Reduction]]+T_DataComboFile[[#This Row],[2023/24 Increase]] -> 0
C80: 2021_22 | D80: ENE2020 | E80: 6 | F80: 1 | G80: 1 | I80: 9181 | J80: 6 | K80: 1 | L80: 1 | N80: 009181 | O80: 06|01|01 | P80: 2 | Q80: 2 | R80: 7 | S80: 48 | T80: 50 | U80: 02|02|07|48|50 | V80: National | W80: International Relations and Cooperation | X80: Administration | Y80: Ministry | AA80: Capital | AB80: Transfers and subsidies | AC80: Foreign governments and international organisations | AD80: Foreign governments and international organisations | AE80: Foreign governments and international organisations | AI80: 0 | AJ80: 0 | AK80: 0 | AL80: 0 | AM80: 0 | AN80: 0 | AO80: 0 | AP80: 0 | AQ80: 0 | AR80: 0 | AS80: 0 | AT80: 0 | AU80: 0 | AV80: 0 | AX80: =IF(T_DataComboFile[[#This Row],[G&S reporting level indicator]]=1,$AX$16,"Not applicable") -> Level 3 | AY80: =IF(AND($AX$16="Level 3",T_DataComboFile[[#This Row],[Econ3]] = "Goods and services"),IF(T_DataComboFile[[#This Row],[Econ4]] = T_DataComboFile[[#This Row],[Econ3]],1,0),IF(AND($AX$16="Level 4",T_DataComboFile[[#This Row],[Econ4]] = "Goods and services"),0,1)) -> 1 | AZ80: =T_DataComboFile[[#This Row],[2016/17_Source]]*T_DataComboFile[[#This Row],[G&S reporting level indicator]] -> 0 | BA80: =T_DataComboFile[[#This Row],[2017/18_Source]]*T_DataComboFile[[#This Row],[G&S reporting level indicator]] -> 0 | BB80: =T_DataComboFile[[#This Row],[2018/19_Source]]*T_DataComboFile[[#This Row],[G&S reporting level indicator]] -> 0 | BC80: =T_DataComboFile[[#This Row],[2019/20 Main appropriation_Source]]*T_DataComboFile[[#This Row],[G&S reporting level indicator]] -> 0 | BD80: =T_DataComboFile[[#This Row],[2019/20 Adjusted appropriation_Source]]*T_DataComboFile[[#This Row],[G&S reporting level indicator]] -> 0 | BE80: =T_DataComboFile[[#This Row],[2019/20 Revised estimate_Source]]*T_DataComboFile[[#This Row],[G&S reporting level indicator]] -> 0 | BF80: =T_DataComboFile[[#This Row],[2019/20 Preliminary outcome_Source]]*T_DataComboFile[[#This Row],[G&S reporting level indicator]] -> 0 | BG80: =T_DataComboFile[[#This Row],[2020/21 Original_Source]]*T_DataComboFile[[#This Row],[G&S reporting level indicator]] -> 0 | BH80: =T_DataComboFile[[#This Row],[2020/21 SAB_Source]]*T_DataComboFile[[#This Row],[G&S reporting level indicator]] -> 0 | BI80: =T_DataComboFile[[#This Row],[2020/21 Baseline_Source]]*T_DataComboFile[[#This Row],[G&S reporting level indicator]] -> 0 | BJ80: =T_DataComboFile[[#This Row],[2021/22 Baseline_Source]]*T_DataComboFile[[#This Row],[G&S reporting level indicator]] -> 0 | BK80: =T_DataComboFile[[#This Row],[2022/23 Baseline_Source]]*T_DataComboFile[[#This Row],[G&S reporting level indicator]] -> 0 | BL80: =T_DataComboFile[[#This Row],[2023/24 Baseline_Source]]*T_DataComboFile[[#This Row],[G&S reporting level indicator]] -> 0 | BS80: =T_DataComboFile[[#This Row],[2021/22 Baseline]]+T_DataComboFile[[#This Row],[2021/22 Reduction]]+T_DataComboFile[[#This Row],[2021/22 Increase]] -> 0 | BT80: =T_DataComboFile[[#This Row],[2022/23 Baseline]]+T_DataComboFile[[#This Row],[2022/23 Reduction]]+T_DataComboFile[[#This Row],[2022/23 Increase]] -> 0 | BU80: =T_DataComboFile[[#This Row],[2023/24 Baseline]]+T_DataComboFile[[#This Row],[2023/24 Reduction]]+T_DataComboFile[[#This Row],[2023/24 Increase]] -> 0
C81: 2021_22 | D81: ENE2020 | E81: 6 | F81: 1 | G81: 1 | I81: 9182 | J81: 6 | K81: 1 | L81: 1 | N81: 009182 | O81: 06|01|01 | P81: 2 | Q81: 2 | R81: 8 | S81: 49 | T81: 51 | U81: 02|02|08|49|51 | V81: National | W81: International Relations and Cooperation | X81: Administration | Y81: Ministry | AA81: Capital | AB81: Transfers and subsidies | AC81: Public corporations and private enterprises | AD81: Public corporations | AE81: Subsidies on products and production (pc) | AI81: 0 | AJ81: 0 | AK81: 0 | AL81: 0 | AM81: 0 | AN81: 0 | AO81: 0 | AP81: 0 | AQ81: 0 | AR81: 0 | AS81: 0 | AT81: 0 | AU81: 0 | AV81: 0 | AX81: =IF(T_DataComboFile[[#This Row],[G&S reporting level indicator]]=1,$AX$16,"Not applicable") -> Level 3 | AY81: =IF(AND($AX$16="Level 3",T_DataComboFile[[#This Row],[Econ3]] = "Goods and services"),IF(T_DataComboFile[[#This Row],[Econ4]] = T_DataComboFile[[#This Row],[Econ3]],1,0),IF(AND($AX$16="Level 4",T_DataComboFile[[#This Row],[Econ4]] = "Goods and services"),0,1)) -> 1 | AZ81: =T_DataComboFile[[#This Row],[2016/17_Source]]*T_DataComboFile[[#This Row],[G&S reporting level indicator]] -> 0 | BA81: =T_DataComboFile[[#This Row],[2017/18_Source]]*T_DataComboFile[[#This Row],[G&S reporting level indicator]] -> 0 | BB81: =T_DataComboFile[[#This Row],[2018/19_Source]]*T_DataComboFile[[#This Row],[G&S reporting level indicator]] -> 0 | BC81: =T_DataComboFile[[#This Row],[2019/20 Main appropriation_Source]]*T_DataComboFile[[#This Row],[G&S reporting level indicator]] -> 0 | BD81: =T_DataComboFile[[#This Row],[2019/20 Adjusted appropriation_Source]]*T_DataComboFile[[#This Row],[G&S reporting level indicator]] -> 0 | BE81: =T_DataComboFile[[#This Row],[2019/20 Revised estimate_Source]]*T_DataComboFile[[#This Row],[G&S reporting level indicator]] -> 0 | BF81: =T_DataComboFile[[#This Row],[2019/20 Preliminary outcome_Source]]*T_DataComboFile[[#This Row],[G&S reporting level indicator]] -> 0 | BG81: =T_DataComboFile[[#This Row],[2020/21 Original_Source]]*T_DataComboFile[[#This Row],[G&S reporting level indicator]] -> 0 | BH81: =T_DataComboFile[[#This Row],[2020/21 SAB_Source]]*T_DataComboFile[[#This Row],[G&S reporting level indicator]] -> 0 | BI81: =T_DataComboFile[[#This Row],[2020/21 Baseline_Source]]*T_DataComboFile[[#This Row],[G&S reporting level indicator]] -> 0 | BJ81: =T_DataComboFile[[#This Row],[2021/22 Baseline_Source]]*T_DataComboFile[[#This Row],[G&S reporting level indicator]] -> 0 | BK81: =T_DataComboFile[[#This Row],[2022/23 Baseline_Source]]*T_DataComboFile[[#This Row],[G&S reporting level indicator]] -> 0 | BL81: =T_DataComboFile[[#This Row],[2023/24 Baseline_Source]]*T_DataComboFile[[#This Row],[G&S reporting level indicator]] -> 0 | BS81: =T_DataComboFile[[#This Row],[2021/22 Baseline]]+T_DataComboFile[[#This Row],[2021/22 Reduction]]+T_DataComboFile[[#This Row],[2021/22 Increase]] -> 0 | BT81: =T_DataComboFile[[#This Row],[2022/23 Baseline]]+T_DataComboFile[[#This Row],[2022/23 Reduction]]+T_DataComboFile[[#This Row],[2022/23 Increase]] -> 0 | BU81: =T_DataComboFile[[#This Row],[2023/24 Baseline]]+T_DataComboFile[[#This Row],[2023/24 Reduction]]+T_DataComboFile[[#This Row],[2023/24 Increase]] -> 0
C82: 2021_22 | D82: ENE2020 | E82: 6 | F82: 1 | G82: 1 | I82: 9183 | J82: 6 | K82: 1 | L82: 1 | N82: 009183 | O82: 06|01|01 | P82: 2 | Q82: 2 | R82: 8 | S82: 49 | T82: 52 | U82: 02|02|08|49|52 | V82: National | W82: International Relations and Cooperation | X82: Administration | Y82: Ministry | AA82: Capital | AB82: Transfers and subsidies | AC82: Public corporations and private enterprises | AD82: Public corporations | AE82: Other transfers to public corporations | AI82: 0 | AJ82: 0 | AK82: 0 | AL82: 0 | AM82: 0 | AN82: 0 | AO82: 0 | AP82: 0 | AQ82: 0 | AR82: 0 | AS82: 0 | AT82: 0 | AU82: 0 | AV82: 0 | AX82: =IF(T_DataComboFile[[#This Row],[G&S reporting level indicator]]=1,$AX$16,"Not applicable") -> Level 3 | AY82: =IF(AND($AX$16="Level 3",T_DataComboFile[[#This Row],[Econ3]] = "Goods and services"),IF(T_DataComboFile[[#This Row],[Econ4]] = T_DataComboFile[[#This Row],[Econ3]],1,0),IF(AND($AX$16="Level 4",T_DataComboFile[[#This Row],[Econ4]] = "Goods and services"),0,1)) -> 1 | AZ82: =T_DataComboFile[[#This Row],[2016/17_Source]]*T_DataComboFile[[#This Row],[G&S reporting level indicator]] -> 0 | BA82: =T_DataComboFile[[#This Row],[2017/18_Source]]*T_DataComboFile[[#This Row],[G&S reporting level indicator]] -> 0 | BB82: =T_DataComboFile[[#This Row],[2018/19_Source]]*T_DataComboFile[[#This Row],[G&S reporting level indicator]] -> 0 | BC82: =T_DataComboFile[[#This Row],[2019/20 Main appropriation_Source]]*T_DataComboFile[[#This Row],[G&S reporting level indicator]] -> 0 | BD82: =T_DataComboFile[[#This Row],[2019/20 Adjusted appropriation_Source]]*T_DataComboFile[[#This Row],[G&S reporting level indicator]] -> 0 | BE82: =T_DataComboFile[[#This Row],[2019/20 Revised estimate_Source]]*T_DataComboFile[[#This Row],[G&S reporting level indicator]] -> 0 | BF82: =T_DataComboFile[[#This Row],[2019/20 Preliminary outcome_Source]]*T_DataComboFile[[#This Row],[G&S reporting level indicator]] -> 0 | BG82: =T_DataComboFile[[#This Row],[2020/21 Original_Source]]*T_DataComboFile[[#This Row],[G&S reporting level indicator]] -> 0 | BH82: =T_DataComboFile[[#This Row],[2020/21 SAB_Source]]*T_DataComboFile[[#This Row],[G&S reporting level indicator]] -> 0 | BI82: =T_DataComboFile[[#This Row],[2020/21 Baseline_Source]]*T_DataComboFile[[#This Row],[G&S reporting level indicator]] -> 0 | BJ82: =T_DataComboFile[[#This Row],[2021/22 Baseline_Source]]*T_DataComboFile[[#This Row],[G&S reporting level indicator]] -> 0 | BK82: =T_DataComboFile[[#This Row],[2022/23 Baseline_Source]]*T_DataComboFile[[#This Row],[G&S reporting level indicator]] -> 0 | BL82: =T_DataComboFile[[#This Row],[2023/24 Baseline_Source]]*T_DataComboFile[[#This Row],[G&S reporting level indicator]] -> 0 | BS82: =T_DataComboFile[[#This Row],[2021/22 Baseline]]+T_DataComboFile[[#This Row],[2021/22 Reduction]]+T_DataComboFile[[#This Row],[2021/22 Increase]] -> 0 | BT82: =T_DataComboFile[[#This Row],[2022/23 Baseline]]+T_DataComboFile[[#This Row],[2022/23 Reduction]]+T_DataComboFile[[#This Row],[2022/23 Increase]] -> 0 | BU82: =T_DataComboFile[[#This Row],[2023/24 Baseline]]+T_DataComboFile[[#This Row],[2023/24 Reduction]]+T_DataComboFile[[#This Row],[2023/24 Increase]] -> 0
C83: 2021_22 | D83: ENE2020 | E83: 6 | F83: 1 | G83: 1 | I83: 9184 | J83: 6 | K83: 1 | L83: 1 | N83: 009184 | O83: 06|01|01 | P83: 2 | Q83: 2 | R83: 8 | S83: 50 | T83: 54 | U83: 02|02|08|50|54 | V83: National | W83: International Relations and Cooperation | X83: Administration | Y83: Ministry | AA83: Capital | AB83: Transfers and subsidies | AC83: Public corporations and private enterprises | AD83: Private enterprises | AE83: Other transfers to private enterprises | AI83: 0 | AJ83: 0 | AK83: 0 | AL83: 0 | AM83: 0 | AN83: 0 | AO83: 0 | AP83: 0 | AQ83: 0 | AR83: 0 | AS83: 0 | AT83: 0 | AU83: 0 | AV83: 0 | AX83: =IF(T_DataComboFile[[#This Row],[G&S reporting level indicator]]=1,$AX$16,"Not applicable") -> Level 3 | AY83: =IF(AND($AX$16="Level 3",T_DataComboFile[[#This Row],[Econ3]] = "Goods and services"),IF(T_DataComboFile[[#This Row],[Econ4]] = T_DataComboFile[[#This Row],[Econ3]],1,0),IF(AND($AX$16="Level 4",T_DataComboFile[[#This Row],[Econ4]] = "Goods and services"),0,1)) -> 1 | AZ83: =T_DataComboFile[[#This Row],[2016/17_Source]]*T_DataComboFile[[#This Row],[G&S reporting level indicator]] -> 0 | BA83: =T_DataComboFile[[#This Row],[2017/18_Source]]*T_DataComboFile[[#This Row],[G&S reporting level indicator]] -> 0 | BB83: =T_DataComboFile[[#This Row],[2018/19_Source]]*T_DataComboFile[[#This Row],[G&S reporting level indicator]] -> 0 | BC83: =T_DataComboFile[[#This Row],[2019/20 Main appropriation_Source]]*T_DataComboFile[[#This Row],[G&S reporting level indicator]] -> 0 | BD83: =T_DataComboFile[[#This Row],[2019/20 Adjusted appropriation_Source]]*T_DataComboFile[[#This Row],[G&S reporting level indicator]] -> 0 | BE83: =T_DataComboFile[[#This Row],[2019/20 Revised estimate_Source]]*T_DataComboFile[[#This Row],[G&S reporting level indicator]] -> 0 | BF83: =T_DataComboFile[[#This Row],[2019/20 Preliminary outcome_Source]]*T_DataComboFile[[#This Row],[G&S reporting level indicator]] -> 0 | BG83: =T_DataComboFile[[#This Row],[2020/21 Original_Source]]*T_DataComboFile[[#This Row],[G&S reporting level indicator]] -> 0 | BH83: =T_DataComboFile[[#This Row],[2020/21 SAB_Source]]*T_DataComboFile[[#This Row],[G&S reporting level indicator]] -> 0 | BI83: =T_DataComboFile[[#This Row],[2020/21 Baseline_Source]]*T_DataComboFile[[#This Row],[G&S reporting level indicator]] -> 0 | BJ83: =T_DataComboFile[[#This Row],[2021/22 Baseline_Source]]*T_DataComboFile[[#This Row],[G&S reporting level indicator]] -> 0 | BK83: =T_DataComboFile[[#This Row],[2022/23 Baseline_Source]]*T_DataComboFile[[#This Row],[G&S reporting level indicator]] -> 0 | BL83: =T_DataComboFile[[#This Row],[2023/24 Baseline_Source]]*T_DataComboFile[[#This Row],[G&S reporting level indicator]] -> 0 | BS83: =T_DataComboFile[[#This Row],[2021/22 Baseline]]+T_DataComboFile[[#This Row],[2021/22 Reduction]]+T_DataComboFile[[#This Row],[2021/22 Increase]] -> 0 | BT83: =T_DataComboFile[[#This Row],[2022/23 Baseline]]+T_DataComboFile[[#This Row],[2022/23 Reduction]]+T_DataComboFile[[#This Row],[2022/23 Increase]] -> 0 | BU83: =T_DataComboFile[[#This Row],[2023/24 Baseline]]+T_DataComboFile[[#This Row],[2023/24 Reduction]]+T_DataComboFile[[#This Row],[2023/24 Increase]] -> 0
C84: 2021_22 | D84: ENE2020 | E84: 6 | F84: 1 | G84: 1 | I84: 9185 | J84: 6 | K84: 1 | L84: 1 | N84: 009185 | O84: 06|01|01 | P84: 2 | Q84: 2 | R84: 9 | S84: 51 | T84: 55 | U84: 02|02|09|51|55 | V84: National | W84: International Relations and Cooperation | X84: Administration | Y84: Ministry | AA84: Capital | AB84: Transfers and subsidies | AC84: Non-profit institutions | AD84: Non-profit institutions | AE84: Non-profit institutions | AI84: 0 | AJ84: 0 | AK84: 0 | AL84: 0 | AM84: 0 | AN84: 0 | AO84: 0 | AP84: 0 | AQ84: 0 | AR84: 0 | AS84: 0 | AT84: 0 | AU84: 0 | AV84: 0 | AX84: =IF(T_DataComboFile[[#This Row],[G&S reporting level indicator]]=1,$AX$16,"Not applicable") -> Level 3 | AY84: =IF(AND($AX$16="Level 3",T_DataComboFile[[#This Row],[Econ3]] = "Goods and services"),IF(T_DataComboFile[[#This Row],[Econ4]] = T_DataComboFile[[#This Row],[Econ3]],1,0),IF(AND($AX$16="Level 4",T_DataComboFile[[#This Row],[Econ4]] = "Goods and services"),0,1)) -> 1 | AZ84: =T_DataComboFile[[#This Row],[2016/17_Source]]*T_DataComboFile[[#This Row],[G&S reporting level indicator]] -> 0 | BA84: =T_DataComboFile[[#This Row],[2017/18_Source]]*T_DataComboFile[[#This Row],[G&S reporting level indicator]] -> 0 | BB84: =T_DataComboFile[[#This Row],[2018/19_Source]]*T_DataComboFile[[#This Row],[G&S reporting level indicator]] -> 0 | BC84: =T_DataComboFile[[#This Row],[2019/20 Main appropriation_Source]]*T_DataComboFile[[#This Row],[G&S reporting level indicator]] -> 0 | BD84: =T_DataComboFile[[#This Row],[2019/20 Adjusted appropriation_Source]]*T_DataComboFile[[#This Row],[G&S reporting level indicator]] -> 0 | BE84: =T_DataComboFile[[#This Row],[2019/20 Revised estimate_Source]]*T_DataComboFile[[#This Row],[G&S reporting level indicator]] -> 0 | BF84: =T_DataComboFile[[#This Row],[2019/20 Preliminary outcome_Source]]*T_DataComboFile[[#This Row],[G&S reporting level indicator]] -> 0 | BG84: =T_DataComboFile[[#This Row],[2020/21 Original_Source]]*T_DataComboFile[[#This Row],[G&S reporting level indicator]] -> 0 | BH84: =T_DataComboFile[[#This Row],[2020/21 SAB_Source]]*T_DataComboFile[[#This Row],[G&S reporting level indicator]] -> 0 | BI84: =T_DataComboFile[[#This Row],[2020/21 Baseline_Source]]*T_DataComboFile[[#This Row],[G&S reporting level indicator]] -> 0 | BJ84: =T_DataComboFile[[#This Row],[2021/22 Baseline_Source]]*T_DataComboFile[[#This Row],[G&S reporting level indicator]] -> 0 | BK84: =T_DataComboFile[[#This Row],[2022/23 Baseline_Source]]*T_DataComboFile[[#This Row],[G&S reporting level indicator]] -> 0 | BL84: =T_DataComboFile[[#This Row],[2023/24 Baseline_Source]]*T_DataComboFile[[#This Row],[G&S reporting level indicator]] -> 0 | BS84: =T_DataComboFile[[#This Row],[2021/22 Baseline]]+T_DataComboFile[[#This Row],[2021/22 Reduction]]+T_DataComboFile[[#This Row],[2021/22 Increase]] -> 0 | BT84: =T_DataComboFile[[#This Row],[2022/23 Baseline]]+T_DataComboFile[[#This Row],[2022/23 Reduction]]+T_DataComboFile[[#This Row],[2022/23 Increase]] -> 0 | BU84: =T_DataComboFile[[#This Row],[2023/24 Baseline]]+T_DataComboFile[[#This Row],[2023/24 Reduction]]+T_DataComboFile[[#This Row],[2023/24 Increase]] -> 0
C85: 2021_22 | D85: ENE2020 | E85: 6 | F85: 1 | G85: 1 | I85: 9186 | J85: 6 | K85: 1 | L85: 1 | N85: 009186 | O85: 06|01|01 | P85: 2 | Q85: 2 | R85: 10 | S85: 53 | T85: 57 | U85: 02|02|10|53|57 | V85: National | W85: International Relations and Cooperation | X85: Administration | Y85: Ministry | AA85: Capital | AB85: Transfers and subsidies | AC85: Households | AD85: Other transfers to households | AE85: Other transfers to households | AI85: 0 | AJ85: 0 | AK85: 0 | AL85: 0 | AM85: 0 | AN85: 0 | AO85: 0 | AP85: 0 | AQ85: 0 | AR85: 0 | AS85: 0 | AT85: 0 | AU85: 0 | AV85: 0 | AX85: =IF(T_DataComboFile[[#This Row],[G&S reporting level indicator]]=1,$AX$16,"Not applicable") -> Level 3 | AY85: =IF(AND($AX$16="Level 3",T_DataComboFile[[#This Row],[Econ3]] = "Goods and services"),IF(T_DataComboFile[[#This Row],[Econ4]] = T_DataComboFile[[#This Row],[Econ3]],1,0),IF(AND($AX$16="Level 4",T_DataComboFile[[#This Row],[Econ4]] = "Goods and services"),0,1)) -> 1 | AZ85: =T_DataComboFile[[#This Row],[2016/17_Source]]*T_DataComboFile[[#This Row],[G&S reporting level indicator]] -> 0 | BA85: =T_DataComboFile[[#This Row],[2017/18_Source]]*T_DataComboFile[[#This Row],[G&S reporting level indicator]] -> 0 | BB85: =T_DataComboFile[[#This Row],[2018/19_Source]]*T_DataComboFile[[#This Row],[G&S reporting level indicator]] -> 0 | BC85: =T_DataComboFile[[#This Row],[2019/20 Main appropriation_Source]]*T_DataComboFile[[#This Row],[G&S reporting level indicator]] -> 0 | BD85: =T_DataComboFile[[#This Row],[2019/20 Adjusted appropriation_Source]]*T_DataComboFile[[#This Row],[G&S reporting level indicator]] -> 0 | BE85: =T_DataComboFile[[#This Row],[2019/20 Revised estimate_Source]]*T_DataComboFile[[#This Row],[G&S reporting level indicator]] -> 0 | BF85: =T_DataComboFile[[#This Row],[2019/20 Preliminary outcome_Source]]*T_DataComboFile[[#This Row],[G&S reporting level indicator]] -> 0 | BG85: =T_DataComboFile[[#This Row],[2020/21 Original_Source]]*T_DataComboFile[[#This Row],[G&S reporting level indicator]] -> 0 | BH85: =T_DataComboFile[[#This Row],[2020/21 SAB_Source]]*T_DataComboFile[[#This Row],[G&S reporting level indicator]] -> 0 | BI85: =T_DataComboFile[[#This Row],[2020/21 Baseline_Source]]*T_DataComboFile[[#This Row],[G&S reporting level indicator]] -> 0 | BJ85: =T_DataComboFile[[#This Row],[2021/22 Baseline_Source]]*T_DataComboFile[[#This Row],[G&S reporting level indicator]] -> 0 | BK85: =T_DataComboFile[[#This Row],[2022/23 Baseline_Source]]*T_DataComboFile[[#This Row],[G&S reporting level indicator]] -> 0 | BL85: =T_DataComboFile[[#This Row],[2023/24 Baseline_Source]]*T_DataComboFile[[#This Row],[G&S reporting level indicator]] -> 0 | BS85: =T_DataComboFile[[#This Row],[2021/22 Baseline]]+T_DataComboFile[[#This Row],[2021/22 Reduction]]+T_DataComboFile[[#This Row],[2021/22 Increase]] -> 0 | BT85: =T_DataComboFile[[#This Row],[2022/23 Baseline]]+T_DataComboFile[[#This Row],[2022/23 Reduction]]+T_DataComboFile[[#This Row],[2022/23 Increase]] -> 0 | BU85: =T_DataComboFile[[#This Row],[2023/24 Baseline]]+T_DataComboFile[[#This Row],[2023/24 Reduction]]+T_DataComboFile[[#This Row],[2023/24 Increase]] -> 0
C86: 2021_22 | D86: ENE2020 | E86: 6 | F86: 1 | G86: 1 | I86: 9187 | J86: 6 | K86: 1 | L86: 1 | N86: 009187 | O86: 06|01|01 | P86: 2 | Q86: 3 | R86: 11 | S86: 54 | T86: 58 | U86: 02|03|11|54|58 | V86: National | W86: International Relations and Cooperation | X86: Administration | Y86: Ministry | AA86: Capital | AB86: Payments for capital assets | AC86: Buildings and other fixed structures | AD86: Buildings | AE86: Buildings | AI86: 0 | AJ86: 0 | AK86: 0 | AL86: 0 | AM86: 0 | AN86: 0 | AO86: 0 | AP86: 0 | AQ86: 0 | AR86: 0 | AS86: 0 | AT86: 0 | AU86: 0 | AV86: 0 | AX86: =IF(T_DataComboFile[[#This Row],[G&S reporting level indicator]]=1,$AX$16,"Not applicable") -> Level 3 | AY86: =IF(AND($AX$16="Level 3",T_DataComboFile[[#This Row],[Econ3]] = "Goods and services"),IF(T_DataComboFile[[#This Row],[Econ4]] = T_DataComboFile[[#This Row],[Econ3]],1,0),IF(AND($AX$16="Level 4",T_DataComboFile[[#This Row],[Econ4]] = "Goods and services"),0,1)) -> 1 | AZ86: =T_DataComboFile[[#This Row],[2016/17_Source]]*T_DataComboFile[[#This Row],[G&S reporting level indicator]] -> 0 | BA86: =T_DataComboFile[[#This Row],[2017/18_Source]]*T_DataComboFile[[#This Row],[G&S reporting level indicator]] -> 0 | BB86: =T_DataComboFile[[#This Row],[2018/19_Source]]*T_DataComboFile[[#This Row],[G&S reporting level indicator]] -> 0 | BC86: =T_DataComboFile[[#This Row],[2019/20 Main appropriation_Source]]*T_DataComboFile[[#This Row],[G&S reporting level indicator]] -> 0 | BD86: =T_DataComboFile[[#This Row],[2019/20 Adjusted appropriation_Source]]*T_DataComboFile[[#This Row],[G&S reporting level indicator]] -> 0 | BE86: =T_DataComboFile[[#This Row],[2019/20 Revised estimate_Source]]*T_DataComboFile[[#This Row],[G&S reporting level indicator]] -> 0 | BF86: =T_DataComboFile[[#This Row],[2019/20 Preliminary outcome_Source]]*T_DataComboFile[[#This Row],[G&S reporting level indicator]] -> 0 | BG86: =T_DataComboFile[[#This Row],[2020/21 Original_Source]]*T_DataComboFile[[#This Row],[G&S reporting level indicator]] -> 0 | BH86: =T_DataComboFile[[#This Row],[2020/21 SAB_Source]]*T_DataComboFile[[#This Row],[G&S reporting level indicator]] -> 0 | BI86: =T_DataComboFile[[#This Row],[2020/21 Baseline_Source]]*T_DataComboFile[[#This Row],[G&S reporting level indicator]] -> 0 | BJ86: =T_DataComboFile[[#This Row],[2021/22 Baseline_Source]]*T_DataComboFile[[#This Row],[G&S reporting level indicator]] -> 0 | BK86: =T_DataComboFile[[#This Row],[2022/23 Baseline_Source]]*T_DataComboFile[[#This Row],[G&S reporting level indicator]] -> 0 | BL86: =T_DataComboFile[[#This Row],[2023/24 Baseline_Source]]*T_DataComboFile[[#This Row],[G&S reporting level indicator]] -> 0 | BS86: =T_DataComboFile[[#This Row],[2021/22 Baseline]]+T_DataComboFile[[#This Row],[2021/22 Reduction]]+T_DataComboFile[[#This Row],[2021/22 Increase]] -> 0 | BT86: =T_DataComboFile[[#This Row],[2022/23 Baseline]]+T_DataComboFile[[#This Row],[2022/23 Reduction]]+T_DataComboFile[[#This Row],[2022/23 Increase]] -> 0 | BU86: =T_DataComboFile[[#This Row],[2023/24 Baseline]]+T_DataComboFile[[#This Row],[2023/24 Reduction]]+T_DataComboFile[[#This Row],[2023/24 Increase]] -> 0
C87: 2021_22 | D87: ENE2020 | E87: 6 | F87: 1 | G87: 1 | I87: 9188 | J87: 6 | K87: 1 | L87: 1 | N87: 009188 | O87: 06|01|01 | P87: 2 | Q87: 3 | R87: 11 | S87: 55 | T87: 59 | U87: 02|03|11|55|59 | V87: National | W87: International Relations and Cooperation | X87: Administration | Y87: Ministry | AA87: Capital | AB87: Payments for capital assets | AC87: Buildings and other fixed structures | AD87: Other fixed structures | AE87: Other fixed structures | AI87: 0 | AJ87: 0 | AK87: 0 | AL87: 0 | AM87: 0 | AN87: 0 | AO87: 0 | AP87: 0 | AQ87: 0 | AR87: 0 | AS87: 0 | AT87: 0 | AU87: 0 | AV87: 0 | AX87: =IF(T_DataComboFile[[#This Row],[G&S reporting level indicator]]=1,$AX$16,"Not applicable") -> Level 3 | AY87: =IF(AND($AX$16="Level 3",T_DataComboFile[[#This Row],[Econ3]] = "Goods and services"),IF(T_DataComboFile[[#This Row],[Econ4]] = T_DataComboFile[[#This Row],[Econ3]],1,0),IF(AND($AX$16="Level 4",T_DataComboFile[[#This Row],[Econ4]] = "Goods and services"),0,1)) -> 1 | AZ87: =T_DataComboFile[[#This Row],[2016/17_Source]]*T_DataComboFile[[#This Row],[G&S reporting level indicator]] -> 0 | BA87: =T_DataComboFile[[#This Row],[2017/18_Source]]*T_DataComboFile[[#This Row],[G&S reporting level indicator]] -> 0 | BB87: =T_DataComboFile[[#This Row],[2018/19_Source]]*T_DataComboFile[[#This Row],[G&S reporting level indicator]] -> 0 | BC87: =T_DataComboFile[[#This Row],[2019/20 Main appropriation_Source]]*T_DataComboFile[[#This Row],[G&S reporting level indicator]] -> 0 | BD87: =T_DataComboFile[[#This Row],[2019/20 Adjusted appropriation_Source]]*T_DataComboFile[[#This Row],[G&S reporting level indicator]] -> 0 | BE87: =T_DataComboFile[[#This Row],[2019/20 Revised estimate_Source]]*T_DataComboFile[[#This Row],[G&S reporting level indicator]] -> 0 | BF87: =T_DataComboFile[[#This Row],[2019/20 Preliminary outcome_Source]]*T_DataComboFile[[#This Row],[G&S reporting level indicator]] -> 0 | BG87: =T_DataComboFile[[#This Row],[2020/21 Original_Source]]*T_DataComboFile[[#This Row],[G&S reporting level indicator]] -> 0 | BH87: =T_DataComboFile[[#This Row],[2020/21 SAB_Source]]*T_DataComboFile[[#This Row],[G&S reporting level indicator]] -> 0 | BI87: =T_DataComboFile[[#This Row],[2020/21 Baseline_Source]]*T_DataComboFile[[#This Row],[G&S reporting level indicator]] -> 0 | BJ87: =T_DataComboFile[[#This Row],[2021/22 Baseline_Source]]*T_DataComboFile[[#This Row],[G&S reporting level indicator]] -> 0 | BK87: =T_DataComboFile[[#This Row],[2022/23 Baseline_Source]]*T_DataComboFile[[#This Row],[G&S reporting level indicator]] -> 0 | BL87: =T_DataComboFile[[#This Row],[2023/24 Baseline_Source]]*T_DataComboFile[[#This Row],[G&S reporting level indicator]] -> 0 | BS87: =T_DataComboFile[[#This Row],[2021/22 Baseline]]+T_DataComboFile[[#This Row],[2021/22 Reduction]]+T_DataComboFile[[#This Row],[2021/22 Increase]] -> 0 | BT87: =T_DataComboFile[[#This Row],[2022/23 Baseline]]+T_DataComboFile[[#This Row],[2022/23 Reduction]]+T_DataComboFile[[#This Row],[2022/23 Increase]] -> 0 | BU87: =T_DataComboFile[[#This Row],[2023/24 Baseline]]+T_DataComboFile[[#This Row],[2023/24 Reduction]]+T_DataComboFile[[#This Row],[2023/24 Increase]] -> 0
C88: 2021_22 | D88: ENE2020 | E88: 6 | F88: 1 | G88: 1 | I88: 9189 | J88: 6 | K88: 1 | L88: 1 | N88: 009189 | O88: 06|01|01 | P88: 2 | Q88: 3 | R88: 12 | S88: 56 | T88: 60 | U88: 02|03|12|56|60 | V88: National | W88: International Relations and Cooperation | X88: Administration | Y88: Ministry | AA88: Capital | AB88: Payments for capital assets | AC88: Machinery and equipment | AD88: Transport equipment | AE88: Transport equipment | AI88: 0 | AJ88: 0 | AK88: 0 | AL88: 0 | AM88: 0 | AN88: 0 | AO88: 0 | AP88: 0 | AQ88: 0 | AR88: 0 | AS88: 0 | AT88: 0 | AU88: 0 | AV88: 0 | AX88: =IF(T_DataComboFile[[#This Row],[G&S reporting level indicator]]=1,$AX$16,"Not applicable") -> Level 3 | AY88: =IF(AND($AX$16="Level 3",T_DataComboFile[[#This Row],[Econ3]] = "Goods and services"),IF(T_DataComboFile[[#This Row],[Econ4]] = T_DataComboFile[[#This Row],[Econ3]],1,0),IF(AND($AX$16="Level 4",T_DataComboFile[[#This Row],[Econ4]] = "Goods and services"),0,1)) -> 1 | AZ88: =T_DataComboFile[[#This Row],[2016/17_Source]]*T_DataComboFile[[#This Row],[G&S reporting level indicator]] -> 0 | BA88: =T_DataComboFile[[#This Row],[2017/18_Source]]*T_DataComboFile[[#This Row],[G&S reporting level indicator]] -> 0 | BB88: =T_DataComboFile[[#This Row],[2018/19_Source]]*T_DataComboFile[[#This Row],[G&S reporting level indicator]] -> 0 | BC88: =T_DataComboFile[[#This Row],[2019/20 Main appropriation_Source]]*T_DataComboFile[[#This Row],[G&S reporting level indicator]] -> 0 | BD88: =T_DataComboFile[[#This Row],[2019/20 Adjusted appropriation_Source]]*T_DataComboFile[[#This Row],[G&S reporting level indicator]] -> 0 | BE88: =T_DataComboFile[[#This Row],[2019/20 Revised estimate_Source]]*T_DataComboFile[[#This Row],[G&S reporting level indicator]] -> 0 | BF88: =T_DataComboFile[[#This Row],[2019/20 Preliminary outcome_Source]]*T_DataComboFile[[#This Row],[G&S reporting level indicator]] -> 0 | BG88: =T_DataComboFile[[#This Row],[2020/21 Original_Source]]*T_DataComboFile[[#This Row],[G&S reporting level indicator]] -> 0 | BH88: =T_DataComboFile[[#This Row],[2020/21 SAB_Source]]*T_DataComboFile[[#This Row],[G&S reporting level indicator]] -> 0 | BI88: =T_DataComboFile[[#This Row],[2020/21 Baseline_Source]]*T_DataComboFile[[#This Row],[G&S reporting level indicator]] -> 0 | BJ88: =T_DataComboFile[[#This Row],[2021/22 Baseline_Source]]*T_DataComboFile[[#This Row],[G&S reporting level indicator]] -> 0 | BK88: =T_DataComboFile[[#This Row],[2022/23 Baseline_Source]]*T_DataComboFile[[#This Row],[G&S reporting level indicator]] -> 0 | BL88: =T_DataComboFile[[#This Row],[2023/24 Baseline_Source]]*T_DataComboFile[[#This Row],[G&S reporting level indicator]] -> 0 | BS88: =T_DataComboFile[[#This Row],[2021/22 Baseline]]+T_DataComboFile[[#This Row],[2021/22 Reduction]]+T_DataComboFile[[#This Row],[2021/22 Increase]] -> 0 | BT88: =T_DataComboFile[[#This Row],[2022/23 Baseline]]+T_DataComboFile[[#This Row],[2022/23 Reduction]]+T_DataComboFile[[#This Row],[2022/23 Increase]] -> 0 | BU88: =T_DataComboFile[[#This Row],[2023/24 Baseline]]+T_DataComboFile[[#This Row],[2023/24 Reduction]]+T_DataComboFile[[#This Row],[2023/24 Increase]] -> 0
C89: 2021_22 | D89: ENE2020 | E89: 6 | F89: 1 | G89: 1 | I89: 9190 | J89: 6 | K89: 1 | L89: 1 | N89: 009190 | O89: 06|01|01 | P89: 2 | Q89: 3 | R89: 12 | S89: 57 | T89: 61 | U89: 02|03|12|57|61 | V89: National | W89: International Relations and Cooperation | X89: Administration | Y89: Ministry | AA89: Capital | AB89: Payments for capital assets | AC89: Machinery and equipment | AD89: Other machinery and equipment | AE89: Other machinery and equipment | AI89: 0 | AJ89: 0 | AK89: 0 | AL89: 0 | AM89: 0 | AN89: 0 | AO89: 0 | AP89: 0 | AQ89: 0 | AR89: 0 | AS89: 0 | AT89: 0 | AU89: 0 | AV89: 0 | AX89: =IF(T_DataComboFile[[#This Row],[G&S reporting level indicator]]=1,$AX$16,"Not applicable") -> Level 3 | AY89: =IF(AND($AX$16="Level 3",T_DataComboFile[[#This Row],[Econ3]] = "Goods and services"),IF(T_DataComboFile[[#This Row],[Econ4]] = T_DataComboFile[[#This Row],[Econ3]],1,0),IF(AND($AX$16="Level 4",T_DataComboFile[[#This Row],[Econ4]] = "Goods and services"),0,1)) -> 1 | AZ89: =T_DataComboFile[[#This Row],[2016/17_Source]]*T_DataComboFile[[#This Row],[G&S reporting level indicator]] -> 0 | BA89: =T_DataComboFile[[#This Row],[2017/18_Source]]*T_DataComboFile[[#This Row],[G&S reporting level indicator]] -> 0 | BB89: =T_DataComboFile[[#This Row],[2018/19_Source]]*T_DataComboFile[[#This Row],[G&S reporting level indicator]] -> 0 | BC89: =T_DataComboFile[[#This Row],[2019/20 Main appropriation_Source]]*T_DataComboFile[[#This Row],[G&S reporting level indicator]] -> 0 | BD89: =T_DataComboFile[[#This Row],[2019/20 Adjusted appropriation_Source]]*T_DataComboFile[[#This Row],[G&S reporting level indicator]] -> 0 | BE89: =T_DataComboFile[[#This Row],[2019/20 Revised estimate_Source]]*T_DataComboFile[[#This Row],[G&S reporting level indicator]] -> 0 | BF89: =T_DataComboFile[[#This Row],[2019/20 Preliminary outcome_Source]]*T_DataComboFile[[#This Row],[G&S reporting level indicator]] -> 0 | BG89: =T_DataComboFile[[#This Row],[2020/21 Original_Source]]*T_DataComboFile[[#This Row],[G&S reporting level indicator]] -> 0 | BH89: =T_DataComboFile[[#This Row],[2020/21 SAB_Source]]*T_DataComboFile[[#This Row],[G&S reporting level indicator]] -> 0 | BI89: =T_DataComboFile[[#This Row],[2020/21 Baseline_Source]]*T_DataComboFile[[#This Row],[G&S reporting level indicator]] -> 0 | BJ89: =T_DataComboFile[[#This Row],[2021/22 Baseline_Source]]*T_DataComboFile[[#This Row],[G&S reporting level indicator]] -> 0 | BK89: =T_DataComboFile[[#This Row],[2022/23 Baseline_Source]]*T_DataComboFile[[#This Row],[G&S reporting level indicator]] -> 0 | BL89: =T_DataComboFile[[#This Row],[2023/24 Baseline_Source]]*T_DataComboFile[[#This Row],[G&S reporting level indicator]] -> 0 | BS89: =T_DataComboFile[[#This Row],[2021/22 Baseline]]+T_DataComboFile[[#This Row],[2021/22 Reduction]]+T_DataComboFile[[#This Row],[2021/22 Increase]] -> 0 | BT89: =T_DataComboFile[[#This Row],[2022/23 Baseline]]+T_DataComboFile[[#This Row],[2022/23 Reduction]]+T_DataComboFile[[#This Row],[2022/23 Increase]] -> 0 | BU89: =T_DataComboFile[[#This Row],[2023/24 Baseline]]+T_DataComboFile[[#This Row],[2023/24 Reduction]]+T_DataComboFile[[#This Row],[2023/24 Increase]] -> 0
C90: 2021_22 | D90: ENE2020 | E90: 6 | F90: 1 | G90: 1 | I90: 9191 | J90: 6 | K90: 1 | L90: 1 | N90: 009191 | O90: 06|01|01 | P90: 2 | Q90: 3 | R90: 13 | S90: 58 | T90: 62 | U90: 02|03|13|58|62 | V90: National | W90: International Relations and Cooperation | X90: Administration | Y90: Ministry | AA90: Capital | AB90: Payments for capital assets | AC90: Heritage assets | AD90: Heritage assets | AE90: Heritage assets | AI90: 0 | AJ90: 0 | AK90: 0 | AL90: 0 | AM90: 0 | AN90: 0 | AO90: 0 | AP90: 0 | AQ90: 0 | AR90: 0 | AS90: 0 | AT90: 0 | AU90: 0 | AV90: 0 | AX90: =IF(T_DataComboFile[[#This Row],[G&S reporting level indicator]]=1,$AX$16,"Not applicable") -> Level 3 | AY90: =IF(AND($AX$16="Level 3",T_DataComboFile[[#This Row],[Econ3]] = "Goods and services"),IF(T_DataComboFile[[#This Row],[Econ4]] = T_DataComboFile[[#This Row],[Econ3]],1,0),IF(AND($AX$16="Level 4",T_DataComboFile[[#This Row],[Econ4]] = "Goods and services"),0,1)) -> 1 | AZ90: =T_DataComboFile[[#This Row],[2016/17_Source]]*T_DataComboFile[[#This Row],[G&S reporting level indicator]] -> 0 | BA90: =T_DataComboFile[[#This Row],[2017/18_Source]]*T_DataComboFile[[#This Row],[G&S reporting level indicator]] -> 0 | BB90: =T_DataComboFile[[#This Row],[2018/19_Source]]*T_DataComboFile[[#This Row],[G&S reporting level indicator]] -> 0 | BC90: =T_DataComboFile[[#This Row],[2019/20 Main appropriation_Source]]*T_DataComboFile[[#This Row],[G&S reporting level indicator]] -> 0 | BD90: =T_DataComboFile[[#This Row],[2019/20 Adjusted appropriation_Source]]*T_DataComboFile[[#This Row],[G&S reporting level indicator]] -> 0 | BE90: =T_DataComboFile[[#This Row],[2019/20 Revised estimate_Source]]*T_DataComboFile[[#This Row],[G&S reporting level indicator]] -> 0 | BF90: =T_DataComboFile[[#This Row],[2019/20 Preliminary outcome_Source]]*T_DataComboFile[[#This Row],[G&S reporting level indicator]] -> 0 | BG90: =T_DataComboFile[[#This Row],[2020/21 Original_Source]]*T_DataComboFile[[#This Row],[G&S reporting level indicator]] -> 0 | BH90: =T_DataComboFile[[#This Row],[2020/21 SAB_Source]]*T_DataComboFile[[#This Row],[G&S reporting level indicator]] -> 0 | BI90: =T_DataComboFile[[#This Row],[2020/21 Baseline_Source]]*T_DataComboFile[[#This Row],[G&S reporting level indicator]] -> 0 | BJ90: =T_DataComboFile[[#This Row],[2021/22 Baseline_Source]]*T_DataComboFile[[#This Row],[G&S reporting level indicator]] -> 0 | BK90: =T_DataComboFile[[#This Row],[2022/23 Baseline_Source]]*T_DataComboFile[[#This Row],[G&S reporting level indicator]] -> 0 | BL90: =T_DataComboFile[[#This Row],[2023/24 Baseline_Source]]*T_DataComboFile[[#This Row],[G&S reporting level indicator]] -> 0 | BS90: =T_DataComboFile[[#This Row],[2021/22 Baseline]]+T_DataComboFile[[#This Row],[2021/22 Reduction]]+T_DataComboFile[[#This Row],[2021/22 Increase]] -> 0 | BT90: =T_DataComboFile[[#This Row],[2022/23 Baseline]]+T_DataComboFile[[#This Row],[2022/23 Reduction]]+T_DataComboFile[[#This Row],[2022/23 Increase]] -> 0 | BU90: =T_DataComboFile[[#This Row],[2023/24 Baseline]]+T_DataComboFile[[#This Row],[2023/24 Reduction]]+T_DataComboFile[[#This Row],[2023/24 Increase]] -> 0
C91: 2021_22 | D91: ENE2020 | E91: 6 | F91: 1 | G91: 1 | I91: 9192 | J91: 6 | K91: 1 | L91: 1 | N91: 009192 | O91: 06|01|01 | P91: 2 | Q91: 3 | R91: 14 | S91: 59 | T91: 63 | U91: 02|03|14|59|63 | V91: National | W91: International Relations and Cooperation | X91: Administration | Y91: Ministry | AA91: Capital | AB91: Payments for capital assets | AC91: Specialised military assets | AD91: Specialised military assets | AE91: Specialised military assets | AI91: 0 | AJ91: 0 | AK91: 0 | AL91: 0 | AM91: 0 | AN91: 0 | AO91: 0 | AP91: 0 | AQ91: 0 | AR91: 0 | AS91: 0 | AT91: 0 | AU91: 0 | AV91: 0 | AX91: =IF(T_DataComboFile[[#This Row],[G&S reporting level indicator]]=1,$AX$16,"Not applicable") -> Level 3 | AY91: =IF(AND($AX$16="Level 3",T_DataComboFile[[#This Row],[Econ3]] = "Goods and services"),IF(T_DataComboFile[[#This Row],[Econ4]] = T_DataComboFile[[#This Row],[Econ3]],1,0),IF(AND($AX$16="Level 4",T_DataComboFile[[#This Row],[Econ4]] = "Goods and services"),0,1)) -> 1 | AZ91: =T_DataComboFile[[#This Row],[2016/17_Source]]*T_DataComboFile[[#This Row],[G&S reporting level indicator]] -> 0 | BA91: =T_DataComboFile[[#This Row],[2017/18_Source]]*T_DataComboFile[[#This Row],[G&S reporting level indicator]] -> 0 | BB91: =T_DataComboFile[[#This Row],[2018/19_Source]]*T_DataComboFile[[#This Row],[G&S reporting level indicator]] -> 0 | BC91: =T_DataComboFile[[#This Row],[2019/20 Main appropriation_Source]]*T_DataComboFile[[#This Row],[G&S reporting level indicator]] -> 0 | BD91: =T_DataComboFile[[#This Row],[2019/20 Adjusted appropriation_Source]]*T_DataComboFile[[#This Row],[G&S reporting level indicator]] -> 0 | BE91: =T_DataComboFile[[#This Row],[2019/20 Revised estimate_Source]]*T_DataComboFile[[#This Row],[G&S reporting level indicator]] -> 0 | BF91: =T_DataComboFile[[#This Row],[2019/20 Preliminary outcome_Source]]*T_DataComboFile[[#This Row],[G&S reporting level indicator]] -> 0 | BG91: =T_DataComboFile[[#This Row],[2020/21 Original_Source]]*T_DataComboFile[[#This Row],[G&S reporting level indicator]] -> 0 | BH91: =T_DataComboFile[[#This Row],[2020/21 SAB_Source]]*T_DataComboFile[[#This Row],[G&S reporting level indicator]] -> 0 | BI91: =T_DataComboFile[[#This Row],[2020/21 Baseline_Source]]*T_DataComboFile[[#This Row],[G&S reporting level indicator]] -> 0 | BJ91: =T_DataComboFile[[#This Row],[2021/22 Baseline_Source]]*T_DataComboFile[[#This Row],[G&S reporting level indicator]] -> 0 | BK91: =T_DataComboFile[[#This Row],[2022/23 Baseline_Source]]*T_DataComboFile[[#This Row],[G&S reporting level indicator]] -> 0 | BL91: =T_DataComboFile[[#This Row],[2023/24 Baseline_Source]]*T_DataComboFile[[#This Row],[G&S reporting level indicator]] -> 0 | BS91: =T_DataComboFile[[#This Row],[2021/22 Baseline]]+T_DataComboFile[[#This Row],[2021/22 Reduction]]+T_DataComboFile[[#This Row],[2021/22 Increase]] -> 0 | BT91: =T_DataComboFile[[#This Row],[2022/23 Baseline]]+T_DataComboFile[[#This Row],[2022/23 Reduction]]+T_DataComboFile[[#This Row],[2022/23 Increase]] -> 0 | BU91: =T_DataComboFile[[#This Row],[2023/24 Baseline]]+T_DataComboFile[[#This Row],[2023/24 Reduction]]+T_DataComboFile[[#This Row],[2023/24 Increase]] -> 0
C92: 2021_22 | D92: ENE2020 | E92: 6 | F92: 1 | G92: 1 | I92: 9193 | J92: 6 | K92: 1 | L92: 1 | N92: 009193 | O92: 06|01|01 | P92: 2 | Q92: 3 | R92: 15 | S92: 60 | T92: 64 | U92: 02|03|15|60|64 | V92: National | W92: International Relations and Cooperation | X92: Administration | Y92: Ministry | AA92: Capital | AB92: Payments for capital assets | AC92: Biological assets | AD92: Biological assets | AE92: Biological assets | AI92: 0 | AJ92: 0 | AK92: 0 | AL92: 0 | AM92: 0 | AN92: 0 | AO92: 0 | AP92: 0 | AQ92: 0 | AR92: 0 | AS92: 0 | AT92: 0 | AU92: 0 | AV92: 0 | AX92: =IF(T_DataComboFile[[#This Row],[G&S reporting level indicator]]=1,$AX$16,"Not applicable") -> Level 3 | AY92: =IF(AND($AX$16="Level 3",T_DataComboFile[[#This Row],[Econ3]] = "Goods and services"),IF(T_DataComboFile[[#This Row],[Econ4]] = T_DataComboFile[[#This Row],[Econ3]],1,0),IF(AND($AX$16="Level 4",T_DataComboFile[[#This Row],[Econ4]] = "Goods and services"),0,1)) -> 1 | AZ92: =T_DataComboFile[[#This Row],[2016/17_Source]]*T_DataComboFile[[#This Row],[G&S reporting level indicator]] -> 0 | BA92: =T_DataComboFile[[#This Row],[2017/18_Source]]*T_DataComboFile[[#This Row],[G&S reporting level indicator]] -> 0 | BB92: =T_DataComboFile[[#This Row],[2018/19_Source]]*T_DataComboFile[[#This Row],[G&S reporting level indicator]] -> 0 | BC92: =T_DataComboFile[[#This Row],[2019/20 Main appropriation_Source]]*T_DataComboFile[[#This Row],[G&S reporting level indicator]] -> 0 | BD92: =T_DataComboFile[[#This Row],[2019/20 Adjusted appropriation_Source]]*T_DataComboFile[[#This Row],[G&S reporting level indicator]] -> 0 | BE92: =T_DataComboFile[[#This Row],[2019/20 Revised estimate_Source]]*T_DataComboFile[[#This Row],[G&S reporting level indicator]] -> 0 | BF92: =T_DataComboFile[[#This Row],[2019/20 Preliminary outcome_Source]]*T_DataComboFile[[#This Row],[G&S reporting level indicator]] -> 0 | BG92: =T_DataComboFile[[#This Row],[2020/21 Original_Source]]*T_DataComboFile[[#This Row],[G&S reporting level indicator]] -> 0 | BH92: =T_DataComboFile[[#This Row],[2020/21 SAB_Source]]*T_DataComboFile[[#This Row],[G&S reporting level indicator]] -> 0 | BI92: =T_DataComboFile[[#This Row],[2020/21 Baseline_Source]]*T_DataComboFile[[#This Row],[G&S reporting level indicator]] -> 0 | BJ92: =T_DataComboFile[[#This Row],[2021/22 Baseline_Source]]*T_DataComboFile[[#This Row],[G&S reporting level indicator]] -> 0 | BK92: =T_DataComboFile[[#This Row],[2022/23 Baseline_Source]]*T_DataComboFile[[#This Row],[G&S reporting level indicator]] -> 0 | BL92: =T_DataComboFile[[#This Row],[2023/24 Baseline_Source]]*T_DataComboFile[[#This Row],[G&S reporting level indicator]] -> 0 | BS92: =T_DataComboFile[[#This Row],[2021/22 Baseline]]+T_DataComboFile[[#This Row],[2021/22 Reduction]]+T_DataComboFile[[#This Row],[2021/22 Increase]] -> 0 | BT92: =T_DataComboFile[[#This Row],[2022/23 Baseline]]+T_DataComboFile[[#This Row],[2022/23 Reduction]]+T_DataComboFile[[#This Row],[2022/23 Increase]] -> 0 | BU92: =T_DataComboFile[[#This Row],[2023/24 Baseline]]+T_DataComboFile[[#This Row],[2023/24 Reduction]]+T_DataComboFile[[#This Row],[2023/24 Increase]] -> 0
C93: 2021_22 | D93: ENE2020 | E93: 6 | F93: 1 | G93: 1 | I93: 9194 | J93: 6 | K93: 1 | L93: 1 | N93: 009194 | O93: 06|01|01 | P93: 2 | Q93: 3 | R93: 16 | S93: 61 | T93: 65 | U93: 02|03|16|61|65 | V93: National | W93: International Relations and Cooperation | X93: Administration | Y93: Ministry | AA93: Capital | AB93: Payments for capital assets | AC93: Land and sub-soil assets | AD93: Land and sub-soil assets | AE93: Land and sub-soil assets | AI93: 0 | AJ93: 0 | AK93: 0 | AL93: 0 | AM93: 0 | AN93: 0 | AO93: 0 | AP93: 0 | AQ93: 0 | AR93: 0 | AS93: 0 | AT93: 0 | AU93: 0 | AV93: 0 | AX93: =IF(T_DataComboFile[[#This Row],[G&S reporting level indicator]]=1,$AX$16,"Not applicable") -> Level 3 | AY93: =IF(AND($AX$16="Level 3",T_DataComboFile[[#This Row],[Econ3]] = "Goods and services"),IF(T_DataComboFile[[#This Row],[Econ4]] = T_DataComboFile[[#This Row],[Econ3]],1,0),IF(AND($AX$16="Level 4",T_DataComboFile[[#This Row],[Econ4]] = "Goods and services"),0,1)) -> 1 | AZ93: =T_DataComboFile[[#This Row],[2016/17_Source]]*T_DataComboFile[[#This Row],[G&S reporting level indicator]] -> 0 | BA93: =T_DataComboFile[[#This Row],[2017/18_Source]]*T_DataComboFile[[#This Row],[G&S reporting level indicator]] -> 0 | BB93: =T_DataComboFile[[#This Row],[2018/19_Source]]*T_DataComboFile[[#This Row],[G&S reporting level indicator]] -> 0 | BC93: =T_DataComboFile[[#This Row],[2019/20 Main appropriation_Source]]*T_DataComboFile[[#This Row],[G&S reporting level indicator]] -> 0 | BD93: =T_DataComboFile[[#This Row],[2019/20 Adjusted appropriation_Source]]*T_DataComboFile[[#This Row],[G&S reporting level indicator]] -> 0 | BE93: =T_DataComboFile[[#This Row],[2019/20 Revised estimate_Source]]*T_DataComboFile[[#This Row],[G&S reporting level indicator]] -> 0 | BF93: =T_DataComboFile[[#This Row],[2019/20 Preliminary outcome_Source]]*T_DataComboFile[[#This Row],[G&S reporting level indicator]] -> 0 | BG93: =T_DataComboFile[[#This Row],[2020/21 Original_Source]]*T_DataComboFile[[#This Row],[G&S reporting level indicator]] -> 0 | BH93: =T_DataComboFile[[#This Row],[2020/21 SAB_Source]]*T_DataComboFile[[#This Row],[G&S reporting level indicator]] -> 0 | BI93: =T_DataComboFile[[#This Row],[2020/21 Baseline_Source]]*T_DataComboFile[[#This Row],[G&S reporting level indicator]] -> 0 | BJ93: =T_DataComboFile[[#This Row],[2021/22 Baseline_Source]]*T_DataComboFile[[#This Row],[G&S reporting level indicator]] -> 0 | BK93: =T_DataComboFile[[#This Row],[2022/23 Baseline_Source]]*T_DataComboFile[[#This Row],[G&S reporting level indicator]] -> 0 | BL93: =T_DataComboFile[[#This Row],[2023/24 Baseline_Source]]*T_DataComboFile[[#This Row],[G&S reporting level indicator]] -> 0 | BS93: =T_DataComboFile[[#This Row],[2021/22 Baseline]]+T_DataComboFile[[#This Row],[2021/22 Reduction]]+T_DataComboFile[[#This Row],[2021/22 Increase]] -> 0 | BT93: =T_DataComboFile[[#This Row],[2022/23 Baseline]]+T_DataComboFile[[#This Row],[2022/23 Reduction]]+T_DataComboFile[[#This Row],[2022/23 Increase]] -> 0 | BU93: =T_DataComboFile[[#This Row],[2023/24 Baseline]]+T_DataComboFile[[#This Row],[2023/24 Reduction]]+T_DataComboFile[[#This Row],[2023/24 Increase]] -> 0
C94: 2021_22 | D94: ENE2020 | E94: 6 | F94: 1 | G94: 1 | I94: 9195 | J94: 6 | K94: 1 | L94: 1 | N94: 009195 | O94: 06|01|01 | P94: 2 | Q94: 3 | R94: 17 | S94: 62 | T94: 66 | U94: 02|03|17|62|66 | V94: National | W94: International Relations and Cooperation | X94: Administration | Y94: Ministry | AA94: Capital | AB94: Payments for capital assets | AC94: Software and other intangible assets | AD94: Software and other intangible assets | AE94: Software and other intangible assets | AI94: 0 | AJ94: 0 | AK94: 0 | AL94: 0 | AM94: 0 | AN94: 0 | AO94: 0 | AP94: 0 | AQ94: 0 | AR94: 0 | AS94: 0 | AT94: 0 | AU94: 0 | AV94: 0 | AX94: =IF(T_DataComboFile[[#This Row],[G&S reporting level indicator]]=1,$AX$16,"Not applicable") -> Level 3 | AY94: =IF(AND($AX$16="Level 3",T_DataComboFile[[#This Row],[Econ3]] = "Goods and services"),IF(T_DataComboFile[[#This Row],[Econ4]] = T_DataComboFile[[#This Row],[Econ3]],1,0),IF(AND($AX$16="Level 4",T_DataComboFile[[#This Row],[Econ4]] = "Goods and services"),0,1)) -> 1 | AZ94: =T_DataComboFile[[#This Row],[2016/17_Source]]*T_DataComboFile[[#This Row],[G&S reporting level indicator]] -> 0 | BA94: =T_DataComboFile[[#This Row],[2017/18_Source]]*T_DataComboFile[[#This Row],[G&S reporting level indicator]] -> 0 | BB94: =T_DataComboFile[[#This Row],[2018/19_Source]]*T_DataComboFile[[#This Row],[G&S reporting level indicator]] -> 0 | BC94: =T_DataComboFile[[#This Row],[2019/20 Main appropriation_Source]]*T_DataComboFile[[#This Row],[G&S reporting level indicator]] -> 0 | BD94: =T_DataComboFile[[#This Row],[2019/20 Adjusted appropriation_Source]]*T_DataComboFile[[#This Row],[G&S reporting level indicator]] -> 0 | BE94: =T_DataComboFile[[#This Row],[2019/20 Revised estimate_Source]]*T_DataComboFile[[#This Row],[G&S reporting level indicator]] -> 0 | BF94: =T_DataComboFile[[#This Row],[2019/20 Preliminary outcome_Source]]*T_DataComboFile[[#This Row],[G&S reporting level indicator]] -> 0 | BG94: =T_DataComboFile[[#This Row],[2020/21 Original_Source]]*T_DataComboFile[[#This Row],[G&S reporting level indicator]] -> 0 | BH94: =T_DataComboFile[[#This Row],[2020/21 SAB_Source]]*T_DataComboFile[[#This Row],[G&S reporting level indicator]] -> 0 | BI94: =T_DataComboFile[[#This Row],[2020/21 Baseline_Source]]*T_DataComboFile[[#This Row],[G&S reporting level indicator]] -> 0 | BJ94: =T_DataComboFile[[#This Row],[2021/22 Baseline_Source]]*T_DataComboFile[[#This Row],[G&S reporting level indicator]] -> 0 | BK94: =T_DataComboFile[[#This Row],[2022/23 Baseline_Source]]*T_DataComboFile[[#This Row],[G&S reporting level indicator]] -> 0 | BL94: =T_DataComboFile[[#This Row],[2023/24 Baseline_Source]]*T_DataComboFile[[#This Row],[G&S reporting level indicator]] -> 0 | BS94: =T_DataComboFile[[#This Row],[2021/22 Baseline]]+T_DataComboFile[[#This Row],[2021/22 Reduction]]+T_DataComboFile[[#This Row],[2021/22 Increase]] -> 0 | BT94: =T_DataComboFile[[#This Row],[2022/23 Baseline]]+T_DataComboFile[[#This Row],[2022/23 Reduction]]+T_DataComboFile[[#This Row],[2022/23 Increase]] -> 0 | BU94: =T_DataComboFile[[#This Row],[2023/24 Baseline]]+T_DataComboFile[[#This Row],[2023/24 Reduction]]+T_DataComboFile[[#This Row],[2023/24 Increase]] -> 0
C95: 2021_22 | D95: ENE2020 | E95: 6 | F95: 1 | G95: 1 | I95: 9196 | J95: 6 | K95: 1 | L95: 1 | N95: 009196 | O95: 06|01|01 | P95: 3 | Q95: 4 | R95: 18 | S95: 63 | T95: 67 | U95: 03|04|18|63|67 | V95: National | W95: International Relations and Cooperation | X95: Administration | Y95: Ministry | AA95: Payments for financial assets | AB95: Payments for financial assets | AC95: Payments for financial assets | AD95: Payments for financial assets | AE95: Payments for financial assets | AI95: 0 | AJ95: 0 | AK95: 0 | AL95: 0 | AM95: 0 | AN95: 0 | AO95: 0 | AP95: 0 | AQ95: 0 | AR95: 0 | AS95: 0 | AT95: 0 | AU95: 0 | AV95: 0 | AX95: =IF(T_DataComboFile[[#This Row],[G&S reporting level indicator]]=1,$AX$16,"Not applicable") -> Level 3 | AY95: =IF(AND($AX$16="Level 3",T_DataComboFile[[#This Row],[Econ3]] = "Goods and services"),IF(T_DataComboFile[[#This Row],[Econ4]] = T_DataComboFile[[#This Row],[Econ3]],1,0),IF(AND($AX$16="Level 4",T_DataComboFile[[#This Row],[Econ4]] = "Goods and services"),0,1)) -> 1 | AZ95: =T_DataComboFile[[#This Row],[2016/17_Source]]*T_DataComboFile[[#This Row],[G&S reporting level indicator]] -> 0 | BA95: =T_DataComboFile[[#This Row],[2017/18_Source]]*T_DataComboFile[[#This Row],[G&S reporting level indicator]] -> 0 | BB95: =T_DataComboFile[[#This Row],[2018/19_Source]]*T_DataComboFile[[#This Row],[G&S reporting level indicator]] -> 0 | BC95: =T_DataComboFile[[#This Row],[2019/20 Main appropriation_Source]]*T_DataComboFile[[#This Row],[G&S reporting level indicator]] -> 0 | BD95: =T_DataComboFile[[#This Row],[2019/20 Adjusted appropriation_Source]]*T_DataComboFile[[#This Row],[G&S reporting level indicator]] -> 0 | BE95: =T_DataComboFile[[#This Row],[2019/20 Revised estimate_Source]]*T_DataComboFile[[#This Row],[G&S reporting level indicator]] -> 0 | BF95: =T_DataComboFile[[#This Row],[2019/20 Preliminary outcome_Source]]*T_DataComboFile[[#This Row],[G&S reporting level indicator]] -> 0 | BG95: =T_DataComboFile[[#This Row],[2020/21 Original_Source]]*T_DataComboFile[[#This Row],[G&S reporting level indicator]] -> 0 | BH95: =T_DataComboFile[[#This Row],[2020/21 SAB_Source]]*T_DataComboFile[[#This Row],[G&S reporting level indicator]] -> 0 | BI95: =T_DataComboFile[[#This Row],[2020/21 Baseline_Source]]*T_DataComboFile[[#This Row],[G&S reporting level indicator]] -> 0 | BJ95: =T_DataComboFile[[#This Row],[2021/22 Baseline_Source]]*T_DataComboFile[[#This Row],[G&S reporting level indicator]] -> 0 | BK95: =T_DataComboFile[[#This Row],[2022/23 Baseline_Source]]*T_DataComboFile[[#This Row],[G&S reporting level indicator]] -> 0 | BL95: =T_DataComboFile[[#This Row],[2023/24 Baseline_Source]]*T_DataComboFile[[#This Row],[G&S reporting level indicator]] -> 0 | BS95: =T_DataComboFile[[#This Row],[2021/22 Baseline]]+T_DataComboFile[[#This Row],[2021/22 Reduction]]+T_DataComboFile[[#This Row],[2021/22 Increase]] -> 0 | BT95: =T_DataComboFile[[#This Row],[2022/23 Baseline]]+T_DataComboFile[[#This Row],[2022/23 Reduction]]+T_DataComboFile[[#This Row],[2022/23 Increase]] -> 0 | BU95: =T_DataComboFile[[#This Row],[2023/24 Baseline]]+T_DataComboFile[[#This Row],[2023/24 Reduction]]+T_DataComboFile[[#This Row],[2023/24 Increase]] -> 0
A96: NAT|Non-transfer item | B96: 6|Salaries and wages | C96: 2021_22 | D96: ENE2020 | E96: 6 | F96: 1 | G96: 2 | H96: 1780 | I96: 9197 | J96: 6 | K96: 1 | L96: 2 | M96: 1780 | N96: 009197 | O96: 06|01|02 | P96: 1 | Q96: 1 | R96: 1 | S96: 1 | T96: 1 | U96: 01|01|01|01|01 | V96: National | W96: International Relations and Cooperation | X96: Administration | Y96: Departmental Management | Z96: Non-transfer item | AA96: Current | AB96: Current payments | AC96: Compensation of employees | AD96: Salaries and wages | AE96: Salaries and wages | AF96: General public services | AG96: External affairs | AH96: NAT | AI96: 11619 | AJ96: 14210 | AK96: 15344 | AL96: 18427 | AM96: 14927 | AN96: 14927 | AO96: 14927 | AP96: 17817 | AQ96: 17817 | AR96: 16807 | AS96: 17231 | AT96: 17817 | AU96: 18603 | AV96: 1 | AX96: =IF(T_DataComboFile[[#This Row],[G&S reporting level indicator]]=1,$AX$16,"Not applicable") -> Level 3 | AY96: =IF(AND($AX$16="Level 3",T_DataComboFile[[#This Row],[Econ3]] = "Goods and services"),IF(T_DataComboFile[[#This Row],[Econ4]] = T_DataComboFile[[#This Row],[Econ3]],1,0),IF(AND($AX$16="Level 4",T_DataComboFile[[#This Row],[Econ4]] = "Goods and services"),0,1)) -> 1 | AZ96: =T_DataComboFile[[#This Row],[2016/17_Source]]*T_DataComboFile[[#This Row],[G&S reporting level indicator]] -> 11619 | BA96: =T_DataComboFile[[#This Row],[2017/18_Source]]*T_DataComboFile[[#This Row],[G&S reporting level indicator]] -> 14210 | BB96: =T_DataComboFile[[#This Row],[2018/19_Source]]*T_DataComboFile[[#This Row],[G&S reporting level indicator]] -> 15344 | BC96: =T_DataComboFile[[#This Row],[2019/20 Main appropriation_Source]]*T_DataComboFile[[#This Row],[G&S reporting level indicator]] -> 18427 | BD96: =T_DataComboFile[[#This Row],[2019/20 Adjusted appropriation_Source]]*T_DataComboFile[[#This Row],[G&S reporting level indicator]] -> 14927 | BE96: =T_DataComboFile[[#This Row],[2019/20 Revised estimate_Source]]*T_DataComboFile[[#This Row],[G&S reporting level indicator]] -> 14927 | BF96: =T_DataComboFile[[#This Row],[2019/20 Preliminary outcome_Source]]*T_DataComboFile[[#This Row],[G&S reporting level indicator]] -> 14927 | BG96: =T_DataComboFile[[#This Row],[2020/21 Original_Source]]*T_DataComboFile[[#This Row],[G&S reporting level indicator]] -> 17817 | BH96: =T_DataComboFile[[#This Row],[2020/21 SAB_Source]]*T_DataComboFile[[#This Row],[G&S reporting level indicator]] -> 17817 | BI96: =T_DataComboFile[[#This Row],[2020/21 Baseline_Source]]*T_DataComboFile[[#This Row],[G&S reporting level indicator]] -> 16807 | BJ96: =T_DataComboFile[[#This Row],[2021/22 Baseline_Source]]*T_DataComboFile[[#This Row],[G&S reporting level indicator]] -> 17231 | BK96: =T_DataComboFile[[#This Row],[2022/23 Baseline_Source]]*T_DataComboFile[[#This Row],[G&S reporting level indicator]] -> 17817 | BL96: =T_DataComboFile[[#This Row],[2023/24 Baseline_Source]]*T_DataComboFile[[#This Row],[G&S reporting level indicator]] -> 18603 | BS96: =T_DataComboFile[[#This Row],[2021/22 Baseline]]+T_DataComboFile[[#This Row],[2021/22 Reduction]]+T_DataComboFile[[#This Row],[2021/22 Increase]] -> 17231 | BT96: =T_DataComboFile[[#This Row],[2022/23 Baseline]]+T_DataComboFile[[#This Row],[2022/23 Reduction]]+T_DataComboFile[[#This Row],[2022/23 Increase]] -> 17817 | BU96: =T_DataComboFile[[#This Row],[2023/24 Baseline]]+T_DataComboFile[[#This Row],[2023/24 Reduction]]+T_DataComboFile[[#This Row],[2023/24 Increase]] -> 18603
A97: NAT|Non-transfer item | B97: 6|Social contributions | C97: 2021_22 | D97: ENE2020 | E97: 6 | F97: 1 | G97: 2 | H97: 1781 | I97: 9198 | J97: 6 | K97: 1 | L97: 2 | M97: 1781 | N97: 009198 | O97: 06|01|02 | P97: 1 | Q97: 1 | R97: 1 | S97: 2 | T97: 2 | U97: 01|01|01|02|02 | V97: National | W97: International Relations and Cooperation | X97: Administration | Y97: Departmental Management | Z97: Non-transfer item | AA97: Current | AB97: Current payments | AC97: Compensation of employees | AD97: Social contributions | AE97: Social contributions | AF97: General public services | AG97: External affairs | AH97: NAT | AI97: 1161 | AJ97: 1416 | AK97: 1520 | AL97: 1762 | AM97: 1762 | AN97: 1762 | AO97: 1762 | AP97: 1894 | AQ97: 1894 | AR97: 1787 | AS97: 1861 | AT97: 1902 | AU97: 1986 | AV97: 1 | AX97: =IF(T_DataComboFile[[#This Row],[G&S reporting level indicator]]=1,$AX$16,"Not applicable") -> Level 3 | AY97: =IF(AND($AX$16="Level 3",T_DataComboFile[[#This Row],[Econ3]] = "Goods and services"),IF(T_DataComboFile[[#This Row],[Econ4]] = T_DataComboFile[[#This Row],[Econ3]],1,0),IF(AND($AX$16="Level 4",T_DataComboFile[[#This Row],[Econ4]] = "Goods and services"),0,1)) -> 1 | AZ97: =T_DataComboFile[[#This Row],[2016/17_Source]]*T_DataComboFile[[#This Row],[G&S reporting level indicator]] -> 1161 | BA97: =T_DataComboFile[[#This Row],[2017/18_Source]]*T_DataComboFile[[#This Row],[G&S reporting level indicator]] -> 1416 | BB97: =T_DataComboFile[[#This Row],[2018/19_Source]]*T_DataComboFile[[#This Row],[G&S reporting level indicator]] -> 1520 | BC97: =T_DataComboFile[[#This Row],[2019/20 Main appropriation_Source]]*T_DataComboFile[[#This Row],[G&S reporting level indicator]] -> 1762 | BD97: =T_DataComboFile[[#This Row],[2019/20 Adjusted appropriation_Source]]*T_DataComboFile[[#This Row],[G&S reporting level indicator]] -> 1762 | BE97: =T_DataComboFile[[#This Row],[2019/20 Revised estimate_Source]]*T_DataComboFile[[#This Row],[G&S reporting level indicator]] -> 1762 | BF97: =T_DataComboFile[[#This Row],[2019/20 Preliminary outcome_Source]]*T_DataComboFile[[#This Row],[G&S reporting level indicator]] -> 1762 | BG97: =T_DataComboFile[[#This Row],[2020/21 Original_Source]]*T_DataComboFile[[#This Row],[G&S reporting level indicator]] -> 1894 | BH97: =T_DataComboFile[[#This Row],[2020/21 SAB_Source]]*T_DataComboFile[[#This Row],[G&S reporting level indicator]] -> 1894 | BI97: =T_DataComboFile[[#This Row],[2020/21 Baseline_Source]]*T_DataComboFile[[#This Row],[G&S reporting level indicator]] -> 1787 | BJ97: =T_DataComboFile[[#This Row],[2021/22 Baseline_Source]]*T_DataComboFile[[#This Row],[G&S reporting level indicator]] -> 1861 | BK97: =T_DataComboFile[[#This Row],[2022/23 Baseline_Source]]*T_DataComboFile[[#This Row],[G&S reporting level indicator]] -> 1902 | BL97: =T_DataComboFile[[#This Row],[2023/24 Baseline_Source]]*T_DataComboFile[[#This Row],[G&S reporting level indicator]] -> 1986 | BS97: =T_DataComboFile[[#This Row],[2021/22 Baseline]]+T_DataComboFile[[#This Row],[2021/22 Reduction]]+T_DataComboFile[[#This Row],[2021/22 Increase]] -> 1861 | BT97: =T_DataComboFile[[#This Row],[2022/23 Baseline]]+T_DataComboFile[[#This Row],[2022/23 Reduction]]+T_DataComboFile[[#This Row],[2022/23 Increase]] -> 1902 | BU97: =T_DataComboFile[[#This Row],[2023/24 Baseline]]+T_DataComboFile[[#This Row],[2023/24 Reduction]]+T_DataComboFile[[#This Row],[2023/24 Increase]] -> 1986
C98: 2021_22 | D98: ENE2020 | E98: 6 | F98: 1 | G98: 2 | I98: 9199 | J98: 6 | K98: 1 | L98: 2 | N98: 009199 | O98: 06|01|02 | P98: 1 | Q98: 1 | R98: 2 | S98: 3 | T98: 3 | U98: 01|01|02|03|03 | V98: National | W98: International Relations and Cooperation | X98: Administration | Y98: Departmental Management | AA98: Current | AB98: Current payments | AC98: Goods and services | AD98: Administrative fees | AE98: Administrative fees | AI98: 0 | AJ98: 0 | AK98: 0 | AL98: 0 | AM98: 0 | AN98: 0 | AO98: 0 | AP98: 0 | AQ98: 0 | AR98: 0 | AS98: 0 | AT98: 0 | AU98: 0 | AV98: 0 | AX98: =IF(T_DataComboFile[[#This Row],[G&S reporting level indicator]]=1,$AX$16,"Not applicable") -> Not applicable | AY98: =IF(AND($AX$16="Level 3",T_DataComboFile[[#This Row],[Econ3]] = "Goods and services"),IF(T_DataComboFile[[#This Row],[Econ4]] = T_DataComboFile[[#This Row],[Econ3]],1,0),IF(AND($AX$16="Level 4",T_DataComboFile[[#This Row],[Econ4]] = "Goods and services"),0,1)) -> 0 | AZ98: =T_DataComboFile[[#This Row],[2016/17_Source]]*T_DataComboFile[[#This Row],[G&S reporting level indicator]] -> 0 | BA98: =T_DataComboFile[[#This Row],[2017/18_Source]]*T_DataComboFile[[#This Row],[G&S reporting level indicator]] -> 0 | BB98: =T_DataComboFile[[#This Row],[2018/19_Source]]*T_DataComboFile[[#This Row],[G&S reporting level indicator]] -> 0 | BC98: =T_DataComboFile[[#This Row],[2019/20 Main appropriation_Source]]*T_DataComboFile[[#This Row],[G&S reporting level indicator]] -> 0 | BD98: =T_DataComboFile[[#This Row],[2019/20 Adjusted appropriation_Source]]*T_DataComboFile[[#This Row],[G&S reporting level indicator]] -> 0 | BE98: =T_DataComboFile[[#This Row],[2019/20 Revised estimate_Source]]*T_DataComboFile[[#This Row],[G&S reporting level indicator]] -> 0 | BF98: =T_DataComboFile[[#This Row],[2019/20 Preliminary outcome_Source]]*T_DataComboFile[[#This Row],[G&S reporting level indicator]] -> 0 | BG98: =T_DataComboFile[[#This Row],[2020/21 Original_Source]]*T_DataComboFile[[#This Row],[G&S reporting level indicator]] -> 0 | BH98: =T_DataComboFile[[#This Row],[2020/21 SAB_Source]]*T_DataComboFile[[#This Row],[G&S reporting level indicator]] -> 0 | BI98: =T_DataComboFile[[#This Row],[2020/21 Baseline_Source]]*T_DataComboFile[[#This Row],[G&S reporting level indicator]] -> 0 | BJ98: =T_DataComboFile[[#This Row],[2021/22 Baseline_Source]]*T_DataComboFile[[#This Row],[G&S reporting level indicator]] -> 0 | BK98: =T_DataComboFile[[#This Row],[2022/23 Baseline_Source]]*T_DataComboFile[[#This Row],[G&S reporting level indicator]] -> 0 | BL98: =T_DataComboFile[[#This Row],[2023/24 Baseline_Source]]*T_DataComboFile[[#This Row],[G&S reporting level indicator]] -> 0 | BS98: =T_DataComboFile[[#This Row],[2021/22 Baseline]]+T_DataComboFile[[#This Row],[2021/22 Reduction]]+T_DataComboFile[[#This Row],[2021/22 Increase]] -> 0 | BT98: =T_DataComboFile[[#This Row],[2022/23 Baseline]]+T_DataComboFile[[#This Row],[2022/23 Reduction]]+T_DataComboFile[[#This Row],[2022/23 Increase]] -> 0 | BU98: =T_DataComboFile[[#This Row],[2023/24 Baseline]]+T_DataComboFile[[#This Row],[2023/24 Reduction]]+T_DataComboFile[[#This Row],[2023/24 Increase]] -> 0
C99: 2021_22 | D99: ENE2020 | E99: 6 | F99: 1 | G99: 2 | I99: 9200 | J99: 6 | K99: 1 | L99: 2 | N99: 009200 | O99: 06|01|02 | P99: 1 | Q99: 1 | R99: 2 | S99: 4 | T99: 4 | U99: 01|01|02|04|04 | V99: National | W99: International Relations and Cooperation | X99: Administration | Y99: Departmental Management | AA99: Current | AB99: Current payments | AC99: Goods and services | AD99: Advertising | AE99: Advertising | AI99: 0 | AJ99: 0 | AK99: 0 | AL99: 0 | AM99: 0 | AN99: 0 | AO99: 0 | AP99: 0 | AQ99: 0 | AR99: 0 | AS99: 0 | AT99: 0 | AU99: 0 | AV99: 0 | AX99: =IF(T_DataComboFile[[#This Row],[G&S reporting level indicator]]=1,$AX$16,"Not applicable") -> Not applicable | AY99: =IF(AND($AX$16="Level 3",T_DataComboFile[[#This Row],[Econ3]] = "Goods and services"),IF(T_DataComboFile[[#This Row],[Econ4]] = T_DataComboFile[[#This Row],[Econ3]],1,0),IF(AND($AX$16="Level 4",T_DataComboFile[[#This Row],[Econ4]] = "Goods and services"),0,1)) -> 0 | AZ99: =T_DataComboFile[[#This Row],[2016/17_Source]]*T_DataComboFile[[#This Row],[G&S reporting level indicator]] -> 0 | BA99: =T_DataComboFile[[#This Row],[2017/18_Source]]*T_DataComboFile[[#This Row],[G&S reporting level indicator]] -> 0 | BB99: =T_DataComboFile[[#This Row],[2018/19_Source]]*T_DataComboFile[[#This Row],[G&S reporting level indicator]] -> 0 | BC99: =T_DataComboFile[[#This Row],[2019/20 Main appropriation_Source]]*T_DataComboFile[[#This Row],[G&S reporting level indicator]] -> 0 | BD99: =T_DataComboFile[[#This Row],[2019/20 Adjusted appropriation_Source]]*T_DataComboFile[[#This Row],[G&S reporting level indicator]] -> 0 | BE99: =T_DataComboFile[[#This Row],[2019/20 Revised estimate_Source]]*T_DataComboFile[[#This Row],[G&S reporting level indicator]] -> 0 | BF99: =T_DataComboFile[[#This Row],[2019/20 Preliminary outcome_Source]]*T_DataComboFile[[#This Row],[G&S reporting level indicator]] -> 0 | BG99: =T_DataComboFile[[#This Row],[2020/21 Original_Source]]*T_DataComboFile[[#This Row],[G&S reporting level indicator]] -> 0 | BH99: =T_DataComboFile[[#This Row],[2020/21 SAB_Source]]*T_DataComboFile[[#This Row],[G&S reporting level indicator]] -> 0 | BI99: =T_DataComboFile[[#This Row],[2020/21 Baseline_Source]]*T_DataComboFile[[#This Row],[G&S reporting level indicator]] -> 0 | BJ99: =T_DataComboFile[[#This Row],[2021/22 Baseline_Source]]*T_DataComboFile[[#This Row],[G&S reporting level indicator]] -> 0 | BK99: =T_DataComboFile[[#This Row],[2022/23 Baseline_Source]]*T_DataComboFile[[#This Row],[G&S reporting level indicator]] -> 0 | BL99: =T_DataComboFile[[#This Row],[2023/24 Baseline_Source]]*T_DataComboFile[[#This Row],[G&S reporting level indicator]] -> 0 | BS99: =T_DataComboFile[[#This Row],[2021/22 Baseline]]+T_DataComboFile[[#This Row],[2021/22 Reduction]]+T_DataComboFile[[#This Row],[2021/22 Increase]] -> 0 | BT99: =T_DataComboFile[[#This Row],[2022/23 Baseline]]+T_DataComboFile[[#This Row],[2022/23 Reduction]]+T_DataComboFile[[#This Row],[2022/23 Increase]] -> 0 | BU99: =T_DataComboFile[[#This Row],[2023/24 Baseline]]+T_DataComboFile[[#This Row],[2023/24 Reduction]]+T_DataComboFile[[#This Row],[2023/24 Increase]] -> 0
C100: 2021_22 | D100: ENE2020 | E100: 6 | F100: 1 | G100: 2 | I100: 9201 | J100: 6 | K100: 1 | L100: 2 | N100: 009201 | O100: 06|01|02 | P100: 1 | Q100: 1 | R100: 2 | S100: 5 | T100: 5 | U100: 01|01|02|05|05 | V100: National | W100: International Relations and Cooperation | X100: Administration | Y100: Departmental Management | AA100: Current | AB100: Current payments | AC100: Goods and services | AD100: Minor assets | AE100: Minor assets | AI100: 0 | AJ100: 0 | AK100: 0 | AL100: 0 | AM100: 0 | AN100: 0 | AO100: 0 | AP100: 0 | AQ100: 0 | AR100: 0 | AS100: 0 | AT100: 0 | AU100: 0 | AV100: 0 | AX100: =IF(T_DataComboFile[[#This Row],[G&S reporting level indicator]]=1,$AX$16,"Not applicable") -> Not applicable | AY100: =IF(AND($AX$16="Level 3",T_DataComboFile[[#This Row],[Econ3]] = "Goods and services"),IF(T_DataComboFile[[#This Row],[Econ4]] = T_DataComboFile[[#This Row],[Econ3]],1,0),IF(AND($AX$16="Level 4",T_DataComboFile[[#This Row],[Econ4]] = "Goods and services"),0,1)) -> 0 | AZ100: =T_DataComboFile[[#This Row],[2016/17_Source]]*T_DataComboFile[[#This Row],[G&S reporting level indicator]] -> 0 | BA100: =T_DataComboFile[[#This Row],[2017/18_Source]]*T_DataComboFile[[#This Row],[G&S reporting level indicator]] -> 0 | BB100: =T_DataComboFile[[#This Row],[2018/19_Source]]*T_DataComboFile[[#This Row],[G&S reporting level indicator]] -> 0 | BC100: =T_DataComboFile[[#This Row],[2019/20 Main appropriation_Source]]*T_DataComboFile[[#This Row],[G&S reporting level indicator]] -> 0 | BD100: =T_DataComboFile[[#This Row],[2019/20 Adjusted appropriation_Source]]*T_DataComboFile[[#This Row],[G&S reporting level indicator]] -> 0 | BE100: =T_DataComboFile[[#This Row],[2019/20 Revised estimate_Source]]*T_DataComboFile[[#This Row],[G&S reporting level indicator]] -> 0 | BF100: =T_DataComboFile[[#This Row],[2019/20 Preliminary outcome_Source]]*T_DataComboFile[[#This Row],[G&S reporting level indicator]] -> 0 | BG100: =T_DataComboFile[[#This Row],[2020/21 Original_Source]]*T_DataComboFile[[#This Row],[G&S reporting level indicator]] -> 0 | BH100: =T_DataComboFile[[#This Row],[2020/21 SAB_Source]]*T_DataComboFile[[#This Row],[G&S reporting level indicator]] -> 0 | BI100: =T_DataComboFile[[#This Row],[2020/21 Baseline_Source]]*T_DataComboFile[[#This Row],[G&S reporting level indicator]] -> 0 | BJ100: =T_DataComboFile[[#This Row],[2021/22 Baseline_Source]]*T_DataComboFile[[#This Row],[G&S reporting level indicator]] -> 0 | BK100: =T_DataComboFile[[#This Row],[2022/23 Baseline_Source]]*T_DataComboFile[[#This Row],[G&S reporting level indicator]] -> 0 | BL100: =T_DataComboFile[[#This Row],[2023/24 Baseline_Source]]*T_DataComboFile[[#This Row],[G&S reporting level indicator]] -> 0 | BS100: =T_DataComboFile[[#This Row],[2021/22 Baseline]]+T_DataComboFile[[#This Row],[2021/22 Reduction]]+T_DataComboFile[[#This Row],[2021/22 Increase]] -> 0 | BT100: =T_DataComboFile[[#This Row],[2022/23 Baseline]]+T_DataComboFile[[#This Row],[2022/23 Reduction]]+T_DataComboFile[[#This Row],[2022/23 Increase]] -> 0 | BU100: =T_DataComboFile[[#This Row],[2023/24 Baseline]]+T_DataComboFile[[#This Row],[2023/24 Reduction]]+T_DataComboFile[[#This Row],[2023/24 Increase]] -> 0
C101: 2021_22 | D101: ENE2020 | E101: 6 | F101: 1 | G101: 2 | I101: 9202 | J101: 6 | K101: 1 | L101: 2 | N101: 009202 | O101: 06|01|02 | P101: 1 | Q101: 1 | R101: 2 | S101: 6 | T101: 6 | U101: 01|01|02|06|06 | V101: National | W101: International Relations and Cooperation | X101: Administration | Y101: Departmental Management | AA101: Current | AB101: Current payments | AC101: Goods and services | AD101: Audit costs: External | AE101: Audit costs: External | AI101: 0 | AJ101: 0 | AK101: 0 | AL101: 0 | AM101: 0 | AN101: 0 | AO101: 0 | AP101: 0 | AQ101: 0 | AR101: 0 | AS101: 0 | AT101: 0 | AU101: 0 | AV101: 0 | AX101: =IF(T_DataComboFile[[#This Row],[G&S reporting level indicator]]=1,$AX$16,"Not applicable") -> Not applicable | AY101: =IF(AND($AX$16="Level 3",T_DataComboFile[[#This Row],[Econ3]] = "Goods and services"),IF(T_DataComboFile[[#This Row],[Econ4]] = T_DataComboFile[[#This Row],[Econ3]],1,0),IF(AND($AX$16="Level 4",T_DataComboFile[[#This Row],[Econ4]] = "Goods and services"),0,1)) -> 0 | AZ101: =T_DataComboFile[[#This Row],[2016/17_Source]]*T_DataComboFile[[#This Row],[G&S reporting level indicator]] -> 0 | BA101: =T_DataComboFile[[#This Row],[2017/18_Source]]*T_DataComboFile[[#This Row],[G&S reporting level indicator]] -> 0 | BB101: =T_DataComboFile[[#This Row],[2018/19_Source]]*T_DataComboFile[[#This Row],[G&S reporting level indicator]] -> 0 | BC101: =T_DataComboFile[[#This Row],[2019/20 Main appropriation_Source]]*T_DataComboFile[[#This Row],[G&S reporting level indicator]] -> 0 | BD101: =T_DataComboFile[[#This Row],[2019/20 Adjusted appropriation_Source]]*T_DataComboFile[[#This Row],[G&S reporting level indicator]] -> 0 | BE101: =T_DataComboFile[[#This Row],[2019/20 Revised estimate_Source]]*T_DataComboFile[[#This Row],[G&S reporting level indicator]] -> 0 | BF101: =T_DataComboFile[[#This Row],[2019/20 Preliminary outcome_Source]]*T_DataComboFile[[#This Row],[G&S reporting level indicator]] -> 0 | BG101: =T_DataComboFile[[#This Row],[2020/21 Original_Source]]*T_DataComboFile[[#This Row],[G&S reporting level indicator]] -> 0 | BH101: =T_DataComboFile[[#This Row],[2020/21 SAB_Source]]*T_DataComboFile[[#This Row],[G&S reporting level indicator]] -> 0 | BI101: =T_DataComboFile[[#This Row],[2020/21 Baseline_Source]]*T_DataComboFile[[#This Row],[G&S reporting level indicator]] -> 0 | BJ101: =T_DataComboFile[[#This Row],[2021/22 Baseline_Source]]*T_DataComboFile[[#This Row],[G&S reporting level indicator]] -> 0 | BK101: =T_DataComboFile[[#This Row],[2022/23 Baseline_Source]]*T_DataComboFile[[#This Row],[G&S reporting level indicator]] -> 0 | BL101: =T_DataComboFile[[#This Row],[2023/24 Baseline_Source]]*T_DataComboFile[[#This Row],[G&S reporting level indicator]] -> 0 | BS101: =T_DataComboFile[[#This Row],[2021/22 Baseline]]+T_DataComboFile[[#This Row],[2021/22 Reduction]]+T_DataComboFile[[#This Row],[2021/22 Increase]] -> 0 | BT101: =T_DataComboFile[[#This Row],[2022/23 Baseline]]+T_DataComboFile[[#This Row],[2022/23 Reduction]]+T_DataComboFile[[#This Row],[2022/23 Increase]] -> 0 | BU101: =T_DataComboFile[[#This Row],[2023/24 Baseline]]+T_DataComboFile[[#This Row],[2023/24 Reduction]]+T_DataComboFile[[#This Row],[2023/24 Increase]] -> 0
C102: 2021_22 | D102: ENE2020 | E102: 6 | F102: 1 | G102: 2 | I102: 9203 | J102: 6 | K102: 1 | L102: 2 | N102: 009203 | O102: 06|01|02 | P102: 1 | Q102: 1 | R102: 2 | S102: 7 | T102: 7 | U102: 01|01|02|07|07 | V102: National | W102: International Relations and Cooperation | X102: Administration | Y102: Departmental Management | AA102: Current | AB102: Current payments | AC102: Goods and services | AD102: Bursaries: Employees | AE102: Bursaries: Employees | AI102: 0 | AJ102: 0 | AK102: 0 | AL102: 0 | AM102: 0 | AN102: 0 | AO102: 0 | AP102: 0 | AQ102: 0 | AR102: 0 | AS102: 0 | AT102: 0 | AU102: 0 | AV102: 0 | AX102: =IF(T_DataComboFile[[#This Row],[G&S reporting level indicator]]=1,$AX$16,"Not applicable") -> Not applicable | AY102: =IF(AND($AX$16="Level 3",T_DataComboFile[[#This Row],[Econ3]] = "Goods and services"),IF(T_DataComboFile[[#This Row],[Econ4]] = T_DataComboFile[[#This Row],[Econ3]],1,0),IF(AND($AX$16="Level 4",T_DataComboFile[[#This Row],[Econ4]] = "Goods and services"),0,1)) -> 0 | AZ102: =T_DataComboFile[[#This Row],[2016/17_Source]]*T_DataComboFile[[#This Row],[G&S reporting level indicator]] -> 0 | BA102: =T_DataComboFile[[#This Row],[2017/18_Source]]*T_DataComboFile[[#This Row],[G&S reporting level indicator]] -> 0 | BB102: =T_DataComboFile[[#This Row],[2018/19_Source]]*T_DataComboFile[[#This Row],[G&S reporting level indicator]] -> 0 | BC102: =T_DataComboFile[[#This Row],[2019/20 Main appropriation_Source]]*T_DataComboFile[[#This Row],[G&S reporting level indicator]] -> 0 | BD102: =T_DataComboFile[[#This Row],[2019/20 Adjusted appropriation_Source]]*T_DataComboFile[[#This Row],[G&S reporting level indicator]] -> 0 | BE102: =T_DataComboFile[[#This Row],[2019/20 Revised estimate_Source]]*T_DataComboFile[[#This Row],[G&S reporting level indicator]] -> 0 | BF102: =T_DataComboFile[[#This Row],[2019/20 Preliminary outcome_Source]]*T_DataComboFile[[#This Row],[G&S reporting level indicator]] -> 0 | BG102: =T_DataComboFile[[#This Row],[2020/21 Original_Source]]*T_DataComboFile[[#This Row],[G&S reporting level indicator]] -> 0 | BH102: =T_DataComboFile[[#This Row],[2020/21 SAB_Source]]*T_DataComboFile[[#This Row],[G&S reporting level indicator]] -> 0 | BI102: =T_DataComboFile[[#This Row],[2020/21 Baseline_Source]]*T_DataComboFile[[#This Row],[G&S reporting level indicator]] -> 0 | BJ102: =T_DataComboFile[[#This Row],[2021/22 Baseline_Source]]*T_DataComboFile[[#This Row],[G&S reporting level indicator]] -> 0 | BK102: =T_DataComboFile[[#This Row],[2022/23 Baseline_Source]]*T_DataComboFile[[#This Row],[G&S reporting level indicator]] -> 0 | BL102: =T_DataComboFile[[#This Row],[2023/24 Baseline_Source]]*T_DataComboFile[[#This Row],[G&S reporting level indicator]] -> 0 | BS102: =T_DataComboFile[[#This Row],[2021/22 Baseline]]+T_DataComboFile[[#This Row],[2021/22 Reduction]]+T_DataComboFile[[#This Row],[2021/22 Increase]] -> 0 | BT102: =T_DataComboFile[[#This Row],[2022/23 Baseline]]+T_DataComboFile[[#This Row],[2022/23 Reduction]]+T_DataComboFile[[#This Row],[2022/23 Increase]] -> 0 | BU102: =T_DataComboFile[[#This Row],[2023/24 Baseline]]+T_DataComboFile[[#This Row],[2023/24 Reduction]]+T_DataComboFile[[#This Row],[2023/24 Increase]] -> 0
